NUMERO_MANDATO;RIGA_MANDATO;QUIET;IMPORTO_RIGA;IMPORTO_MANDATO;BENEFICIARIO;CIG;TITOLO_PAGAMENTO;DATA_MANDATO;CAPITOLO;ARTICOLO;NUMERO_IMPEGNO;TITOLO;DESCR_TITOLO;LIVELLO_II;DESCR_LIVELLO_II;LIVELLO_III;DESCR_LIVELLO_III;LIVELLO_IV;DESCR_LIVELLO_IV;LIVELLO_V;DESCR_LIVELLO_V;DATA_PAG_EFF
3032;1;9999999;136;136;ENEL ENERGIA SPA;7376631C76;Fatt.n. 004811541418  del 06/09/2018 AGOSTO 2018 - CONSUMI MEDICINA DI GRUPPO - SEDE MUNICIPALE;01/10/2018;134;30;127;1;Spese correnti;3;Acquisto di beni e servizi;2;Acquisto di servizi;5;Utenze e canoni;4;Energia elettrica;02/10/2018
3033;1;9999999;1.500,62;1.500,62;ENEL ENERGIA SPA;7376631C76;Fatt.n. 004811541418  del 06/09/2018 AGOSTO 2018 - CONSUMI MEDICINA DI GRUPPO - SEDE MUNICIPALE;01/10/2018;134;31;128;1;Spese correnti;3;Acquisto di beni e servizi;2;Acquisto di servizi;5;Utenze e canoni;4;Energia elettrica;02/10/2018
3034;1;9999999;115,83;115,83;ENEL ENERGIA SPA;7376631C76;Fatt.n. 004811552245  del 06/09/2018 AGOSTO 2018 - CONSUMI ALLOGGIO DON GALLERANI;01/10/2018;134;31;128;1;Spese correnti;3;Acquisto di beni e servizi;2;Acquisto di servizi;5;Utenze e canoni;4;Energia elettrica;02/10/2018
3035;1;9999999;19,13;622,49;ENEL ENERGIA SPA;7376631C76;Fatt.n. 004811552229  del 06/09/2018 AGOSTO 2018 - CONSUMI PARCHEGGIO PRESSO CC PRISMA;01/10/2018;134;31;128;1;Spese correnti;3;Acquisto di beni e servizi;2;Acquisto di servizi;5;Utenze e canoni;4;Energia elettrica;02/10/2018
3035;2;9999999;59,62;622,49;ENEL ENERGIA SPA;7376631C76;Fatt.n. 004811552234  del 06/09/2018 AGOSTO 2018 - CONSUMI PARCHEGGIO SMS;01/10/2018;134;31;128;1;Spese correnti;3;Acquisto di beni e servizi;2;Acquisto di servizi;5;Utenze e canoni;4;Energia elettrica;02/10/2018
3035;3;9999999;77,84;622,49;ENEL ENERGIA SPA;7376631C76;Fatt.n. 004811536888  del 06/09/2018 AGOSTO 2018 - CONSUMI MERCATO CALTANA;01/10/2018;134;31;128;1;Spese correnti;3;Acquisto di beni e servizi;2;Acquisto di servizi;5;Utenze e canoni;4;Energia elettrica;02/10/2018
3035;4;9999999;87,01;622,49;ENEL ENERGIA SPA;7376631C76;Fatt.n. 004811536899  del 06/09/2018 AGOSTO 2018 - CONSUMI PIAZZA VETERNIGO;01/10/2018;134;31;128;1;Spese correnti;3;Acquisto di beni e servizi;2;Acquisto di servizi;5;Utenze e canoni;4;Energia elettrica;02/10/2018
3035;5;9999999;118,89;622,49;ENEL ENERGIA SPA;7376631C76;Fatt.n. 004811511826  del 06/09/2018 AGOSTO 2018 - CONSUMI MERCATO CASELLE;01/10/2018;134;31;128;1;Spese correnti;3;Acquisto di beni e servizi;2;Acquisto di servizi;5;Utenze e canoni;4;Energia elettrica;02/10/2018
3035;6;9999999;127,5;622,49;ENEL ENERGIA SPA;7376631C76;Fatt.n. 004811564441  del 06/09/2018 AGOSTO 2018 - CONSUMI MERCATO SALA;01/10/2018;134;31;128;1;Spese correnti;3;Acquisto di beni e servizi;2;Acquisto di servizi;5;Utenze e canoni;4;Energia elettrica;02/10/2018
3035;7;9999999;132,5;622,49;ENEL ENERGIA SPA;7376631C76;Fatt.n. 004811505178  del 06/09/2018 AGOSTO 2018 - CONSUMI PIAZZA S.D.A. CALTANA;01/10/2018;134;31;128;1;Spese correnti;3;Acquisto di beni e servizi;2;Acquisto di servizi;5;Utenze e canoni;4;Energia elettrica;02/10/2018
3036;1;9999999;4,13;4,13;ENEL ENERGIA SPA;7376631C76;Fatt.n. 004811536895  del 06/09/2018 AGOSTO 2018 - CONSUMI CIMITERO SMS - LAMPADE VOTIVE;01/10/2018;134;31;128;1;Spese correnti;3;Acquisto di beni e servizi;2;Acquisto di servizi;5;Utenze e canoni;4;Energia elettrica;02/10/2018
3037;1;9999999;6,61;6,61;ENEL ENERGIA SPA;7376631C76;Fatt.n. 004811519949  del 06/09/2018 AGOSTO 2018 - CONSUMI CIMITERO S.ANGELO - LAMPADE VOTIVE;01/10/2018;134;31;128;1;Spese correnti;3;Acquisto di beni e servizi;2;Acquisto di servizi;5;Utenze e canoni;4;Energia elettrica;02/10/2018
3038;1;9999999;5,53;5,53;ENEL ENERGIA SPA;7376631C76;Fatt.n. 004811535112  del 06/09/2018 AGOSTO 2018 - CONSUMI CIMITERO CASELLE - LAMPADE VOTIVE;01/10/2018;134;31;128;1;Spese correnti;3;Acquisto di beni e servizi;2;Acquisto di servizi;5;Utenze e canoni;4;Energia elettrica;02/10/2018
3039;1;9999999;31,86;31,86;ENEL ENERGIA SPA;7376631C76;Fatt.n. 004811552252  del 06/09/2018 AGOSTO 2018 - CONSUMI CIMITERO CALTANA - LAMPADE VOTIVE;01/10/2018;134;31;128;1;Spese correnti;3;Acquisto di beni e servizi;2;Acquisto di servizi;5;Utenze e canoni;4;Energia elettrica;02/10/2018
3040;1;9999999;5,98;5,98;ENEL ENERGIA SPA;7376631C76;Fatt.n. 004811536889  del 06/09/2018 AGOSTO 2018 - CONSUMI CIMITERO VETERNIGO - LAMPADE VOTIVE;01/10/2018;134;31;128;1;Spese correnti;3;Acquisto di beni e servizi;2;Acquisto di servizi;5;Utenze e canoni;4;Energia elettrica;02/10/2018
3041;1;9999999;79,93;1.973,01;ENEL ENERGIA SPA;7376631C76;Fatt.n. 004811505184  del 06/09/2018 AGOSTO 2018 - CONSUMI SC. ELEM. CALTANA;01/10/2018;1334;30;129;1;Spese correnti;3;Acquisto di beni e servizi;2;Acquisto di servizi;5;Utenze e canoni;4;Energia elettrica;02/10/2018
3041;2;9999999;104,88;1.973,01;ENEL ENERGIA SPA;7376631C76;Fatt.n. 004811564442  del 06/09/2018 AGOSTO 2018 - CONSUMI SC. ELEM. SMS;01/10/2018;1334;30;129;1;Spese correnti;3;Acquisto di beni e servizi;2;Acquisto di servizi;5;Utenze e canoni;4;Energia elettrica;02/10/2018
3041;3;9999999;140,96;1.973,01;ENEL ENERGIA SPA;7376631C76;Fatt.n. 004811556261  del 06/09/2018 AGOSTO 2018 - CONSUMI SC. ELEM. CASELLE;01/10/2018;1334;30;129;1;Spese correnti;3;Acquisto di beni e servizi;2;Acquisto di servizi;5;Utenze e canoni;4;Energia elettrica;02/10/2018
3041;4;9999999;1.647,24;1.973,01;ENEL ENERGIA SPA;7376631C76;Fatt.n. 004811505172  del 06/09/2018 AGOSTO 2018 - CONSUMI SCUOLA MEDIA SMS;01/10/2018;1334;30;129;1;Spese correnti;3;Acquisto di beni e servizi;2;Acquisto di servizi;5;Utenze e canoni;4;Energia elettrica;02/10/2018
3042;1;9999999;119,39;119,39;ENEL ENERGIA SPA;7376631C76;Fatt.n. 004811525354  del 06/09/2018 AGOSTO 2018 - CONSUMI PALESTRA CALTANA;01/10/2018;1334;30;129;1;Spese correnti;3;Acquisto di beni e servizi;2;Acquisto di servizi;5;Utenze e canoni;4;Energia elettrica;02/10/2018
3043;1;9999999;151,78;151,78;ENEL ENERGIA SPA;7376631C76;Fatt.n. 004811552226  del 06/09/2018 AGOSTO 2018 - PALESTRA SMS;01/10/2018;1334;30;129;1;Spese correnti;3;Acquisto di beni e servizi;2;Acquisto di servizi;5;Utenze e canoni;4;Energia elettrica;02/10/2018
3044;1;9999999;66;66;ENEL ENERGIA SPA;7376631C76;Fatt.n. 004811505171  del 06/09/2018 AGOSTO 2018 - CONSUMI SC. ELEM-PALESTRA STIGLIANO;01/10/2018;1334;30;129;1;Spese correnti;3;Acquisto di beni e servizi;2;Acquisto di servizi;5;Utenze e canoni;4;Energia elettrica;02/10/2018
3045;1;9999999;59;59;ENEL ENERGIA SPA;7376631C76;Fatt.n. 004811505171  del 06/09/2018 AGOSTO 2018 - CONSUMI SC. ELEM-PALESTRA STIGLIANO;01/10/2018;1334;30;129;1;Spese correnti;3;Acquisto di beni e servizi;2;Acquisto di servizi;5;Utenze e canoni;4;Energia elettrica;02/10/2018
3046;1;9999999;59,55;59,55;ENEL ENERGIA SPA;7376631C76;Fatt.n. 004811552254  del 06/09/2018 AGOSTO 2018 - CONSUMI PALESTRA CASELLE;01/10/2018;1334;30;129;1;Spese correnti;3;Acquisto di beni e servizi;2;Acquisto di servizi;5;Utenze e canoni;4;Energia elettrica;02/10/2018
3047;1;9999999;63;63;ENEL ENERGIA SPA;7376631C76;Fatt.n. 004811552224  del 06/09/2018 AGOSTO 2018 - CONSUMI SC. ELEM-PALESTRA-ASILO S.ANGELO;01/10/2018;1334;30;129;1;Spese correnti;3;Acquisto di beni e servizi;2;Acquisto di servizi;5;Utenze e canoni;4;Energia elettrica;02/10/2018
3048;1;9999999;193,53;193,53;ENEL ENERGIA SPA;7376631C76;Fatt.n. 004811552224  del 06/09/2018 AGOSTO 2018 - CONSUMI SC. ELEM-PALESTRA-ASILO S.ANGELO;01/10/2018;1334;30;129;1;Spese correnti;3;Acquisto di beni e servizi;2;Acquisto di servizi;5;Utenze e canoni;4;Energia elettrica;02/10/2018
3049;1;9999999;85;85;ENEL ENERGIA SPA;7376631C76;Fatt.n. 004811552261  del 06/09/2018 AGOSTO 2018 - CONSUMI SC. ELEM-PALESTRA VETERNIGO;01/10/2018;1334;30;129;1;Spese correnti;3;Acquisto di beni e servizi;2;Acquisto di servizi;5;Utenze e canoni;4;Energia elettrica;02/10/2018
3050;1;9999999;137,95;137,95;ENEL ENERGIA SPA;7376631C76;Fatt.n. 004811552261  del 06/09/2018 AGOSTO 2018 - CONSUMI SC. ELEM-PALESTRA VETERNIGO;01/10/2018;1334;30;129;1;Spese correnti;3;Acquisto di beni e servizi;2;Acquisto di servizi;5;Utenze e canoni;4;Energia elettrica;02/10/2018
3051;1;9999999;265,25;671,12;ENEL ENERGIA SPA;7376631C76;Fatt.n. 004811541423  del 06/09/2018 AGOSTO 2018 - CONSUMI VILLA FARSETTI;01/10/2018;1834;0;130;1;Spese correnti;3;Acquisto di beni e servizi;2;Acquisto di servizi;5;Utenze e canoni;4;Energia elettrica;02/10/2018
3051;2;9999999;405,87;671,12;ENEL ENERGIA SPA;7376631C76;Fatt.n. 004811556263  del 06/09/2018 AGOSTO 2018 - CONSUMI VILLA FARSETTI;01/10/2018;1834;0;130;1;Spese correnti;3;Acquisto di beni e servizi;2;Acquisto di servizi;5;Utenze e canoni;4;Energia elettrica;02/10/2018
3052;1;9999999;113,46;113,46;ENEL ENERGIA SPA;7376631C76;Fatt.n. 004811552222  del 06/09/2018 AGOSTO 2018 - CONSUMI IMPIANTI SPORTIVI SMS;01/10/2018;1934;0;131;1;Spese correnti;3;Acquisto di beni e servizi;2;Acquisto di servizi;5;Utenze e canoni;4;Energia elettrica;02/10/2018
3053;1;9999999;127,2;127,2;ENEL ENERGIA SPA;7376631C76;Fatt.n. 004811552260  del 06/09/2018 AGOSTO 2018 - CONSUMI IMPIANTI SPORTIVI CASELLE;01/10/2018;1934;0;131;1;Spese correnti;3;Acquisto di beni e servizi;2;Acquisto di servizi;5;Utenze e canoni;4;Energia elettrica;02/10/2018
3054;1;9999999;119,4;119,4;ENEL ENERGIA SPA;7376631C76;Fatt.n. 004811525354  del 06/09/2018 AGOSTO 2018 - CONSUMI PALESTRA CALTANA;01/10/2018;1934;0;131;1;Spese correnti;3;Acquisto di beni e servizi;2;Acquisto di servizi;5;Utenze e canoni;4;Energia elettrica;02/10/2018
3055;1;9999999;151,78;151,78;ENEL ENERGIA SPA;7376631C76;Fatt.n. 004811552226  del 06/09/2018 AGOSTO 2018 - PALESTRA SMS;01/10/2018;1934;0;131;1;Spese correnti;3;Acquisto di beni e servizi;2;Acquisto di servizi;5;Utenze e canoni;4;Energia elettrica;02/10/2018
3056;1;9999999;66;66;ENEL ENERGIA SPA;7376631C76;Fatt.n. 004811505171  del 06/09/2018 AGOSTO 2018 - CONSUMI SC. ELEM-PALESTRA STIGLIANO;01/10/2018;1934;0;131;1;Spese correnti;3;Acquisto di beni e servizi;2;Acquisto di servizi;5;Utenze e canoni;4;Energia elettrica;02/10/2018
3057;1;9999999;59,55;59,55;ENEL ENERGIA SPA;7376631C76;Fatt.n. 004811552254  del 06/09/2018 AGOSTO 2018 - CONSUMI PALESTRA CASELLE;01/10/2018;1934;0;131;1;Spese correnti;3;Acquisto di beni e servizi;2;Acquisto di servizi;5;Utenze e canoni;4;Energia elettrica;02/10/2018
3058;1;9999999;63;63;ENEL ENERGIA SPA;7376631C76;Fatt.n. 004811552224  del 06/09/2018 AGOSTO 2018 - CONSUMI SC. ELEM-PALESTRA-ASILO S.ANGELO;01/10/2018;1934;0;131;1;Spese correnti;3;Acquisto di beni e servizi;2;Acquisto di servizi;5;Utenze e canoni;4;Energia elettrica;02/10/2018
3059;1;9999999;85;85;ENEL ENERGIA SPA;7376631C76;Fatt.n. 004811552261  del 06/09/2018 AGOSTO 2018 - CONSUMI SC. ELEM-PALESTRA VETERNIGO;01/10/2018;1934;0;131;1;Spese correnti;3;Acquisto di beni e servizi;2;Acquisto di servizi;5;Utenze e canoni;4;Energia elettrica;02/10/2018
3060;1;9999999;26,14;282,49;ENEL ENERGIA SPA;7376631C76;Fatt.n. 004811505698  del 06/09/2018 AGOSTO 2018 - CONSUMI ECOCENTRO;01/10/2018;3534;0;133;1;Spese correnti;3;Acquisto di beni e servizi;2;Acquisto di servizi;5;Utenze e canoni;4;Energia elettrica;02/10/2018
3060;2;9999999;256,35;282,49;ENEL ENERGIA SPA;7376631C76;Fatt.n. 004811514244  del 06/09/2018 AGOSTO 2018 - CONSUMI MAGAZZINO COMUNALE;01/10/2018;3534;0;133;1;Spese correnti;3;Acquisto di beni e servizi;2;Acquisto di servizi;5;Utenze e canoni;4;Energia elettrica;02/10/2018
3061;1;9999999;13,42;1.052,82;ENEL ENERGIA SPA;7376631C76;Fatt.n. 004811552227  del 06/09/2018 AGOSTO 2018 - CONSUMI ILLUMINAZIONE PUBBLICA;01/10/2018;3544;0;154;1;Spese correnti;3;Acquisto di beni e servizi;2;Acquisto di servizi;15;Contratti di servizio pubblico;15;Contratti di servizio per l'illuminazione pubblica;02/10/2018
3061;2;9999999;21,08;1.052,82;ENEL ENERGIA SPA;7376631C76;Fatt.n. 004811541426  del 06/09/2018 AGOSTO 2018 - ILLUMINAZIONE PUBBLICA;01/10/2018;3544;0;154;1;Spese correnti;3;Acquisto di beni e servizi;2;Acquisto di servizi;15;Contratti di servizio pubblico;15;Contratti di servizio per l'illuminazione pubblica;02/10/2018
3061;3;9999999;24,83;1.052,82;ENEL ENERGIA SPA;7376631C76;Fatt.n. 004811505182  del 06/09/2018 AGOSTO 2018 - CONSUMI ILLUMINAZIONE PUBBLICA;01/10/2018;3544;0;154;1;Spese correnti;3;Acquisto di beni e servizi;2;Acquisto di servizi;15;Contratti di servizio pubblico;15;Contratti di servizio per l'illuminazione pubblica;02/10/2018
3061;4;9999999;32,03;1.052,82;ENEL ENERGIA SPA;7376631C76;Fatt.n. 004811552247  del 06/09/2018 AGOSTO 2018 - CONSUMI ILLUMINAZIONE PUBBLICA;01/10/2018;3544;0;154;1;Spese correnti;3;Acquisto di beni e servizi;2;Acquisto di servizi;15;Contratti di servizio pubblico;15;Contratti di servizio per l'illuminazione pubblica;02/10/2018
3061;5;9999999;60,89;1.052,82;ENEL ENERGIA SPA;7376631C76;Fatt.n. 004811519947  del 06/09/2018 AGOSTO 2018 - CONSUMI ILLUMINAZIONE PUBBLICA;01/10/2018;3544;0;154;1;Spese correnti;3;Acquisto di beni e servizi;2;Acquisto di servizi;15;Contratti di servizio pubblico;15;Contratti di servizio per l'illuminazione pubblica;02/10/2018
3061;6;9999999;110,34;1.052,82;ENEL ENERGIA SPA;7376631C76;Fatt.n. 004811505177  del 06/09/2018 AGOSTO 2018 - ILLUMINAZIONE PUBBLICA;01/10/2018;3544;0;154;1;Spese correnti;3;Acquisto di beni e servizi;2;Acquisto di servizi;15;Contratti di servizio pubblico;15;Contratti di servizio per l'illuminazione pubblica;02/10/2018
3061;7;9999999;147,51;1.052,82;ENEL ENERGIA SPA;7376631C76;Fatt.n. 004811536901  del 06/09/2018 AGOSTO 2018 - ILLUMINAZIONE PUBBLICA;01/10/2018;3544;0;154;1;Spese correnti;3;Acquisto di beni e servizi;2;Acquisto di servizi;15;Contratti di servizio pubblico;15;Contratti di servizio per l'illuminazione pubblica;02/10/2018
3061;8;9999999;166,03;1.052,82;ENEL ENERGIA SPA;7376631C76;Fatt.n. 004811536903  del 06/09/2018 AGOSTO 2018 - CONSUMI ILLUMINAZIONE PUBBLICA;01/10/2018;3544;0;154;1;Spese correnti;3;Acquisto di beni e servizi;2;Acquisto di servizi;15;Contratti di servizio pubblico;15;Contratti di servizio per l'illuminazione pubblica;02/10/2018
3061;9;9999999;194,31;1.052,82;ENEL ENERGIA SPA;7376631C76;Fatt.n. 004811524975  del 06/09/2018 AGOSTO 2018 - CONSUMI ILLUMINAZIONE PUBBLICA;01/10/2018;3544;0;154;1;Spese correnti;3;Acquisto di beni e servizi;2;Acquisto di servizi;15;Contratti di servizio pubblico;15;Contratti di servizio per l'illuminazione pubblica;02/10/2018
3061;10;9999999;282,38;1.052,82;ENEL ENERGIA SPA;7376631C76;Fatt.n. 004811505174  del 06/09/2018 AGOSTO 2018 - CONSUMI ILLUMINAZIONE PUBBLICA;01/10/2018;3544;0;154;1;Spese correnti;3;Acquisto di beni e servizi;2;Acquisto di servizi;15;Contratti di servizio pubblico;15;Contratti di servizio per l'illuminazione pubblica;02/10/2018
3062;1;9999999;19,61;1.173,14;ENEL ENERGIA SPA;7376631C76;Fatt.n. 004811552223  del 06/09/2018 AGOSTO 2018 - CONSUMI ILLUMINAZIONE PUBBLICA;01/10/2018;3544;0;154;1;Spese correnti;3;Acquisto di beni e servizi;2;Acquisto di servizi;15;Contratti di servizio pubblico;15;Contratti di servizio per l'illuminazione pubblica;02/10/2018
3062;2;9999999;22,13;1.173,14;ENEL ENERGIA SPA;7376631C76;Fatt.n. 004811519946  del 06/09/2018 AGOSTO 2018 - CONSUMI ILLUMINAZIONE PUBBLICA;01/10/2018;3544;0;154;1;Spese correnti;3;Acquisto di beni e servizi;2;Acquisto di servizi;15;Contratti di servizio pubblico;15;Contratti di servizio per l'illuminazione pubblica;02/10/2018
3062;3;9999999;30,13;1.173,14;ENEL ENERGIA SPA;7376631C76;Fatt.n. 004811511825  del 06/09/2018 AGOSTO 2018 - CONSUMI ILLUMINAZIONE PUBBLICA;01/10/2018;3544;0;154;1;Spese correnti;3;Acquisto di beni e servizi;2;Acquisto di servizi;15;Contratti di servizio pubblico;15;Contratti di servizio per l'illuminazione pubblica;02/10/2018
3062;4;9999999;45,32;1.173,14;ENEL ENERGIA SPA;7376631C76;Fatt.n. 004811536897  del 06/09/2018 AGOSTO 2018 - CONSUMI ILLUMINAZIONE PUBBLICA;01/10/2018;3544;0;154;1;Spese correnti;3;Acquisto di beni e servizi;2;Acquisto di servizi;15;Contratti di servizio pubblico;15;Contratti di servizio per l'illuminazione pubblica;02/10/2018
3062;5;9999999;92,84;1.173,14;ENEL ENERGIA SPA;7376631C76;Fatt.n. 004811556260  del 06/09/2018 AGOSTO 2018 - CONSUMI ILLUMINAZIONE PUBBLICA;01/10/2018;3544;0;154;1;Spese correnti;3;Acquisto di beni e servizi;2;Acquisto di servizi;15;Contratti di servizio pubblico;15;Contratti di servizio per l'illuminazione pubblica;02/10/2018
3062;6;9999999;155,28;1.173,14;ENEL ENERGIA SPA;7376631C76;Fatt.n. 004811525353  del 06/09/2018 AGOSTO 2018 - CONSUMI ILLUMINAZIONE PUBBLICA;01/10/2018;3544;0;154;1;Spese correnti;3;Acquisto di beni e servizi;2;Acquisto di servizi;15;Contratti di servizio pubblico;15;Contratti di servizio per l'illuminazione pubblica;02/10/2018
3062;7;9999999;173,84;1.173,14;ENEL ENERGIA SPA;7376631C76;Fatt.n. 004811525351  del 06/09/2018 AGOSTO 2018 - CONSUMI ILLUMINAZIONE PUBBLICA;01/10/2018;3544;0;154;1;Spese correnti;3;Acquisto di beni e servizi;2;Acquisto di servizi;15;Contratti di servizio pubblico;15;Contratti di servizio per l'illuminazione pubblica;02/10/2018
3062;8;9999999;187,47;1.173,14;ENEL ENERGIA SPA;7376631C76;Fatt.n. 004811505186  del 06/09/2018 AGOSTO 2018 - CONSUMI ILLUMINAZIONE PUBBLICA;01/10/2018;3544;0;154;1;Spese correnti;3;Acquisto di beni e servizi;2;Acquisto di servizi;15;Contratti di servizio pubblico;15;Contratti di servizio per l'illuminazione pubblica;02/10/2018
3062;9;9999999;212,61;1.173,14;ENEL ENERGIA SPA;7376631C76;Fatt.n. 004811552248  del 06/09/2018 AGOSTO 2018 - CONSUMI ILLUMINAZIONE PUBBLICA;01/10/2018;3544;0;154;1;Spese correnti;3;Acquisto di beni e servizi;2;Acquisto di servizi;15;Contratti di servizio pubblico;15;Contratti di servizio per l'illuminazione pubblica;02/10/2018
3062;10;9999999;233,91;1.173,14;ENEL ENERGIA SPA;7376631C76;Fatt.n. 004811556257  del 06/09/2018 AGOSTO 2018 - CONSUMI ILLUMINAZIONE PUBBLICA;01/10/2018;3544;0;154;1;Spese correnti;3;Acquisto di beni e servizi;2;Acquisto di servizi;15;Contratti di servizio pubblico;15;Contratti di servizio per l'illuminazione pubblica;02/10/2018
3063;1;9999999;13,85;1.599,05;ENEL ENERGIA SPA;7376631C76;Fatt.n. 004811552250  del 06/09/2018 AGOSTO 2018 - CONSUMI ILLUMINAZIONE PUBBLICA;01/10/2018;3544;0;154;1;Spese correnti;3;Acquisto di beni e servizi;2;Acquisto di servizi;15;Contratti di servizio pubblico;15;Contratti di servizio per l'illuminazione pubblica;02/10/2018
3063;2;9999999;29,72;1.599,05;ENEL ENERGIA SPA;7376631C76;Fatt.n. 004811505187  del 06/09/2018 AGOSTO 2018 - CONSUMI ILLUMINAZIONE PUBBLICA;01/10/2018;3544;0;154;1;Spese correnti;3;Acquisto di beni e servizi;2;Acquisto di servizi;15;Contratti di servizio pubblico;15;Contratti di servizio per l'illuminazione pubblica;02/10/2018
3063;3;9999999;73,49;1.599,05;ENEL ENERGIA SPA;7376631C76;Fatt.n. 004811564438  del 06/09/2018 AGOSTO 2018 - CONSUMI ILLUMONAZIONE PUBBLICA;01/10/2018;3544;0;154;1;Spese correnti;3;Acquisto di beni e servizi;2;Acquisto di servizi;15;Contratti di servizio pubblico;15;Contratti di servizio per l'illuminazione pubblica;02/10/2018
3063;4;9999999;75,7;1.599,05;ENEL ENERGIA SPA;7376631C76;Fatt.n. 004811505188  del 06/09/2018 AGOSTO 2018 - CONSUMI ILLUMINAZIONE PUBBLICA;01/10/2018;3544;0;154;1;Spese correnti;3;Acquisto di beni e servizi;2;Acquisto di servizi;15;Contratti di servizio pubblico;15;Contratti di servizio per l'illuminazione pubblica;02/10/2018
3063;5;9999999;101,35;1.599,05;ENEL ENERGIA SPA;7376631C76;Fatt.n. 004811536893  del 06/09/2018 AGOSTO 2018 - CONSUMI ILLUMINAZIONE PUBBLICA;01/10/2018;3544;0;154;1;Spese correnti;3;Acquisto di beni e servizi;2;Acquisto di servizi;15;Contratti di servizio pubblico;15;Contratti di servizio per l'illuminazione pubblica;02/10/2018
3063;6;9999999;110,76;1.599,05;ENEL ENERGIA SPA;7376631C76;Fatt.n. 004811525352  del 06/09/2018 AGOSTO 2018 - CONSUMI ILLUMINAZIONE PUBBLICA;01/10/2018;3544;0;154;1;Spese correnti;3;Acquisto di beni e servizi;2;Acquisto di servizi;15;Contratti di servizio pubblico;15;Contratti di servizio per l'illuminazione pubblica;02/10/2018
3063;7;9999999;113,14;1.599,05;ENEL ENERGIA SPA;7376631C76;Fatt.n. 004811552238  del 06/09/2018 AGOSTO 2018 - CONSUMI ILLUMINAZIONE PUBBLICA;01/10/2018;3544;0;154;1;Spese correnti;3;Acquisto di beni e servizi;2;Acquisto di servizi;15;Contratti di servizio pubblico;15;Contratti di servizio per l'illuminazione pubblica;02/10/2018
3063;8;9999999;129,55;1.599,05;ENEL ENERGIA SPA;7376631C76;Fatt.n. 004811505181  del 06/09/2018 AGOSTO 2018 - CONSUMI ILLUMINAZIONE PUBBLICA;01/10/2018;3544;0;154;1;Spese correnti;3;Acquisto di beni e servizi;2;Acquisto di servizi;15;Contratti di servizio pubblico;15;Contratti di servizio per l'illuminazione pubblica;02/10/2018
3063;9;9999999;131,67;1.599,05;ENEL ENERGIA SPA;7376631C76;Fatt.n. 004811505697  del 06/09/2018 AGOSTO 2018 - CONSUMI ILLUMINAZIONE PUBBLICA;01/10/2018;3544;0;154;1;Spese correnti;3;Acquisto di beni e servizi;2;Acquisto di servizi;15;Contratti di servizio pubblico;15;Contratti di servizio per l'illuminazione pubblica;02/10/2018
3063;10;9999999;819,82;1.599,05;ENEL ENERGIA SPA;7376631C76;Fatt.n. 004811505185  del 06/09/2018 AGOSTO 2018 - CONSUMI ILLUMINAZIONE PUBBLICA;01/10/2018;3544;0;154;1;Spese correnti;3;Acquisto di beni e servizi;2;Acquisto di servizi;15;Contratti di servizio pubblico;15;Contratti di servizio per l'illuminazione pubblica;02/10/2018
3064;1;9999999;4,2;1.216,15;ENEL ENERGIA SPA;7376631C76;Fatt.n. 004811505180  del 06/09/2018 AGOSTO 2018 - CONSUMI ILLUMINAZIONE PUBBLICA;01/10/2018;3544;0;154;1;Spese correnti;3;Acquisto di beni e servizi;2;Acquisto di servizi;15;Contratti di servizio pubblico;15;Contratti di servizio per l'illuminazione pubblica;02/10/2018
3064;2;9999999;6,59;1.216,15;ENEL ENERGIA SPA;7376631C76;Fatt.n. 004811505175  del 06/09/2018 AGOSTO 2018 - CONSUMI ILLUMINAZIONE PUBBLICA;01/10/2018;3544;0;154;1;Spese correnti;3;Acquisto di beni e servizi;2;Acquisto di servizi;15;Contratti di servizio pubblico;15;Contratti di servizio per l'illuminazione pubblica;02/10/2018
3064;3;9999999;10,92;1.216,15;ENEL ENERGIA SPA;7376631C76;Fatt.n. 004811552259  del 06/09/2018 AGOSTO 2018 - CONSUMI ILLUMINAZIONE PUBBLICA;01/10/2018;3544;0;154;1;Spese correnti;3;Acquisto di beni e servizi;2;Acquisto di servizi;15;Contratti di servizio pubblico;15;Contratti di servizio per l'illuminazione pubblica;02/10/2018
3064;4;9999999;11,33;1.216,15;ENEL ENERGIA SPA;7376631C76;Fatt.n. 004811564443  del 06/09/2018 AGOSTO 2018 - CONSUMI ILLUMINAZIONE PUBBLICA;01/10/2018;3544;0;154;1;Spese correnti;3;Acquisto di beni e servizi;2;Acquisto di servizi;15;Contratti di servizio pubblico;15;Contratti di servizio per l'illuminazione pubblica;02/10/2018
3064;5;9999999;14,71;1.216,15;ENEL ENERGIA SPA;7376631C76;Fatt.n. 004811552236  del 06/09/2018 AGOSTO 2018 - CONSUMI ILLUMINAZIONE PUBBLICA;01/10/2018;3544;0;154;1;Spese correnti;3;Acquisto di beni e servizi;2;Acquisto di servizi;15;Contratti di servizio pubblico;15;Contratti di servizio per l'illuminazione pubblica;02/10/2018
3064;6;9999999;25,94;1.216,15;ENEL ENERGIA SPA;7376631C76;Fatt.n. 004811510871  del 06/09/2018 AGOSTO 2018 - CONSUMI ILLUMINAZIONE PUBBLICA;01/10/2018;3544;0;154;1;Spese correnti;3;Acquisto di beni e servizi;2;Acquisto di servizi;15;Contratti di servizio pubblico;15;Contratti di servizio per l'illuminazione pubblica;02/10/2018
3064;7;9999999;101,55;1.216,15;ENEL ENERGIA SPA;7376631C76;Fatt.n. 004811541422  del 06/09/2018 AGOSTO 2018 - CONSUMI ILLUMINAZIONE PUBBLICA;01/10/2018;3544;0;154;1;Spese correnti;3;Acquisto di beni e servizi;2;Acquisto di servizi;15;Contratti di servizio pubblico;15;Contratti di servizio per l'illuminazione pubblica;02/10/2018
3064;8;9999999;247,72;1.216,15;ENEL ENERGIA SPA;7376631C76;Fatt.n. 004811552246  del 06/09/2018 AGOSTO 2018 - CONSUMI ILLUMINAZIONE PUBBLICA;01/10/2018;3544;0;154;1;Spese correnti;3;Acquisto di beni e servizi;2;Acquisto di servizi;15;Contratti di servizio pubblico;15;Contratti di servizio per l'illuminazione pubblica;02/10/2018
3064;9;9999999;381,34;1.216,15;ENEL ENERGIA SPA;7376631C76;Fatt.n. 004811511823  del 06/09/2018 AGOSTO 2018 - CONSUMI ILLUMINAZIONE PUBBLICA;01/10/2018;3544;0;154;1;Spese correnti;3;Acquisto di beni e servizi;2;Acquisto di servizi;15;Contratti di servizio pubblico;15;Contratti di servizio per l'illuminazione pubblica;02/10/2018
3064;10;9999999;411,85;1.216,15;ENEL ENERGIA SPA;7376631C76;Fatt.n. 004811552240  del 06/09/2018 AGOSTO 2018 - CONSUMI ILLUMINAZIONE PUBBLICA;01/10/2018;3544;0;154;1;Spese correnti;3;Acquisto di beni e servizi;2;Acquisto di servizi;15;Contratti di servizio pubblico;15;Contratti di servizio per l'illuminazione pubblica;02/10/2018
3065;1;9999999;5,29;1.114,42;ENEL ENERGIA SPA;7376631C76;Fatt.n. 004811552219  del 06/09/2018 AGOSTO 2018 - CONSUMI ILLUMINAZIONE PUBBLICA;01/10/2018;3544;0;154;1;Spese correnti;3;Acquisto di beni e servizi;2;Acquisto di servizi;15;Contratti di servizio pubblico;15;Contratti di servizio per l'illuminazione pubblica;02/10/2018
3065;2;9999999;5,65;1.114,42;ENEL ENERGIA SPA;7376631C76;Fatt.n. 004811536894  del 06/09/2018 AGOSTO 2018 - CONSUMI ILLUMINAZIONE PUBBLICA;01/10/2018;3544;0;154;1;Spese correnti;3;Acquisto di beni e servizi;2;Acquisto di servizi;15;Contratti di servizio pubblico;15;Contratti di servizio per l'illuminazione pubblica;02/10/2018
3065;3;9999999;33,46;1.114,42;ENEL ENERGIA SPA;7376631C76;Fatt.n. 004811514245  del 06/09/2018 AGOSTO 2018 - CONSUMI ILLUMINAZIONE PUBBLICA;01/10/2018;3544;0;154;1;Spese correnti;3;Acquisto di beni e servizi;2;Acquisto di servizi;15;Contratti di servizio pubblico;15;Contratti di servizio per l'illuminazione pubblica;02/10/2018
3065;4;9999999;36,26;1.114,42;ENEL ENERGIA SPA;7376631C76;Fatt.n. 004811556259  del 06/09/2018 AGOSTO 2018 - CONSUMI ILLUMINAZIONE PUBBLICA;01/10/2018;3544;0;154;1;Spese correnti;3;Acquisto di beni e servizi;2;Acquisto di servizi;15;Contratti di servizio pubblico;15;Contratti di servizio per l'illuminazione pubblica;02/10/2018
3065;5;9999999;36,26;1.114,42;ENEL ENERGIA SPA;7376631C76;Fatt.n. 004811552249  del 06/09/2018 AGOSTO 2018 - CONSUMI ILLUMINAZIONE PUBBLICA;01/10/2018;3544;0;154;1;Spese correnti;3;Acquisto di beni e servizi;2;Acquisto di servizi;15;Contratti di servizio pubblico;15;Contratti di servizio per l'illuminazione pubblica;02/10/2018
3065;6;9999999;68,32;1.114,42;ENEL ENERGIA SPA;7376631C76;Fatt.n. 004811552220  del 06/09/2018 AGOSTO 2018 - CONSUMI ILLUMINAZIONE PUBBLICA;01/10/2018;3544;0;154;1;Spese correnti;3;Acquisto di beni e servizi;2;Acquisto di servizi;15;Contratti di servizio pubblico;15;Contratti di servizio per l'illuminazione pubblica;02/10/2018
3065;7;9999999;97,36;1.114,42;ENEL ENERGIA SPA;7376631C76;Fatt.n. 004811536902  del 06/09/2018 AGOSTO 2018 - CONSUMI ILLUMINAZIONE PUBBLICA;01/10/2018;3544;0;154;1;Spese correnti;3;Acquisto di beni e servizi;2;Acquisto di servizi;15;Contratti di servizio pubblico;15;Contratti di servizio per l'illuminazione pubblica;02/10/2018
3065;8;9999999;141,78;1.114,42;ENEL ENERGIA SPA;7376631C76;Fatt.n. 004811552243  del 06/09/2018 AGOSTO 2018 - CONSUMI ILLUMINAZIONE PUBBLICA;01/10/2018;3544;0;154;1;Spese correnti;3;Acquisto di beni e servizi;2;Acquisto di servizi;15;Contratti di servizio pubblico;15;Contratti di servizio per l'illuminazione pubblica;02/10/2018
3065;9;9999999;183,73;1.114,42;ENEL ENERGIA SPA;7376631C76;Fatt.n. 004811514246  del 06/09/2018 AGOSTO 2018 - CONSUMI ILLUMINAZIONE PUBBLICA;01/10/2018;3544;0;154;1;Spese correnti;3;Acquisto di beni e servizi;2;Acquisto di servizi;15;Contratti di servizio pubblico;15;Contratti di servizio per l'illuminazione pubblica;02/10/2018
3065;10;9999999;506,31;1.114,42;ENEL ENERGIA SPA;7376631C76;Fatt.n. 004811535107  del 06/09/2018 AGOSTO 2018 - CONSUMI ILLUMINAZIONE PUBBLICA;01/10/2018;3544;0;154;1;Spese correnti;3;Acquisto di beni e servizi;2;Acquisto di servizi;15;Contratti di servizio pubblico;15;Contratti di servizio per l'illuminazione pubblica;02/10/2018
3066;1;9999999;11,58;1.200,96;ENEL ENERGIA SPA;7376631C76;Fatt.n. 004811505699  del 06/09/2018 AGOSTO 2018 - CONSUMI ILLUMINAZIONE PUBBLICA;01/10/2018;3544;0;154;1;Spese correnti;3;Acquisto di beni e servizi;2;Acquisto di servizi;15;Contratti di servizio pubblico;15;Contratti di servizio per l'illuminazione pubblica;02/10/2018
3066;2;9999999;22,53;1.200,96;ENEL ENERGIA SPA;7376631C76;Fatt.n. 004811552256  del 06/09/2018 AGOSTO 2018 - CONSUMI ILLUMINAZIONE PUBBLICA;01/10/2018;3544;0;154;1;Spese correnti;3;Acquisto di beni e servizi;2;Acquisto di servizi;15;Contratti di servizio pubblico;15;Contratti di servizio per l'illuminazione pubblica;02/10/2018
3066;3;9999999;62,11;1.200,96;ENEL ENERGIA SPA;7376631C76;Fatt.n. 004811511822  del 06/09/2018 AGOSTO 2018 - CONSUMI ILLUMINAZIONE PUBBLICA;01/10/2018;3544;0;154;1;Spese correnti;3;Acquisto di beni e servizi;2;Acquisto di servizi;15;Contratti di servizio pubblico;15;Contratti di servizio per l'illuminazione pubblica;02/10/2018
3066;4;9999999;78,78;1.200,96;ENEL ENERGIA SPA;7376631C76;Fatt.n. 004811564439  del 06/09/2018 AGOSTO 2018 - CONSUMI ILLUMINAZIONE PUBBLICA;01/10/2018;3544;0;154;1;Spese correnti;3;Acquisto di beni e servizi;2;Acquisto di servizi;15;Contratti di servizio pubblico;15;Contratti di servizio per l'illuminazione pubblica;02/10/2018
3066;5;9999999;82,53;1.200,96;ENEL ENERGIA SPA;7376631C76;Fatt.n. 004811519948  del 06/09/2018 AGOSTO 2018 - CONSUMI ILLUMINAZIONE PUBBLICA;01/10/2018;3544;0;154;1;Spese correnti;3;Acquisto di beni e servizi;2;Acquisto di servizi;15;Contratti di servizio pubblico;15;Contratti di servizio per l'illuminazione pubblica;02/10/2018
3066;6;9999999;106,21;1.200,96;ENEL ENERGIA SPA;7376631C76;Fatt.n. 004811524977  del 06/09/2018 AGOSTO 2018 - CONSUMI ILLUMINAZIONE PUBBLICA;01/10/2018;3544;0;154;1;Spese correnti;3;Acquisto di beni e servizi;2;Acquisto di servizi;15;Contratti di servizio pubblico;15;Contratti di servizio per l'illuminazione pubblica;02/10/2018
3066;7;9999999;126,21;1.200,96;ENEL ENERGIA SPA;7376631C76;Fatt.n. 004811552232  del 06/09/2018 AGOSTO 2018 - CONSUMI ILLUMINAZIONE PUBBLICA;01/10/2018;3544;0;154;1;Spese correnti;3;Acquisto di beni e servizi;2;Acquisto di servizi;15;Contratti di servizio pubblico;15;Contratti di servizio per l'illuminazione pubblica;02/10/2018
3066;8;9999999;254,19;1.200,96;ENEL ENERGIA SPA;7376631C76;Fatt.n. 004811552237  del 06/09/2018 AGOSTO 2018 - CONSUMI ILLUMINAZIONE PUBBLICA;01/10/2018;3544;0;154;1;Spese correnti;3;Acquisto di beni e servizi;2;Acquisto di servizi;15;Contratti di servizio pubblico;15;Contratti di servizio per l'illuminazione pubblica;02/10/2018
3066;9;9999999;456,82;1.200,96;ENEL ENERGIA SPA;7376631C76;Fatt.n. 004811556262  del 06/09/2018 AGOSTO 2018 - CONSUMI ILLUMINAZIONE PUBBLICA;01/10/2018;3544;0;154;1;Spese correnti;3;Acquisto di beni e servizi;2;Acquisto di servizi;15;Contratti di servizio pubblico;15;Contratti di servizio per l'illuminazione pubblica;02/10/2018
3067;1;9999999;7,82;844,31;ENEL ENERGIA SPA;7376631C76;Fatt.n. 004811541424  del 06/09/2018 AGOSTO 2018 - CONSUMI ILLUMINAZIONE PUBBLICA;01/10/2018;3544;0;154;1;Spese correnti;3;Acquisto di beni e servizi;2;Acquisto di servizi;15;Contratti di servizio pubblico;15;Contratti di servizio per l'illuminazione pubblica;02/10/2018
3067;2;9999999;23,73;844,31;ENEL ENERGIA SPA;7376631C76;Fatt.n. 004811564435  del 06/09/2018 AGOSTO 2018 - CONSUMI ILLUMINAZIONE PUBBLICA;01/10/2018;3544;0;154;1;Spese correnti;3;Acquisto di beni e servizi;2;Acquisto di servizi;15;Contratti di servizio pubblico;15;Contratti di servizio per l'illuminazione pubblica;02/10/2018
3067;3;9999999;41,86;844,31;ENEL ENERGIA SPA;7376631C76;Fatt.n. 004811541420  del 06/09/2018 AGOSTO 2018 - CONSUMI ILLUMINAZIONE PUBBLICA;01/10/2018;3544;0;154;1;Spese correnti;3;Acquisto di beni e servizi;2;Acquisto di servizi;15;Contratti di servizio pubblico;15;Contratti di servizio per l'illuminazione pubblica;02/10/2018
3067;4;9999999;42,13;844,31;ENEL ENERGIA SPA;7376631C76;Fatt.n. 004811536890  del 06/09/2018 AGOSTO 2018 - CONSUMI ILLUMINAZIONE PUBBLICA;01/10/2018;3544;0;154;1;Spese correnti;3;Acquisto di beni e servizi;2;Acquisto di servizi;15;Contratti di servizio pubblico;15;Contratti di servizio per l'illuminazione pubblica;02/10/2018
3067;5;9999999;55,86;844,31;ENEL ENERGIA SPA;7376631C76;Fatt.n. 004811556264  del 06/09/2018 AGOSTO 2018 - CONSUMI ILLUMINAZIONE PUBBLICA;01/10/2018;3544;0;154;1;Spese correnti;3;Acquisto di beni e servizi;2;Acquisto di servizi;15;Contratti di servizio pubblico;15;Contratti di servizio per l'illuminazione pubblica;02/10/2018
3067;6;9999999;66,8;844,31;ENEL ENERGIA SPA;7376631C76;Fatt.n. 004811524973  del 06/09/2018 AGOSTO 2018 - CONSUMI ILLUMINAZIONE PUBBLICA;01/10/2018;3544;0;154;1;Spese correnti;3;Acquisto di beni e servizi;2;Acquisto di servizi;15;Contratti di servizio pubblico;15;Contratti di servizio per l'illuminazione pubblica;02/10/2018
3067;7;9999999;119,45;844,31;ENEL ENERGIA SPA;7376631C76;Fatt.n. 004811505179  del 06/09/2018 AGOSTO 2018 - CONSUMI ILLUMINAZIONE PUBBLICA;01/10/2018;3544;0;154;1;Spese correnti;3;Acquisto di beni e servizi;2;Acquisto di servizi;15;Contratti di servizio pubblico;15;Contratti di servizio per l'illuminazione pubblica;02/10/2018
3067;8;9999999;139,87;844,31;ENEL ENERGIA SPA;7376631C76;Fatt.n. 004811552225  del 06/09/2018 AGOSTO 2018 - CONSUMI ILLUMINAZIONE PUBBLICA;01/10/2018;3544;0;154;1;Spese correnti;3;Acquisto di beni e servizi;2;Acquisto di servizi;15;Contratti di servizio pubblico;15;Contratti di servizio per l'illuminazione pubblica;02/10/2018
3067;9;9999999;346,79;844,31;ENEL ENERGIA SPA;7376631C76;Fatt.n. 004811535108  del 06/09/2018 AGOSTO 2018 - CONSUMI ILLUMINAZIONE PUBBLICA;01/10/2018;3544;0;154;1;Spese correnti;3;Acquisto di beni e servizi;2;Acquisto di servizi;15;Contratti di servizio pubblico;15;Contratti di servizio per l'illuminazione pubblica;02/10/2018
3068;1;9999999;20,86;1.580,63;ENEL ENERGIA SPA;7376631C76;Fatt.n. 004811552253  del 06/09/2018 AGOSTO 2018 - CONSUMI ILLUMINAZIONE PUBBLICA;01/10/2018;3544;0;154;1;Spese correnti;3;Acquisto di beni e servizi;2;Acquisto di servizi;15;Contratti di servizio pubblico;15;Contratti di servizio per l'illuminazione pubblica;02/10/2018
3068;2;9999999;45,75;1.580,63;ENEL ENERGIA SPA;7376631C76;Fatt.n. 004811552218  del 06/09/2018 AGOSTO 2018 - CONSUMI ILLUMINAZIONE PUBBLICA;01/10/2018;3544;0;154;1;Spese correnti;3;Acquisto di beni e servizi;2;Acquisto di servizi;15;Contratti di servizio pubblico;15;Contratti di servizio per l'illuminazione pubblica;02/10/2018
3068;3;9999999;82,33;1.580,63;ENEL ENERGIA SPA;7376631C76;Fatt.n. 004811524976  del 06/09/2018 AGOSTO 2018 - CONSUMI ILLUMINAZIONE PUBBLICA;01/10/2018;3544;0;154;1;Spese correnti;3;Acquisto di beni e servizi;2;Acquisto di servizi;15;Contratti di servizio pubblico;15;Contratti di servizio per l'illuminazione pubblica;02/10/2018
3068;4;9999999;101,94;1.580,63;ENEL ENERGIA SPA;7376631C76;Fatt.n. 004811524978  del 06/09/2018 AGOSTO 2018 - CONSUMI ILLUMINAZIONE PUBBLICA;01/10/2018;3544;0;154;1;Spese correnti;3;Acquisto di beni e servizi;2;Acquisto di servizi;15;Contratti di servizio pubblico;15;Contratti di servizio per l'illuminazione pubblica;02/10/2018
3068;5;9999999;108,04;1.580,63;ENEL ENERGIA SPA;7376631C76;Fatt.n. 004811536892  del 06/09/2018 AGOSTO 2018 - CONSUMI ILLUMINAZIONE PUBBLICA;01/10/2018;3544;0;154;1;Spese correnti;3;Acquisto di beni e servizi;2;Acquisto di servizi;15;Contratti di servizio pubblico;15;Contratti di servizio per l'illuminazione pubblica;02/10/2018
3068;6;9999999;129,16;1.580,63;ENEL ENERGIA SPA;7376631C76;Fatt.n. 004811552241  del 06/09/2018 AGOSTO 2018 - CONSUMI ILLUMINAZIONE PUBBLICA;01/10/2018;3544;0;154;1;Spese correnti;3;Acquisto di beni e servizi;2;Acquisto di servizi;15;Contratti di servizio pubblico;15;Contratti di servizio per l'illuminazione pubblica;02/10/2018
3068;7;9999999;139,49;1.580,63;ENEL ENERGIA SPA;7376631C76;Fatt.n. 004811552217  del 06/09/2018 AGOSTO 2018 - CONSUMI ILLUMINAZIONE PUBBLICA;01/10/2018;3544;0;154;1;Spese correnti;3;Acquisto di beni e servizi;2;Acquisto di servizi;15;Contratti di servizio pubblico;15;Contratti di servizio per l'illuminazione pubblica;02/10/2018
3068;8;9999999;189,99;1.580,63;ENEL ENERGIA SPA;7376631C76;Fatt.n. 004811536898  del 06/09/2018 AGOSTO 2018 - CONSUMI ILLUMINAZIONE PUBBLICA;01/10/2018;3544;0;154;1;Spese correnti;3;Acquisto di beni e servizi;2;Acquisto di servizi;15;Contratti di servizio pubblico;15;Contratti di servizio per l'illuminazione pubblica;02/10/2018
3068;9;9999999;325,46;1.580,63;ENEL ENERGIA SPA;7376631C76;Fatt.n. 004811505700  del 06/09/2018 AGOSTO 2018 - CONSUMI ILLUMINAZIONE PUBBLICA;01/10/2018;3544;0;154;1;Spese correnti;3;Acquisto di beni e servizi;2;Acquisto di servizi;15;Contratti di servizio pubblico;15;Contratti di servizio per l'illuminazione pubblica;02/10/2018
3068;10;9999999;437,61;1.580,63;ENEL ENERGIA SPA;7376631C76;Fatt.n. 004811552235  del 06/09/2018 AGOSTO 2018 - CONSUMI ILLUMINAZIONE PUBBLICA;01/10/2018;3544;0;154;1;Spese correnti;3;Acquisto di beni e servizi;2;Acquisto di servizi;15;Contratti di servizio pubblico;15;Contratti di servizio per l'illuminazione pubblica;02/10/2018
3069;1;9999999;13,03;962,69;ENEL ENERGIA SPA;7376631C76;Fatt.n. 004811505176  del 06/09/2018 AGOSTO 2018 - CONSUMI ILLUMINAZIONE PUBBLICA;01/10/2018;3544;0;154;1;Spese correnti;3;Acquisto di beni e servizi;2;Acquisto di servizi;15;Contratti di servizio pubblico;15;Contratti di servizio per l'illuminazione pubblica;02/10/2018
3069;2;9999999;17,7;962,69;ENEL ENERGIA SPA;7376631C76;Fatt.n. 004811541428  del 06/09/2018 AGOSTO 2018 - CONSUMI ILLUMINAZIONE PUBBLICA;01/10/2018;3544;0;154;1;Spese correnti;3;Acquisto di beni e servizi;2;Acquisto di servizi;15;Contratti di servizio pubblico;15;Contratti di servizio per l'illuminazione pubblica;02/10/2018
3069;3;9999999;18,14;962,69;ENEL ENERGIA SPA;7376631C76;Fatt.n. 004811536896  del 06/09/2018 AGOSTO 2018 - CONSUMI ILLUMINAZIONE PUBBLICA;01/10/2018;3544;0;154;1;Spese correnti;3;Acquisto di beni e servizi;2;Acquisto di servizi;15;Contratti di servizio pubblico;15;Contratti di servizio per l'illuminazione pubblica;02/10/2018
3069;4;9999999;41,86;962,69;ENEL ENERGIA SPA;7376631C76;Fatt.n. 004811611187  del 12/09/2018 AGOSTO 2018 - CONSUMI ILLUMINAZIONE PUBBLICA;01/10/2018;3544;0;154;1;Spese correnti;3;Acquisto di beni e servizi;2;Acquisto di servizi;15;Contratti di servizio pubblico;15;Contratti di servizio per l'illuminazione pubblica;02/10/2018
3069;5;9999999;55,33;962,69;ENEL ENERGIA SPA;7376631C76;Fatt.n. 004811524972  del 06/09/2018 AGOSTO 2018 - CONSUMI ILLUMINAZIONE PUBBLICA;01/10/2018;3544;0;154;1;Spese correnti;3;Acquisto di beni e servizi;2;Acquisto di servizi;15;Contratti di servizio pubblico;15;Contratti di servizio per l'illuminazione pubblica;02/10/2018
3069;6;9999999;62,99;962,69;ENEL ENERGIA SPA;7376631C76;Fatt.n. 004811511824  del 06/09/2018 AGOSTO 2018 - CONSUMI ILLUMINAZIONE PUBBLICA;01/10/2018;3544;0;154;1;Spese correnti;3;Acquisto di beni e servizi;2;Acquisto di servizi;15;Contratti di servizio pubblico;15;Contratti di servizio per l'illuminazione pubblica;02/10/2018
3069;7;9999999;83,7;962,69;ENEL ENERGIA SPA;7376631C76;Fatt.n. 004811611190  del 12/09/2018 AGOSTO 2018 - CONSUMI ILLUMINAZIONE PUBBLICA;01/10/2018;3544;0;154;1;Spese correnti;3;Acquisto di beni e servizi;2;Acquisto di servizi;15;Contratti di servizio pubblico;15;Contratti di servizio per l'illuminazione pubblica;02/10/2018
3069;8;9999999;169,99;962,69;ENEL ENERGIA SPA;7376631C76;Fatt.n. 004811552228  del 06/09/2018 AGOSTO 2018 - CONSUMI ILLUMINAZIONE PUBBLICA;01/10/2018;3544;0;154;1;Spese correnti;3;Acquisto di beni e servizi;2;Acquisto di servizi;15;Contratti di servizio pubblico;15;Contratti di servizio per l'illuminazione pubblica;02/10/2018
3069;9;9999999;226,9;962,69;ENEL ENERGIA SPA;7376631C76;Fatt.n. 004811505696  del 06/09/2018 AGOSTO 2018 - CONSUMI ILLUMINAZIONE PUBBLICA;01/10/2018;3544;0;154;1;Spese correnti;3;Acquisto di beni e servizi;2;Acquisto di servizi;15;Contratti di servizio pubblico;15;Contratti di servizio per l'illuminazione pubblica;02/10/2018
3069;10;9999999;273,05;962,69;ENEL ENERGIA SPA;7376631C76;Fatt.n. 004811552255  del 06/09/2018 AGOSTO 2018 - CONSUMI ILLUMINAZIONE PUBBLICA;01/10/2018;3544;0;154;1;Spese correnti;3;Acquisto di beni e servizi;2;Acquisto di servizi;15;Contratti di servizio pubblico;15;Contratti di servizio per l'illuminazione pubblica;02/10/2018
3070;1;9999999;2,5;1.236,24;ENEL ENERGIA SPA;7376631C76;Fatt.n. 004811510870  del 06/09/2018 AGOSTO 2018 - CONSUMI ILLUMINAZIONE PUBBLICA;01/10/2018;3544;0;154;1;Spese correnti;3;Acquisto di beni e servizi;2;Acquisto di servizi;15;Contratti di servizio pubblico;15;Contratti di servizio per l'illuminazione pubblica;02/10/2018
3070;2;9999999;3,99;1.236,24;ENEL ENERGIA SPA;7376631C76;Fatt.n. 004811505173  del 06/09/2018 AGOSTO 2018 - CONSUMI ILLUMINAZIONE PUBBLICA;01/10/2018;3544;0;154;1;Spese correnti;3;Acquisto di beni e servizi;2;Acquisto di servizi;15;Contratti di servizio pubblico;15;Contratti di servizio per l'illuminazione pubblica;02/10/2018
3070;3;9999999;4,2;1.236,24;ENEL ENERGIA SPA;7376631C76;Fatt.n. 004811524979  del 06/09/2018 AGOSTO 2018 - CONSUMI ILLUMINAZIONE PUBBLICA;01/10/2018;3544;0;154;1;Spese correnti;3;Acquisto di beni e servizi;2;Acquisto di servizi;15;Contratti di servizio pubblico;15;Contratti di servizio per l'illuminazione pubblica;02/10/2018
3070;4;9999999;20,24;1.236,24;ENEL ENERGIA SPA;7376631C76;Fatt.n. 004811552242  del 06/09/2018 AGOSTO 2018 - CONSUMI ILLUMINAZIONE PUBBLICA;01/10/2018;3544;0;154;1;Spese correnti;3;Acquisto di beni e servizi;2;Acquisto di servizi;15;Contratti di servizio pubblico;15;Contratti di servizio per l'illuminazione pubblica;02/10/2018
3070;5;9999999;48,48;1.236,24;ENEL ENERGIA SPA;7376631C76;Fatt.n. 004811552221  del 06/09/2018 AGOSTO 2018 - CONSUMI ILLUMINAZIONE PUBBLICA;01/10/2018;3544;0;154;1;Spese correnti;3;Acquisto di beni e servizi;2;Acquisto di servizi;15;Contratti di servizio pubblico;15;Contratti di servizio per l'illuminazione pubblica;02/10/2018
3070;6;9999999;63,57;1.236,24;ENEL ENERGIA SPA;7376631C76;Fatt.n. 004811564440  del 06/09/2018 AGOSTO 2018 - CONSUMI ILLUMINAZIONE PUBBLICA;01/10/2018;3544;0;154;1;Spese correnti;3;Acquisto di beni e servizi;2;Acquisto di servizi;15;Contratti di servizio pubblico;15;Contratti di servizio per l'illuminazione pubblica;02/10/2018
3070;7;9999999;125,78;1.236,24;ENEL ENERGIA SPA;7376631C76;Fatt.n. 004811541419  del 06/09/2018 AGOSTO 2018 - CONSUMI ILLUMINAZIONE PUBBLICA;01/10/2018;3544;0;154;1;Spese correnti;3;Acquisto di beni e servizi;2;Acquisto di servizi;15;Contratti di servizio pubblico;15;Contratti di servizio per l'illuminazione pubblica;02/10/2018
3070;8;9999999;214,92;1.236,24;ENEL ENERGIA SPA;7376631C76;Fatt.n. 004811552230  del 06/09/2018 AGOSTO 2018 - CONSUMI ILLUMINAZIONE PUBBLICA;01/10/2018;3544;0;154;1;Spese correnti;3;Acquisto di beni e servizi;2;Acquisto di servizi;15;Contratti di servizio pubblico;15;Contratti di servizio per l'illuminazione pubblica;02/10/2018
3070;9;9999999;335,59;1.236,24;ENEL ENERGIA SPA;7376631C76;Fatt.n. 004811535111  del 06/09/2018 AGOSTO 2018 - CONSUMI ILLUMINAZIONE PUBBLICA;01/10/2018;3544;0;154;1;Spese correnti;3;Acquisto di beni e servizi;2;Acquisto di servizi;15;Contratti di servizio pubblico;15;Contratti di servizio per l'illuminazione pubblica;02/10/2018
3070;10;9999999;416,97;1.236,24;ENEL ENERGIA SPA;7376631C76;Fatt.n. 004811564436  del 06/09/2018 AGOSTO 2018 - CONSUMI ILLUMINAZIONE PUBBLICA;01/10/2018;3544;0;154;1;Spese correnti;3;Acquisto di beni e servizi;2;Acquisto di servizi;15;Contratti di servizio pubblico;15;Contratti di servizio per l'illuminazione pubblica;02/10/2018
3071;1;9999999;7,22;1.804,31;ENEL ENERGIA SPA;7376631C76;Fatt.n. 004811607165  del 12/09/2018 AGOSTO 2018 - CONSUMI ILLUMINAZIONE PUBBLICA;01/10/2018;3544;0;154;1;Spese correnti;3;Acquisto di beni e servizi;2;Acquisto di servizi;15;Contratti di servizio pubblico;15;Contratti di servizio per l'illuminazione pubblica;02/10/2018
3071;2;9999999;7,22;1.804,31;ENEL ENERGIA SPA;7376631C76;Fatt.n. 004811552258  del 06/09/2018 AGOSTO 2018 - CONSUMI ILLUMINAZIONE PUBBLICA;01/10/2018;3544;0;154;1;Spese correnti;3;Acquisto di beni e servizi;2;Acquisto di servizi;15;Contratti di servizio pubblico;15;Contratti di servizio per l'illuminazione pubblica;02/10/2018
3071;3;9999999;21,08;1.804,31;ENEL ENERGIA SPA;7376631C76;Fatt.n. 004811552244  del 06/09/2018 AGOSTO2018 - CONSUMI ILLUMINAZIONE PUBBLICA;01/10/2018;3544;0;154;1;Spese correnti;3;Acquisto di beni e servizi;2;Acquisto di servizi;15;Contratti di servizio pubblico;15;Contratti di servizio per l'illuminazione pubblica;02/10/2018
3071;4;9999999;45,75;1.804,31;ENEL ENERGIA SPA;7376631C76;Fatt.n. 004811552257  del 06/09/2018 AGOSTO 2018 - CONSUMI ILLUMINAZIONE PUBBLICA;01/10/2018;3544;0;154;1;Spese correnti;3;Acquisto di beni e servizi;2;Acquisto di servizi;15;Contratti di servizio pubblico;15;Contratti di servizio per l'illuminazione pubblica;02/10/2018
3071;5;9999999;93,12;1.804,31;ENEL ENERGIA SPA;7376631C76;Fatt.n. 004811552239  del 06/09/2018 AGOSTO 2018 - CONSUMI ILLUMINAZIONE PUBBLICA;01/10/2018;3544;0;154;1;Spese correnti;3;Acquisto di beni e servizi;2;Acquisto di servizi;15;Contratti di servizio pubblico;15;Contratti di servizio per l'illuminazione pubblica;02/10/2018
3071;6;9999999;97,73;1.804,31;ENEL ENERGIA SPA;7376631C76;Fatt.n. 004811524974  del 06/09/2018 AGOSTO 2018 - CONSUMI ILLUMINAZIONE PUBBLICA;01/10/2018;3544;0;154;1;Spese correnti;3;Acquisto di beni e servizi;2;Acquisto di servizi;15;Contratti di servizio pubblico;15;Contratti di servizio per l'illuminazione pubblica;02/10/2018
3071;7;9999999;297,41;1.804,31;ENEL ENERGIA SPA;7376631C76;Fatt.n. 004811505183  del 06/09/2018 AGOSTO 2018 - CONSUMI ILLUMINAZIONE PUBBLICA;01/10/2018;3544;0;154;1;Spese correnti;3;Acquisto di beni e servizi;2;Acquisto di servizi;15;Contratti di servizio pubblico;15;Contratti di servizio per l'illuminazione pubblica;02/10/2018
3071;8;9999999;363,4;1.804,31;ENEL ENERGIA SPA;7376631C76;Fatt.n. 004811536891  del 06/09/2018 AGOSTO 2018 - CONSUMI ILLUMINAZIONE PUBBLICA;01/10/2018;3544;0;154;1;Spese correnti;3;Acquisto di beni e servizi;2;Acquisto di servizi;15;Contratti di servizio pubblico;15;Contratti di servizio per l'illuminazione pubblica;02/10/2018
3071;9;9999999;390,42;1.804,31;ENEL ENERGIA SPA;7376631C76;Fatt.n. 004811525355  del 06/09/2018 AGOSTO 2018 - CONSUMI ILLUMINAZIONE PUBBLICA;01/10/2018;3544;0;154;1;Spese correnti;3;Acquisto di beni e servizi;2;Acquisto di servizi;15;Contratti di servizio pubblico;15;Contratti di servizio per l'illuminazione pubblica;02/10/2018
3071;10;9999999;480,96;1.804,31;ENEL ENERGIA SPA;7376631C76;Fatt.n. 004811552251  del 06/09/2018 AGOSTO 2018 - CONSUMI ILLUMINAZIONE PUBBLICA;01/10/2018;3544;0;154;1;Spese correnti;3;Acquisto di beni e servizi;2;Acquisto di servizi;15;Contratti di servizio pubblico;15;Contratti di servizio per l'illuminazione pubblica;02/10/2018
3072;1;9999999;9,11;1.063,05;ENEL ENERGIA SPA;7376631C76;Fatt.n. 004811541425  del 06/09/2018 AGOSTO 2018 - CONSUMI ILLUMINAZIONE PUBBLICA;01/10/2018;3544;0;154;1;Spese correnti;3;Acquisto di beni e servizi;2;Acquisto di servizi;15;Contratti di servizio pubblico;15;Contratti di servizio per l'illuminazione pubblica;02/10/2018
3072;2;9999999;9,93;1.063,05;ENEL ENERGIA SPA;7376631C76;Fatt.n. 004811509656  del 06/09/2018 AGOSTO 2018 - CONSUMI ILLUMINAZIONE PUBBLICA;01/10/2018;3544;0;154;1;Spese correnti;3;Acquisto di beni e servizi;2;Acquisto di servizi;15;Contratti di servizio pubblico;15;Contratti di servizio per l'illuminazione pubblica;02/10/2018
3072;3;9999999;49,76;1.063,05;ENEL ENERGIA SPA;7376631C76;Fatt.n. 004811553367  del 06/09/2018 AGOSTO 2018 - CONSUMI ILLUMINAZIONE PUBBLICA;01/10/2018;3544;0;154;1;Spese correnti;3;Acquisto di beni e servizi;2;Acquisto di servizi;15;Contratti di servizio pubblico;15;Contratti di servizio per l'illuminazione pubblica;02/10/2018
3072;4;9999999;63,37;1.063,05;ENEL ENERGIA SPA;7376631C76;Fatt.n. 004811564437  del 06/09/2018 AGOSTO 2018 - CONSUMI ILLUMINAZIONE PUBBLICA;01/10/2018;3544;0;154;1;Spese correnti;3;Acquisto di beni e servizi;2;Acquisto di servizi;15;Contratti di servizio pubblico;15;Contratti di servizio per l'illuminazione pubblica;02/10/2018
3072;5;9999999;122,87;1.063,05;ENEL ENERGIA SPA;7376631C76;Fatt.n. 004811541421  del 06/09/2018 AGOSTO 2018 - CONSUMI ILLUMINAZIONE PUBBLICA;01/10/2018;3544;0;154;1;Spese correnti;3;Acquisto di beni e servizi;2;Acquisto di servizi;15;Contratti di servizio pubblico;15;Contratti di servizio per l'illuminazione pubblica;02/10/2018
3072;6;9999999;158,83;1.063,05;ENEL ENERGIA SPA;7376631C76;Fatt.n. 004811514247  del 06/09/2018 AGOSTO 2018 - CONSUMI ILLUMINAZIONE PUBBLICA;01/10/2018;3544;0;154;1;Spese correnti;3;Acquisto di beni e servizi;2;Acquisto di servizi;15;Contratti di servizio pubblico;15;Contratti di servizio per l'illuminazione pubblica;02/10/2018
3072;7;9999999;174,86;1.063,05;ENEL ENERGIA SPA;7376631C76;Fatt.n. 004811552233  del 06/09/2018 AGOSTO 2018 -CONSUMI ILLUMINAZIONE PUBBLICA;01/10/2018;3544;0;154;1;Spese correnti;3;Acquisto di beni e servizi;2;Acquisto di servizi;15;Contratti di servizio pubblico;15;Contratti di servizio per l'illuminazione pubblica;02/10/2018
3072;8;9999999;222,49;1.063,05;ENEL ENERGIA SPA;7376631C76;Fatt.n. 004811552231  del 06/09/2018 AGOSTO 2018 - CONSUMI ILLUMINAZIONE PUBBLICA;01/10/2018;3544;0;154;1;Spese correnti;3;Acquisto di beni e servizi;2;Acquisto di servizi;15;Contratti di servizio pubblico;15;Contratti di servizio per l'illuminazione pubblica;02/10/2018
3072;9;9999999;251,83;1.063,05;ENEL ENERGIA SPA;7376631C76;Fatt.n. 004811556258  del 06/09/2018 AGOSTO 2018 - CONSUMI ILLUMINAZIONE PUBBLICA;01/10/2018;3544;0;154;1;Spese correnti;3;Acquisto di beni e servizi;2;Acquisto di servizi;15;Contratti di servizio pubblico;15;Contratti di servizio per l'illuminazione pubblica;02/10/2018
3073;1;9999999;10,11;514,02;ENEL ENERGIA SPA;7376631C76;Fatt.n. 004811611189  del 12/09/2018 AGOSTO 2018 - CONSUMI ILLUMINAZIONE PUBBLICA;01/10/2018;3544;0;154;1;Spese correnti;3;Acquisto di beni e servizi;2;Acquisto di servizi;15;Contratti di servizio pubblico;15;Contratti di servizio per l'illuminazione pubblica;02/10/2018
3073;2;9999999;41,86;514,02;ENEL ENERGIA SPA;7376631C76;Fatt.n. 004811611188  del 12/09/2018 AGOSTO 2018 - CONSUMI ILLUMINAZIONE PUBBLICA;01/10/2018;3544;0;154;1;Spese correnti;3;Acquisto di beni e servizi;2;Acquisto di servizi;15;Contratti di servizio pubblico;15;Contratti di servizio per l'illuminazione pubblica;02/10/2018
3073;3;9999999;65,99;514,02;ENEL ENERGIA SPA;7376631C76;Fatt.n. 004811536900  del 06/09/2018 AGOSTO 2018 - CONSUMI ILLUMINAZIONE PUBBLICA;01/10/2018;3544;0;154;1;Spese correnti;3;Acquisto di beni e servizi;2;Acquisto di servizi;15;Contratti di servizio pubblico;15;Contratti di servizio per l'illuminazione pubblica;02/10/2018
3073;4;9999999;396,06;514,02;ENEL ENERGIA SPA;7376631C76;Fatt.n. 004811611191  del 12/09/2018 AGOSTO 2018 - CONSUMI ILLUMINAZIONE PUBBLICA;01/10/2018;3544;0;154;1;Spese correnti;3;Acquisto di beni e servizi;2;Acquisto di servizi;15;Contratti di servizio pubblico;15;Contratti di servizio per l'illuminazione pubblica;02/10/2018
3074;1;9999999;50,29;50,29;ENEL ENERGIA SPA;7376631C76;Fatt.n. 004811535110  del 06/09/2018 AGOSTO 2018 - CONSUMI CIMITERO STIGLIANO - LAMPADE VOTIVE;01/10/2018;4434;0;135;1;Spese correnti;3;Acquisto di beni e servizi;2;Acquisto di servizi;5;Utenze e canoni;4;Energia elettrica;02/10/2018
3075;1;9999999;45;45;ENEL ENERGIA SPA;7376631C76;Fatt.n. 004811536895  del 06/09/2018 AGOSTO 2018 - CONSUMI CIMITERO SMS - LAMPADE VOTIVE;01/10/2018;4434;0;135;1;Spese correnti;3;Acquisto di beni e servizi;2;Acquisto di servizi;5;Utenze e canoni;4;Energia elettrica;02/10/2018
3076;1;9999999;45;45;ENEL ENERGIA SPA;7376631C76;Fatt.n. 004811519949  del 06/09/2018 AGOSTO 2018 - CONSUMI CIMITERO S.ANGELO - LAMPADE VOTIVE;01/10/2018;4434;0;135;1;Spese correnti;3;Acquisto di beni e servizi;2;Acquisto di servizi;5;Utenze e canoni;4;Energia elettrica;02/10/2018
3077;1;9999999;40;40;ENEL ENERGIA SPA;7376631C76;Fatt.n. 004811535112  del 06/09/2018 AGOSTO 2018 - CONSUMI CIMITERO CASELLE - LAMPADE VOTIVE;01/10/2018;4434;0;135;1;Spese correnti;3;Acquisto di beni e servizi;2;Acquisto di servizi;5;Utenze e canoni;4;Energia elettrica;02/10/2018
3078;1;9999999;80;80;ENEL ENERGIA SPA;7376631C76;Fatt.n. 004811552252  del 06/09/2018 AGOSTO 2018 - CONSUMI CIMITERO CALTANA - LAMPADE VOTIVE;01/10/2018;4434;0;135;1;Spese correnti;3;Acquisto di beni e servizi;2;Acquisto di servizi;5;Utenze e canoni;4;Energia elettrica;02/10/2018
3079;1;9999999;30;30;ENEL ENERGIA SPA;7376631C76;Fatt.n. 004811536889  del 06/09/2018 AGOSTO 2018 - CONSUMI CIMITERO VETERNIGO - LAMPADE VOTIVE;01/10/2018;4434;0;135;1;Spese correnti;3;Acquisto di beni e servizi;2;Acquisto di servizi;5;Utenze e canoni;4;Energia elettrica;02/10/2018
3082;1;9999999;150;150;OMESSO NOMINATIVO NEL RISPETTO DELLA NORMATIVA SULLA PROTEZIONE DATI PERSONALI; ;OTTOBRE 2018 EROGAZIONE DI UN CONTRIBUTO STRAORDINARIO UNA TANTUM A FAVORE DI UTENTE;02/10/2018;4157;0;931;1;Spese correnti;4;Trasferimenti correnti;2;Trasferimenti correnti a Famiglie;2;Interventi assistenziali;999;Altri assegni e sussidi assistenziali;09/11/2018
3083;1;0;150;150;OMESSO NOMINATIVO NEL RISPETTO DELLA NORMATIVA SULLA PROTEZIONE DATI PERSONALI; ;OTTOBRE 2018 AFFIDAMENTO FAMILIARE DI UN MINORE.;02/10/2018;3757;50;926;1;Spese correnti;4;Trasferimenti correnti;2;Trasferimenti correnti a Famiglie;2;Interventi assistenziali;999;Altri assegni e sussidi assistenziali;02/10/2018
3084;1;0;1.800,00;1.800,00;"IPAB ""LUIGI MARIUTTO""- CENTRO DI SERVIZI ALLA PERSONA"; ;OTTOBRE 2018  PAGAMENTO RETTE INSOLUTE ALL'IPAB L.MARIUTTO DI MIRANO;02/10/2018;3844;0;758;1;Spese correnti;3;Acquisto di beni e servizi;2;Acquisto di servizi;15;Contratti di servizio pubblico;8;Contratti di servizio di assistenza sociale residenziale e semiresidenziale;02/10/2018
3085;1;0;19,72;19,72;C/C/P 15453301 SERVIZIO DI TESORERIA COM; ;PRELEVAMENTO N.15-2018 - SETTEMBRE 2018 - PERIODO 16-30.09.2018;03/10/2018;146;0;0;1;Spese correnti;3;Acquisto di beni e servizi;2;Acquisto di servizi;17;Servizi finanziari;999;Spese per servizi finanziari n.a.c.;03/10/2018
3086;1;0;1.500,00;1.500,00;RANGERS D'ITALIA SEZIONE REGIONE VENETO;Z26247E3D7;I TRANCHE CONTRIBUTO ANNO 2018;03/10/2018;1159;0;876;1;Spese correnti;4;Trasferimenti correnti;4;Trasferimenti correnti a Istituzioni Sociali Private;1;Trasferimenti correnti a Istituzioni Sociali Private;1;Trasferimenti correnti a Istituzioni Sociali Private;03/10/2018
3087;1;9999999;8,75;8,75;AGENZIA DELLE ENTRATE; ;SPESE DI NOTIFICA RELATIVE AL BOLLO VIRTUALE ANNO 2018;03/10/2018;146;0;993;1;Spese correnti;3;Acquisto di beni e servizi;2;Acquisto di servizi;17;Servizi finanziari;999;Spese per servizi finanziari n.a.c.;09/10/2018
3088;1;0;1.500,00;1.500,00;ASSOCIAZIONE CULTURALE VISIONI ALTRE; ;SALDO CONTRIBUTO ANNO 2018;03/10/2018;1859;0;861;1;Spese correnti;4;Trasferimenti correnti;4;Trasferimenti correnti a Istituzioni Sociali Private;1;Trasferimenti correnti a Istituzioni Sociali Private;1;Trasferimenti correnti a Istituzioni Sociali Private;03/10/2018
3089;1;0;295,7;295,7;CARUSO GIUSEPPA; ;CONTRIBUTO REGIONALE BUONO-LIBRI ANNO SCOLASTICO FORMATIVO 2017/2018, RISORSE INTEGRATIVE.;03/10/2018;1357;50;1086;1;Spese correnti;4;Trasferimenti correnti;2;Trasferimenti correnti a Famiglie;5;Altri trasferimenti a famiglie;999;Altri trasferimenti a famiglie n.a.c.;03/10/2018
3090;1;0;158,48;158,48;GOBBO ANTONELLA; ;CONTRIBUTO REGIONALE BUONO-LIBRI ANNO SCOLASTICO FORMATIVO 2017/2018, RISORSE INTEGRATIVE.;03/10/2018;1357;50;1088;1;Spese correnti;4;Trasferimenti correnti;2;Trasferimenti correnti a Famiglie;5;Altri trasferimenti a famiglie;999;Altri trasferimenti a famiglie n.a.c.;03/10/2018
3091;1;9999999;429,92;429,92;PAGLINO GIUSEPPE; ;CONTRIBUTO REGIONALE BUONO-LIBRI ANNO SCOLASTICO FORMATIVO 2017/2018, RISORSE INTEGRATIVE.;03/10/2018;1357;50;1087;1;Spese correnti;4;Trasferimenti correnti;2;Trasferimenti correnti a Famiglie;5;Altri trasferimenti a famiglie;999;Altri trasferimenti a famiglie n.a.c.;13/12/2018
3092;1;9999999;373,4;373,4;RAKHA SURAEA HASSEM; ;CONTRIBUTO REGIONALE BUONO-LIBRI ANNO SCOLASTICO FORMATIVO 2017/2018, RISORSE INTEGRATIVE.;03/10/2018;1357;50;1089;1;Spese correnti;4;Trasferimenti correnti;2;Trasferimenti correnti a Famiglie;5;Altri trasferimenti a famiglie;999;Altri trasferimenti a famiglie n.a.c.;09/10/2018
3093;1;0;903,73;903,73;PELIZZON LUIGI SRL;Z8924818FF;Fatt.n. 000745  del 31/08/2018 ACQUISTO PRODOTTI DI CANCELLERIA PER GLI UFFICI COMUNALI;03/10/2018;121;6;867;1;Spese correnti;3;Acquisto di beni e servizi;1;Acquisto di beni;2;Altri beni di consumo;1;Carta, cancelleria e stampati;03/10/2018
3094;1;0;3.118,06;3.118,06;COOP.SOCIALE LIBERTA' ONLUS;Z8C23770C4;Fatt.n. 169/01  del 31/08/2018 AGOSTO 2018 - SERVIZIO DI PULIZIE E SANIFICAZIONE UFFICI COMUNALI;03/10/2018;142;0;628;1;Spese correnti;3;Acquisto di beni e servizi;2;Acquisto di servizi;13;Servizi ausiliari per il funzionamento dell'ente;2;Servizi di pulizia e lavanderia;03/10/2018
3095;1;0;133,05;133,05;ABACO SPA;5325258DE8;Fatt.n. 2018120003107  del 05/09/2018 AGGIO RISCOSSIONE ICP E DIRITTI CONTI COMUNE RENDICONTO AGOSTO 2018 CIG 5325258DE8;03/10/2018;332;0;152;1;Spese correnti;3;Acquisto di beni e servizi;2;Acquisto di servizi;3;Aggi di riscossione;999;Altri aggi di riscossione n.a.c.;03/10/2018
3096;1;0;884,44;884,44;E.N.P.A. ONLUS SEZ. DI MIRA; ;Fatt.n. 1273/PA  del 06/09/2018 CUSTODIA CANI VAGANTI LUGLIO  E AGOSTO 2018;03/10/2018;3659;0;24;1;Spese correnti;4;Trasferimenti correnti;4;Trasferimenti correnti a Istituzioni Sociali Private;1;Trasferimenti correnti a Istituzioni Sociali Private;1;Trasferimenti correnti a Istituzioni Sociali Private;03/10/2018
3097;1;0;4.060,16;4.060,16;BUGGIN ANTONIO;Z9D23DE584;Fatt.n. FATTPA 21_18  del 07/09/2018 ACCONTO VARIANTE TECNICA GENERALE PIANO INTERVENTI;03/10/2018;8699;1;717;2;Spese in conto capitale;2;Investimenti fissi lordi e acquisto di terreni;3;Beni immateriali;99;Spese di investimento per beni immateriali n.a.c.;1;Spese di investimento per beni immateriali n.a.c.;03/10/2018
3098;1;0;10.022,21;10.022,21;TREVISAN FEDERICO;ZBB22ED68E;Fatt.n. 00005/01  del 10/09/2018 AFFIDAMENTO SERVIZIO DI SFALCIO ERBA BANCHINE STRADALI ANNO 2018 - TAGLIO 3;03/10/2018;2549;0;408;1;Spese correnti;3;Acquisto di beni e servizi;2;Acquisto di servizi;99;Altri servizi;9;Acquisto di sevizi per verde e arredo urbano;03/10/2018
3100;1;0;720;720;OMESSO NOMINATIVO NEL RISPETTO DELLA NORMATIVA SULLA PROTEZIONE DATI PERSONALI; ;CONTRIBUTO IMPEGNATIVA DI CURA DOMICILIARE ICD B 1 SEMESTRE 2018 E ICD M 2 TRIMESTRE 2018;05/10/2018;3957;50;1000;1;Spese correnti;4;Trasferimenti correnti;2;Trasferimenti correnti a Famiglie;2;Interventi assistenziali;999;Altri assegni e sussidi assistenziali;05/10/2018
3101;1;9999999;720;720;OMESSO NOMINATIVO NEL RISPETTO DELLA NORMATIVA SULLA PROTEZIONE DATI PERSONALI; ;CONTRIBUTO IMPEGNATIVA DI CURA DOMICILIARE ICD B 1 SEMESTRE 2018 E ICD M 2 TRIMESTRE 2018;05/10/2018;3957;50;1001;1;Spese correnti;4;Trasferimenti correnti;2;Trasferimenti correnti a Famiglie;2;Interventi assistenziali;999;Altri assegni e sussidi assistenziali;31/10/2018
3102;1;0;720;720;OMESSO NOMINATIVO NEL RISPETTO DELLA NORMATIVA SULLA PROTEZIONE DATI PERSONALI; ;CONTRIBUTO IMPEGNATIVA DI CURA DOMICILIARE ICD B 1 SEMESTRE 2018 E ICD M 2 TRIMESTRE 2018;05/10/2018;3957;50;1002;1;Spese correnti;4;Trasferimenti correnti;2;Trasferimenti correnti a Famiglie;2;Interventi assistenziali;999;Altri assegni e sussidi assistenziali;05/10/2018
3103;1;0;720;720;OMESSO NOMINATIVO NEL RISPETTO DELLA NORMATIVA SULLA PROTEZIONE DATI PERSONALI; ;CONTRIBUTO IMPEGNATIVA DI CURA DOMICILIARE ICD B 1 SEMESTRE 2018 E ICD M 2 TRIMESTRE 2018;05/10/2018;3957;50;1003;1;Spese correnti;4;Trasferimenti correnti;2;Trasferimenti correnti a Famiglie;2;Interventi assistenziali;999;Altri assegni e sussidi assistenziali;05/10/2018
3104;1;0;720;720;OMESSO NOMINATIVO NEL RISPETTO DELLA NORMATIVA SULLA PROTEZIONE DATI PERSONALI; ;CONTRIBUTO IMPEGNATIVA DI CURA DOMICILIARE ICD B 1 SEMESTRE 2018 E ICD M 2 TRIMESTRE 2018;05/10/2018;3957;50;1004;1;Spese correnti;4;Trasferimenti correnti;2;Trasferimenti correnti a Famiglie;2;Interventi assistenziali;999;Altri assegni e sussidi assistenziali;05/10/2018
3105;1;0;720;720;OMESSO NOMINATIVO NEL RISPETTO DELLA NORMATIVA SULLA PROTEZIONE DATI PERSONALI; ;CONTRIBUTO IMPEGNATIVA DI CURA DOMICILIARE ICD B 1 SEMESTRE 2018 E ICD M 2 TRIMESTRE 2018;05/10/2018;3957;50;1005;1;Spese correnti;4;Trasferimenti correnti;2;Trasferimenti correnti a Famiglie;2;Interventi assistenziali;999;Altri assegni e sussidi assistenziali;05/10/2018
3106;1;0;720;720;OMESSO NOMINATIVO NEL RISPETTO DELLA NORMATIVA SULLA PROTEZIONE DATI PERSONALI; ;CONTRIBUTO IMPEGNATIVA DI CURA DOMICILIARE ICD B 1 SEMESTRE 2018 E ICD M 2 TRIMESTRE 2018;05/10/2018;3957;50;1006;1;Spese correnti;4;Trasferimenti correnti;2;Trasferimenti correnti a Famiglie;2;Interventi assistenziali;999;Altri assegni e sussidi assistenziali;05/10/2018
3107;1;0;720;720;OMESSO NOMINATIVO NEL RISPETTO DELLA NORMATIVA SULLA PROTEZIONE DATI PERSONALI; ;CONTRIBUTO IMPEGNATIVA DI CURA DOMICILIARE ICD B 1 SEMESTRE 2018 E ICD M 2 TRIMESTRE 2018;05/10/2018;3957;50;1007;1;Spese correnti;4;Trasferimenti correnti;2;Trasferimenti correnti a Famiglie;2;Interventi assistenziali;999;Altri assegni e sussidi assistenziali;05/10/2018
3108;1;0;120;120;OMESSO NOMINATIVO NEL RISPETTO DELLA NORMATIVA SULLA PROTEZIONE DATI PERSONALI; ;CONTRIBUTO IMPEGNATIVA DI CURA DOMICILIARE ICD B 1 SEMESTRE 2018 E ICD M 2 TRIMESTRE 2018;05/10/2018;3957;50;1008;1;Spese correnti;4;Trasferimenti correnti;2;Trasferimenti correnti a Famiglie;2;Interventi assistenziali;999;Altri assegni e sussidi assistenziali;05/10/2018
3109;1;0;240;240;OMESSO NOMINATIVO NEL RISPETTO DELLA NORMATIVA SULLA PROTEZIONE DATI PERSONALI; ;CONTRIBUTO IMPEGNATIVA DI CURA DOMICILIARE ICD B 1 SEMESTRE 2018 E ICD M 2 TRIMESTRE 2018;05/10/2018;3957;50;1009;1;Spese correnti;4;Trasferimenti correnti;2;Trasferimenti correnti a Famiglie;2;Interventi assistenziali;999;Altri assegni e sussidi assistenziali;05/10/2018
3110;1;0;720;720;OMESSO NOMINATIVO NEL RISPETTO DELLA NORMATIVA SULLA PROTEZIONE DATI PERSONALI; ;CONTRIBUTO IMPEGNATIVA DI CURA DOMICILIARE ICD B 1 SEMESTRE 2018 E ICD M 2 TRIMESTRE 2018;05/10/2018;3957;50;1010;1;Spese correnti;4;Trasferimenti correnti;2;Trasferimenti correnti a Famiglie;2;Interventi assistenziali;999;Altri assegni e sussidi assistenziali;05/10/2018
3111;1;0;720;720;OMESSO NOMINATIVO NEL RISPETTO DELLA NORMATIVA SULLA PROTEZIONE DATI PERSONALI; ;CONTRIBUTO IMPEGNATIVA DI CURA DOMICILIARE ICD B 1 SEMESTRE 2018 E ICD M 2 TRIMESTRE 2018;05/10/2018;3957;50;1011;1;Spese correnti;4;Trasferimenti correnti;2;Trasferimenti correnti a Famiglie;2;Interventi assistenziali;999;Altri assegni e sussidi assistenziali;05/10/2018
3112;1;0;360;360;OMESSO NOMINATIVO NEL RISPETTO DELLA NORMATIVA SULLA PROTEZIONE DATI PERSONALI; ;CONTRIBUTO IMPEGNATIVA DI CURA DOMICILIARE ICD B 1 SEMESTRE 2018 E ICD M 2 TRIMESTRE 2018;05/10/2018;3957;50;1012;1;Spese correnti;4;Trasferimenti correnti;2;Trasferimenti correnti a Famiglie;2;Interventi assistenziali;999;Altri assegni e sussidi assistenziali;05/10/2018
3113;1;0;480;480;OMESSO NOMINATIVO NEL RISPETTO DELLA NORMATIVA SULLA PROTEZIONE DATI PERSONALI; ;CONTRIBUTO IMPEGNATIVA DI CURA DOMICILIARE ICD B 1 SEMESTRE 2018 E ICD M 2 TRIMESTRE 2018;05/10/2018;3957;50;1013;1;Spese correnti;4;Trasferimenti correnti;2;Trasferimenti correnti a Famiglie;2;Interventi assistenziali;999;Altri assegni e sussidi assistenziali;05/10/2018
3114;1;0;720;720;OMESSO NOMINATIVO NEL RISPETTO DELLA NORMATIVA SULLA PROTEZIONE DATI PERSONALI; ;CONTRIBUTO IMPEGNATIVA DI CURA DOMICILIARE ICD B 1 SEMESTRE 2018 E ICD M 2 TRIMESTRE 2018;05/10/2018;3957;50;1014;1;Spese correnti;4;Trasferimenti correnti;2;Trasferimenti correnti a Famiglie;2;Interventi assistenziali;999;Altri assegni e sussidi assistenziali;05/10/2018
3115;1;0;720;720;OMESSO NOMINATIVO NEL RISPETTO DELLA NORMATIVA SULLA PROTEZIONE DATI PERSONALI; ;CONTRIBUTO IMPEGNATIVA DI CURA DOMICILIARE ICD B 1 SEMESTRE 2018 E ICD M 2 TRIMESTRE 2018;05/10/2018;3957;50;1015;1;Spese correnti;4;Trasferimenti correnti;2;Trasferimenti correnti a Famiglie;2;Interventi assistenziali;999;Altri assegni e sussidi assistenziali;05/10/2018
3116;1;0;720;720;OMESSO NOMINATIVO NEL RISPETTO DELLA NORMATIVA SULLA PROTEZIONE DATI PERSONALI; ;CONTRIBUTO IMPEGNATIVA DI CURA DOMICILIARE ICD B 1 SEMESTRE 2018 E ICD M 2 TRIMESTRE 2018;05/10/2018;3957;50;1016;1;Spese correnti;4;Trasferimenti correnti;2;Trasferimenti correnti a Famiglie;2;Interventi assistenziali;999;Altri assegni e sussidi assistenziali;05/10/2018
3117;1;0;720;720;OMESSO NOMINATIVO NEL RISPETTO DELLA NORMATIVA SULLA PROTEZIONE DATI PERSONALI; ;CONTRIBUTO IMPEGNATIVA DI CURA DOMICILIARE ICD B 1 SEMESTRE 2018 E ICD M 2 TRIMESTRE 2018;05/10/2018;3957;50;1017;1;Spese correnti;4;Trasferimenti correnti;2;Trasferimenti correnti a Famiglie;2;Interventi assistenziali;999;Altri assegni e sussidi assistenziali;05/10/2018
3118;1;0;720;720;OMESSO NOMINATIVO NEL RISPETTO DELLA NORMATIVA SULLA PROTEZIONE DATI PERSONALI; ;CONTRIBUTO IMPEGNATIVA DI CURA DOMICILIARE ICD B 1 SEMESTRE 2018 E ICD M 2 TRIMESTRE 2018;05/10/2018;3957;50;1018;1;Spese correnti;4;Trasferimenti correnti;2;Trasferimenti correnti a Famiglie;2;Interventi assistenziali;999;Altri assegni e sussidi assistenziali;05/10/2018
3119;1;0;720;720;OMESSO NOMINATIVO NEL RISPETTO DELLA NORMATIVA SULLA PROTEZIONE DATI PERSONALI; ;CONTRIBUTO IMPEGNATIVA DI CURA DOMICILIARE ICD B 1 SEMESTRE 2018 E ICD M 2 TRIMESTRE 2018;05/10/2018;3957;50;1019;1;Spese correnti;4;Trasferimenti correnti;2;Trasferimenti correnti a Famiglie;2;Interventi assistenziali;999;Altri assegni e sussidi assistenziali;05/10/2018
3120;1;0;720;720;OMESSO NOMINATIVO NEL RISPETTO DELLA NORMATIVA SULLA PROTEZIONE DATI PERSONALI; ;CONTRIBUTO IMPEGNATIVA DI CURA DOMICILIARE ICD B 1 SEMESTRE 2018 E ICD M 2 TRIMESTRE 2018;05/10/2018;3957;50;1020;1;Spese correnti;4;Trasferimenti correnti;2;Trasferimenti correnti a Famiglie;2;Interventi assistenziali;999;Altri assegni e sussidi assistenziali;05/10/2018
3121;1;0;720;720;OMESSO NOMINATIVO NEL RISPETTO DELLA NORMATIVA SULLA PROTEZIONE DATI PERSONALI; ;CONTRIBUTO IMPEGNATIVA DI CURA DOMICILIARE ICD B 1 SEMESTRE 2018 E ICD M 2 TRIMESTRE 2018;05/10/2018;3957;50;1021;1;Spese correnti;4;Trasferimenti correnti;2;Trasferimenti correnti a Famiglie;2;Interventi assistenziali;999;Altri assegni e sussidi assistenziali;05/10/2018
3122;1;0;720;720;OMESSO NOMINATIVO NEL RISPETTO DELLA NORMATIVA SULLA PROTEZIONE DATI PERSONALI; ;CONTRIBUTO IMPEGNATIVA DI CURA DOMICILIARE ICD B 1 SEMESTRE 2018 E ICD M 2 TRIMESTRE 2018;05/10/2018;3957;50;1022;1;Spese correnti;4;Trasferimenti correnti;2;Trasferimenti correnti a Famiglie;2;Interventi assistenziali;999;Altri assegni e sussidi assistenziali;05/10/2018
3123;1;0;720;720;OMESSO NOMINATIVO NEL RISPETTO DELLA NORMATIVA SULLA PROTEZIONE DATI PERSONALI; ;CONTRIBUTO IMPEGNATIVA DI CURA DOMICILIARE ICD B 1 SEMESTRE 2018 E ICD M 2 TRIMESTRE 2018;05/10/2018;3957;50;1023;1;Spese correnti;4;Trasferimenti correnti;2;Trasferimenti correnti a Famiglie;2;Interventi assistenziali;999;Altri assegni e sussidi assistenziali;05/10/2018
3124;1;0;720;720;OMESSO NOMINATIVO NEL RISPETTO DELLA NORMATIVA SULLA PROTEZIONE DATI PERSONALI; ;CONTRIBUTO IMPEGNATIVA DI CURA DOMICILIARE ICD B 1 SEMESTRE 2018 E ICD M 2 TRIMESTRE 2018;05/10/2018;3957;50;1024;1;Spese correnti;4;Trasferimenti correnti;2;Trasferimenti correnti a Famiglie;2;Interventi assistenziali;999;Altri assegni e sussidi assistenziali;05/10/2018
3125;1;0;720;720;OMESSO NOMINATIVO NEL RISPETTO DELLA NORMATIVA SULLA PROTEZIONE DATI PERSONALI; ;CONTRIBUTO IMPEGNATIVA DI CURA DOMICILIARE ICD B 1 SEMESTRE 2018 E ICD M 2 TRIMESTRE 2018;05/10/2018;3957;50;1025;1;Spese correnti;4;Trasferimenti correnti;2;Trasferimenti correnti a Famiglie;2;Interventi assistenziali;999;Altri assegni e sussidi assistenziali;05/10/2018
3126;1;0;720;720;OMESSO NOMINATIVO NEL RISPETTO DELLA NORMATIVA SULLA PROTEZIONE DATI PERSONALI; ;CONTRIBUTO IMPEGNATIVA DI CURA DOMICILIARE ICD B 1 SEMESTRE 2018 E ICD M 2 TRIMESTRE 2018;05/10/2018;3957;50;1026;1;Spese correnti;4;Trasferimenti correnti;2;Trasferimenti correnti a Famiglie;2;Interventi assistenziali;999;Altri assegni e sussidi assistenziali;05/10/2018
3127;1;0;720;720;OMESSO NOMINATIVO NEL RISPETTO DELLA NORMATIVA SULLA PROTEZIONE DATI PERSONALI; ;CONTRIBUTO IMPEGNATIVA DI CURA DOMICILIARE ICD B 1 SEMESTRE 2018 E ICD M 2 TRIMESTRE 2018;05/10/2018;3957;50;1027;1;Spese correnti;4;Trasferimenti correnti;2;Trasferimenti correnti a Famiglie;2;Interventi assistenziali;999;Altri assegni e sussidi assistenziali;05/10/2018
3128;1;0;720;720;OMESSO NOMINATIVO NEL RISPETTO DELLA NORMATIVA SULLA PROTEZIONE DATI PERSONALI; ;CONTRIBUTO IMPEGNATIVA DI CURA DOMICILIARE ICD B 1 SEMESTRE 2018 E ICD M 2 TRIMESTRE 2018;05/10/2018;3957;50;1028;1;Spese correnti;4;Trasferimenti correnti;2;Trasferimenti correnti a Famiglie;2;Interventi assistenziali;999;Altri assegni e sussidi assistenziali;05/10/2018
3129;1;0;720;720;OMESSO NOMINATIVO NEL RISPETTO DELLA NORMATIVA SULLA PROTEZIONE DATI PERSONALI; ;CONTRIBUTO IMPEGNATIVA DI CURA DOMICILIARE ICD B 1 SEMESTRE 2018 E ICD M 2 TRIMESTRE 2018;05/10/2018;3957;50;1029;1;Spese correnti;4;Trasferimenti correnti;2;Trasferimenti correnti a Famiglie;2;Interventi assistenziali;999;Altri assegni e sussidi assistenziali;05/10/2018
3130;1;0;720;720;OMESSO NOMINATIVO NEL RISPETTO DELLA NORMATIVA SULLA PROTEZIONE DATI PERSONALI; ;CONTRIBUTO IMPEGNATIVA DI CURA DOMICILIARE ICD B 1 SEMESTRE 2018 E ICD M 2 TRIMESTRE 2018;05/10/2018;3957;50;1030;1;Spese correnti;4;Trasferimenti correnti;2;Trasferimenti correnti a Famiglie;2;Interventi assistenziali;999;Altri assegni e sussidi assistenziali;05/10/2018
3131;1;0;720;720;OMESSO NOMINATIVO NEL RISPETTO DELLA NORMATIVA SULLA PROTEZIONE DATI PERSONALI; ;CONTRIBUTO IMPEGNATIVA DI CURA DOMICILIARE ICD B 1 SEMESTRE 2018 E ICD M 2 TRIMESTRE 2018;05/10/2018;3957;50;1031;1;Spese correnti;4;Trasferimenti correnti;2;Trasferimenti correnti a Famiglie;2;Interventi assistenziali;999;Altri assegni e sussidi assistenziali;05/10/2018
3132;1;0;720;720;OMESSO NOMINATIVO NEL RISPETTO DELLA NORMATIVA SULLA PROTEZIONE DATI PERSONALI; ;CONTRIBUTO IMPEGNATIVA DI CURA DOMICILIARE ICD B 1 SEMESTRE 2018 E ICD M 2 TRIMESTRE 2018;05/10/2018;3957;50;1032;1;Spese correnti;4;Trasferimenti correnti;2;Trasferimenti correnti a Famiglie;2;Interventi assistenziali;999;Altri assegni e sussidi assistenziali;05/10/2018
3133;1;0;720;720;OMESSO NOMINATIVO NEL RISPETTO DELLA NORMATIVA SULLA PROTEZIONE DATI PERSONALI; ;CONTRIBUTO IMPEGNATIVA DI CURA DOMICILIARE ICD B 1 SEMESTRE 2018 E ICD M 2 TRIMESTRE 2018;05/10/2018;3957;50;1033;1;Spese correnti;4;Trasferimenti correnti;2;Trasferimenti correnti a Famiglie;2;Interventi assistenziali;999;Altri assegni e sussidi assistenziali;05/10/2018
3134;1;0;720;720;OMESSO NOMINATIVO NEL RISPETTO DELLA NORMATIVA SULLA PROTEZIONE DATI PERSONALI; ;CONTRIBUTO IMPEGNATIVA DI CURA DOMICILIARE ICD B 1 SEMESTRE 2018 E ICD M 2 TRIMESTRE 2018;05/10/2018;3957;50;1034;1;Spese correnti;4;Trasferimenti correnti;2;Trasferimenti correnti a Famiglie;2;Interventi assistenziali;999;Altri assegni e sussidi assistenziali;05/10/2018
3135;1;0;720;720;OMESSO NOMINATIVO NEL RISPETTO DELLA NORMATIVA SULLA PROTEZIONE DATI PERSONALI; ;CONTRIBUTO IMPEGNATIVA DI CURA DOMICILIARE ICD B 1 SEMESTRE 2018 E ICD M 2 TRIMESTRE 2018;05/10/2018;3957;50;1035;1;Spese correnti;4;Trasferimenti correnti;2;Trasferimenti correnti a Famiglie;2;Interventi assistenziali;999;Altri assegni e sussidi assistenziali;05/10/2018
3136;1;0;720;720;OMESSO NOMINATIVO NEL RISPETTO DELLA NORMATIVA SULLA PROTEZIONE DATI PERSONALI; ;CONTRIBUTO IMPEGNATIVA DI CURA DOMICILIARE ICD B 1 SEMESTRE 2018 E ICD M 2 TRIMESTRE 2018;05/10/2018;3957;50;1036;1;Spese correnti;4;Trasferimenti correnti;2;Trasferimenti correnti a Famiglie;2;Interventi assistenziali;999;Altri assegni e sussidi assistenziali;05/10/2018
3138;1;9999999;720;720;OMESSO NOMINATIVO NEL RISPETTO DELLA NORMATIVA SULLA PROTEZIONE DATI PERSONALI; ;CONTRIBUTO IMPEGNATIVA DI CURA DOMICILIARE ICD B 1 SEMESTRE 2018 E ICD M 2 TRIMESTRE 2018;05/10/2018;3957;50;1037;1;Spese correnti;4;Trasferimenti correnti;2;Trasferimenti correnti a Famiglie;2;Interventi assistenziali;999;Altri assegni e sussidi assistenziali;22/10/2018
3139;1;0;720;720;OMESSO NOMINATIVO NEL RISPETTO DELLA NORMATIVA SULLA PROTEZIONE DATI PERSONALI; ;CONTRIBUTO IMPEGNATIVA DI CURA DOMICILIARE ICD B 1 SEMESTRE 2018 E ICD M 2 TRIMESTRE 2018;05/10/2018;3957;50;1038;1;Spese correnti;4;Trasferimenti correnti;2;Trasferimenti correnti a Famiglie;2;Interventi assistenziali;999;Altri assegni e sussidi assistenziali;05/10/2018
3140;1;0;720;720;OMESSO NOMINATIVO NEL RISPETTO DELLA NORMATIVA SULLA PROTEZIONE DATI PERSONALI; ;CONTRIBUTO IMPEGNATIVA DI CURA DOMICILIARE ICD B 1 SEMESTRE 2018 E ICD M 2 TRIMESTRE 2018;05/10/2018;3957;50;1039;1;Spese correnti;4;Trasferimenti correnti;2;Trasferimenti correnti a Famiglie;2;Interventi assistenziali;999;Altri assegni e sussidi assistenziali;05/10/2018
3141;1;0;720;720;OMESSO NOMINATIVO NEL RISPETTO DELLA NORMATIVA SULLA PROTEZIONE DATI PERSONALI; ;CONTRIBUTO IMPEGNATIVA DI CURA DOMICILIARE ICD B 1 SEMESTRE 2018 E ICD M 2 TRIMESTRE 2018;05/10/2018;3957;50;1040;1;Spese correnti;4;Trasferimenti correnti;2;Trasferimenti correnti a Famiglie;2;Interventi assistenziali;999;Altri assegni e sussidi assistenziali;05/10/2018
3142;1;0;720;720;OMESSO NOMINATIVO NEL RISPETTO DELLA NORMATIVA SULLA PROTEZIONE DATI PERSONALI; ;CONTRIBUTO IMPEGNATIVA DI CURA DOMICILIARE ICD B 1 SEMESTRE E ICD M 2 TRIMESTRE 2018;05/10/2018;3957;50;1041;1;Spese correnti;4;Trasferimenti correnti;2;Trasferimenti correnti a Famiglie;2;Interventi assistenziali;999;Altri assegni e sussidi assistenziali;05/10/2018
3143;1;0;720;720;OMESSO NOMINATIVO NEL RISPETTO DELLA NORMATIVA SULLA PROTEZIONE DATI PERSONALI; ;CONTRIBUTO IMPEGNATIVA DI CURA DOMICILIARE ICD B 1 SEMESTRE 2018 E ICD M 2 TRIMESTRE 2018;05/10/2018;3957;50;1043;1;Spese correnti;4;Trasferimenti correnti;2;Trasferimenti correnti a Famiglie;2;Interventi assistenziali;999;Altri assegni e sussidi assistenziali;05/10/2018
3144;1;0;720;720;OMESSO NOMINATIVO NEL RISPETTO DELLA NORMATIVA SULLA PROTEZIONE DATI PERSONALI; ;CONTRIBUTO IMPEGNATIVA DI CURA DOMICILIARE ICD B 1 SEMESTRE 2018 E ICD M 2 TRIMESTRE 2018;05/10/2018;3957;50;1044;1;Spese correnti;4;Trasferimenti correnti;2;Trasferimenti correnti a Famiglie;2;Interventi assistenziali;999;Altri assegni e sussidi assistenziali;05/10/2018
3145;1;9999999;720;720;OMESSO NOMINATIVO NEL RISPETTO DELLA NORMATIVA SULLA PROTEZIONE DATI PERSONALI; ;CONTRIBUTO IMPEGNATIVA DI CURA DOMICILIARE ICD B 1 SEMESTRE 2018 E ICD M 2 TRIMESTRE 2018;05/10/2018;3957;50;1045;1;Spese correnti;4;Trasferimenti correnti;2;Trasferimenti correnti a Famiglie;2;Interventi assistenziali;999;Altri assegni e sussidi assistenziali;26/11/2018
3146;1;0;720;720;OMESSO NOMINATIVO NEL RISPETTO DELLA NORMATIVA SULLA PROTEZIONE DATI PERSONALI; ;CONTRIBUTO IMPEGNATIVA DI CURA DOMICILIARE ICD B 1 SEMESTRE 2018 E ICD M 2 TRIMESTRE 2018;05/10/2018;3957;50;1046;1;Spese correnti;4;Trasferimenti correnti;2;Trasferimenti correnti a Famiglie;2;Interventi assistenziali;999;Altri assegni e sussidi assistenziali;05/10/2018
3147;1;0;720;720;OMESSO NOMINATIVO NEL RISPETTO DELLA NORMATIVA SULLA PROTEZIONE DATI PERSONALI; ;CONTRIBUTO IMPEGNATIVA DI CURA DOMICILIARE ICD B 1 SEMESTRE 2018 E ICD M 2 TRIMESTRE 2018;05/10/2018;3957;50;1047;1;Spese correnti;4;Trasferimenti correnti;2;Trasferimenti correnti a Famiglie;2;Interventi assistenziali;999;Altri assegni e sussidi assistenziali;05/10/2018
3148;1;0;720;720;OMESSO NOMINATIVO NEL RISPETTO DELLA NORMATIVA SULLA PROTEZIONE DATI PERSONALI; ;CONTRIBUTO IMPEGNATIVA DI CURA DOMICILIARE ICD B 1 SEMESTRE 2018 E ICD M 2 TRIMESTRE 2018;05/10/2018;3957;50;1048;1;Spese correnti;4;Trasferimenti correnti;2;Trasferimenti correnti a Famiglie;2;Interventi assistenziali;999;Altri assegni e sussidi assistenziali;05/10/2018
3149;1;0;120;120;OMESSO NOMINATIVO NEL RISPETTO DELLA NORMATIVA SULLA PROTEZIONE DATI PERSONALI; ;CONTRIBUTO IMPEGNATIVA DI CURA DOMICILIARE ICD B 1 SEMESTRE 2018 E ICD M 2 TRIMESTRE 2018;05/10/2018;3957;50;1049;1;Spese correnti;4;Trasferimenti correnti;2;Trasferimenti correnti a Famiglie;2;Interventi assistenziali;999;Altri assegni e sussidi assistenziali;05/10/2018
3150;1;0;720;720;OMESSO NOMINATIVO NEL RISPETTO DELLA NORMATIVA SULLA PROTEZIONE DATI PERSONALI; ;CONTRIBUTO IMPEGNATIVA DI CURA DOMICILIARE ICD B 1 SEMESTRE 2018 E ICD M 2 TRIMESTRE 2018;05/10/2018;3957;50;1050;1;Spese correnti;4;Trasferimenti correnti;2;Trasferimenti correnti a Famiglie;2;Interventi assistenziali;999;Altri assegni e sussidi assistenziali;05/10/2018
3151;1;0;720;720;OMESSO NOMINATIVO NEL RISPETTO DELLA NORMATIVA SULLA PROTEZIONE DATI PERSONALI; ;CONTRIBUTO IMPEGNATIVA DI CURA DOMICILIARE ICD B 1 SEMESTRE 2018 E ICD M 2 TRIMESTRE 2018;05/10/2018;3957;50;1051;1;Spese correnti;4;Trasferimenti correnti;2;Trasferimenti correnti a Famiglie;2;Interventi assistenziali;999;Altri assegni e sussidi assistenziali;05/10/2018
3152;1;0;720;720;OMESSO NOMINATIVO NEL RISPETTO DELLA NORMATIVA SULLA PROTEZIONE DATI PERSONALI; ;CONTRIBUTO IMPEGNATIVA DI CURA DOMICILIARE ICD B 1 SEMESTRE 2018 E ICD M 2 TRIMESTRE 2018;05/10/2018;3957;50;1052;1;Spese correnti;4;Trasferimenti correnti;2;Trasferimenti correnti a Famiglie;2;Interventi assistenziali;999;Altri assegni e sussidi assistenziali;05/10/2018
3153;1;0;720;720;OMESSO NOMINATIVO NEL RISPETTO DELLA NORMATIVA SULLA PROTEZIONE DATI PERSONALI; ;CONTRIBUTO IMPEGNATIVA DI CURA DOMICILIARE ICD B 1 SEMESTRE 2018 E ICD M 2 TRIMESTRE 2018;05/10/2018;3957;50;1053;1;Spese correnti;4;Trasferimenti correnti;2;Trasferimenti correnti a Famiglie;2;Interventi assistenziali;999;Altri assegni e sussidi assistenziali;05/10/2018
3154;1;0;720;720;OMESSO NOMINATIVO NEL RISPETTO DELLA NORMATIVA SULLA PROTEZIONE DATI PERSONALI; ;CONTRIBUTO IMPEGNATIVA DI CURA DOMICILIARE ICD B 1 SEMESTRE 2018 E ICD M 2 TRIMESTRE 2018;05/10/2018;3957;50;1054;1;Spese correnti;4;Trasferimenti correnti;2;Trasferimenti correnti a Famiglie;2;Interventi assistenziali;999;Altri assegni e sussidi assistenziali;05/10/2018
3155;1;0;720;720;OMESSO NOMINATIVO NEL RISPETTO DELLA NORMATIVA SULLA PROTEZIONE DATI PERSONALI; ;CONTRIBUTO IMPEGNATIVA DI CURA DOMICILIARE ICD B 1 SEMESTRE 2018 E ICD M 2 TRIMESTRE 2018;05/10/2018;3957;50;1055;1;Spese correnti;4;Trasferimenti correnti;2;Trasferimenti correnti a Famiglie;2;Interventi assistenziali;999;Altri assegni e sussidi assistenziali;05/10/2018
3156;1;0;720;720;OMESSO NOMINATIVO NEL RISPETTO DELLA NORMATIVA SULLA PROTEZIONE DATI PERSONALI; ;CONTRIBUTO IMPEGNATIVA DI CURA DOMICILIARE ICD B 1 SEMESTRE 2018 E ICD M 2 TRIMESTRE 2018;05/10/2018;3957;50;1056;1;Spese correnti;4;Trasferimenti correnti;2;Trasferimenti correnti a Famiglie;2;Interventi assistenziali;999;Altri assegni e sussidi assistenziali;05/10/2018
3157;1;0;720;720;OMESSO NOMINATIVO NEL RISPETTO DELLA NORMATIVA SULLA PROTEZIONE DATI PERSONALI; ;CONTRIBUTO IMPEGNATIVA DI CURA DOMICILIARE ICD B 1 SEMESTRE 2018 E ICD M 2 TRIMESTRE 2018;05/10/2018;3957;50;1057;1;Spese correnti;4;Trasferimenti correnti;2;Trasferimenti correnti a Famiglie;2;Interventi assistenziali;999;Altri assegni e sussidi assistenziali;05/10/2018
3158;1;0;720;720;OMESSO NOMINATIVO NEL RISPETTO DELLA NORMATIVA SULLA PROTEZIONE DATI PERSONALI; ;CONTRIBUTO IMPEGNATIVA DI CURA DOMICILIARE ICD B 1 SEMESTRE 2018 E ICD M 2 TRIMESTRE 2018;05/10/2018;3957;50;1058;1;Spese correnti;4;Trasferimenti correnti;2;Trasferimenti correnti a Famiglie;2;Interventi assistenziali;999;Altri assegni e sussidi assistenziali;05/10/2018
3159;1;0;720;720;OMESSO NOMINATIVO NEL RISPETTO DELLA NORMATIVA SULLA PROTEZIONE DATI PERSONALI; ;CONTRIBUTO IMPEGNATIVA DI CURA DOMICILIARE ICD B 1 SEMESTRE 2018 E ICD M 2 TRIMESTRE 2018;05/10/2018;3957;50;1059;1;Spese correnti;4;Trasferimenti correnti;2;Trasferimenti correnti a Famiglie;2;Interventi assistenziali;999;Altri assegni e sussidi assistenziali;05/10/2018
3160;1;0;720;720;OMESSO NOMINATIVO NEL RISPETTO DELLA NORMATIVA SULLA PROTEZIONE DATI PERSONALI; ;CONTRIBUTO IMPEGNATIVA DI CURA DOMICILIARE ICD B 1 SEMESTRE 2018 E ICD M 2 TRIMESTRE 2018;05/10/2018;3957;50;1060;1;Spese correnti;4;Trasferimenti correnti;2;Trasferimenti correnti a Famiglie;2;Interventi assistenziali;999;Altri assegni e sussidi assistenziali;05/10/2018
3161;1;0;720;720;OMESSO NOMINATIVO NEL RISPETTO DELLA NORMATIVA SULLA PROTEZIONE DATI PERSONALI; ;CONTRIBUTO IMPEGNATIVA DI CURA DOMICILIARE ICD B 1 SEMESTRE 2018 E ICD M 2 TRIMESTRE 2018;05/10/2018;3957;50;1061;1;Spese correnti;4;Trasferimenti correnti;2;Trasferimenti correnti a Famiglie;2;Interventi assistenziali;999;Altri assegni e sussidi assistenziali;05/10/2018
3162;1;0;720;720;OMESSO NOMINATIVO NEL RISPETTO DELLA NORMATIVA SULLA PROTEZIONE DATI PERSONALI; ;CONTRIBUTO IMPEGNATIVA DI CURA DOMICILIARE ICD B 1 SEMESTRE 2018 E ICD M 2 TRIMESTRE 2018;05/10/2018;3957;50;1062;1;Spese correnti;4;Trasferimenti correnti;2;Trasferimenti correnti a Famiglie;2;Interventi assistenziali;999;Altri assegni e sussidi assistenziali;05/10/2018
3163;1;0;720;720;OMESSO NOMINATIVO NEL RISPETTO DELLA NORMATIVA SULLA PROTEZIONE DATI PERSONALI; ;CONTRIBUTO IMPEGNATIVA DI CURA DOMICILIARE ICD B 1 SEMESTRE 2018 E ICD M 2 TRIMESTRE 2018;05/10/2018;3957;50;1063;1;Spese correnti;4;Trasferimenti correnti;2;Trasferimenti correnti a Famiglie;2;Interventi assistenziali;999;Altri assegni e sussidi assistenziali;05/10/2018
3164;1;0;720;720;OMESSO NOMINATIVO NEL RISPETTO DELLA NORMATIVA SULLA PROTEZIONE DATI PERSONALI; ;CONTRIBUTO IMPEGNATIVA DI CURA DOMICILIARE ICD B 1 SEMESTRE 2018 E ICD M 2 TRIMESTRE 2018;05/10/2018;3957;50;1064;1;Spese correnti;4;Trasferimenti correnti;2;Trasferimenti correnti a Famiglie;2;Interventi assistenziali;999;Altri assegni e sussidi assistenziali;05/10/2018
3165;1;0;720;720;OMESSO NOMINATIVO NEL RISPETTO DELLA NORMATIVA SULLA PROTEZIONE DATI PERSONALI; ;CONTRIBUTO IMPEGNATIVA DI CURA DOMICILIARE ICD B 1 SEMESTRE 2018 E ICD M 2 TRIMESTRE 2018;05/10/2018;3957;50;1065;1;Spese correnti;4;Trasferimenti correnti;2;Trasferimenti correnti a Famiglie;2;Interventi assistenziali;999;Altri assegni e sussidi assistenziali;05/10/2018
3166;1;0;600;600;OMESSO NOMINATIVO NEL RISPETTO DELLA NORMATIVA SULLA PROTEZIONE DATI PERSONALI; ;CONTRIBUTO IMPEGNATIVA DI CURA DOMICILIARE ICD B 1 SEMESTRE 2018 E ICD M 2 TRIMESTRE 2018;05/10/2018;3957;50;1066;1;Spese correnti;4;Trasferimenti correnti;2;Trasferimenti correnti a Famiglie;2;Interventi assistenziali;999;Altri assegni e sussidi assistenziali;05/10/2018
3167;1;0;120;120;OMESSO NOMINATIVO NEL RISPETTO DELLA NORMATIVA SULLA PROTEZIONE DATI PERSONALI; ;CONTRIBUTO IMPEGNATIVA DI CURA DOMICILIARE ICD B 1 SEMESTRE 2018 E ICD M 2 TRIMESTRE 2018;05/10/2018;3957;50;1067;1;Spese correnti;4;Trasferimenti correnti;2;Trasferimenti correnti a Famiglie;2;Interventi assistenziali;999;Altri assegni e sussidi assistenziali;05/10/2018
3168;1;0;720;720;OMESSO NOMINATIVO NEL RISPETTO DELLA NORMATIVA SULLA PROTEZIONE DATI PERSONALI; ;CONTRIBUTO IMPEGNATIVA DI CURA DOMICILIARE ICD B 1 SEMESTRE 2018 E ICD M 2 TRIMESTRE 2018;05/10/2018;3957;50;333;1;Spese correnti;4;Trasferimenti correnti;2;Trasferimenti correnti a Famiglie;2;Interventi assistenziali;999;Altri assegni e sussidi assistenziali;05/10/2018
3169;1;9999999;720;720;OMESSO NOMINATIVO NEL RISPETTO DELLA NORMATIVA SULLA PROTEZIONE DATI PERSONALI; ;CONTRIBUTO IMPEGNATIVA DI CURA DOMICILIARE ICD B 1 SEMESTRE 2018 E ICD M 2 TRIMESTRE 2018;05/10/2018;3957;50;1042;1;Spese correnti;4;Trasferimenti correnti;2;Trasferimenti correnti a Famiglie;2;Interventi assistenziali;999;Altri assegni e sussidi assistenziali;27/11/2018
3170;1;0;1.200,00;1.200,00;OMESSO NOMINATIVO NEL RISPETTO DELLA NORMATIVA SULLA PROTEZIONE DATI PERSONALI; ;CONTRIBUTO IMPEGNATIVA DI CURA DOMICILIARE ICD B 1 SEMESTRE 2018 E ICD M 2 TRIMESTRE 2018;05/10/2018;3957;50;1068;1;Spese correnti;4;Trasferimenti correnti;2;Trasferimenti correnti a Famiglie;2;Interventi assistenziali;999;Altri assegni e sussidi assistenziali;05/10/2018
3171;1;0;1.200,00;1.200,00;OMESSO NOMINATIVO NEL RISPETTO DELLA NORMATIVA SULLA PROTEZIONE DATI PERSONALI; ;CONTRIBUTO IMPEGNATIVA DI CURA DOMICILIARE ICD B 1 SEMESTRE 2018 E ICD M 2 TRIMESTRE 2018;05/10/2018;3957;50;1069;1;Spese correnti;4;Trasferimenti correnti;2;Trasferimenti correnti a Famiglie;2;Interventi assistenziali;999;Altri assegni e sussidi assistenziali;05/10/2018
3172;1;0;1.200,00;1.200,00;OMESSO NOMINATIVO NEL RISPETTO DELLA NORMATIVA SULLA PROTEZIONE DATI PERSONALI; ;CONTRIBUTO IMPEGNATIVA DI CURA DOMICILIARE ICD B 1 SEMESTRE 2018 E ICD M 2 TRIMESTRE 2018;05/10/2018;3957;50;1070;1;Spese correnti;4;Trasferimenti correnti;2;Trasferimenti correnti a Famiglie;2;Interventi assistenziali;999;Altri assegni e sussidi assistenziali;05/10/2018
3173;1;0;1.200,00;1.200,00;OMESSO NOMINATIVO NEL RISPETTO DELLA NORMATIVA SULLA PROTEZIONE DATI PERSONALI; ;CONTRIBUTO IMPEGNATIVA DI CURA DOMICILIARE ICD B 1 SEMESTRE 2018 E ICD M 2 TRIMESTRE 2018;05/10/2018;3957;50;1071;1;Spese correnti;4;Trasferimenti correnti;2;Trasferimenti correnti a Famiglie;2;Interventi assistenziali;999;Altri assegni e sussidi assistenziali;05/10/2018
3174;1;0;1.600,00;1.600,00;OMESSO NOMINATIVO NEL RISPETTO DELLA NORMATIVA SULLA PROTEZIONE DATI PERSONALI; ;CONTRIBUTO IMPEGNATIVA DI CURA DOMICILIARE ICD B 1 SEMESTRE 2018 E ICD M 2 TRIMESTRE 2018;05/10/2018;3957;50;1072;1;Spese correnti;4;Trasferimenti correnti;2;Trasferimenti correnti a Famiglie;2;Interventi assistenziali;999;Altri assegni e sussidi assistenziali;05/10/2018
3175;1;0;800;800;OMESSO NOMINATIVO NEL RISPETTO DELLA NORMATIVA SULLA PROTEZIONE DATI PERSONALI; ;CONTRIBUTO IMPEGNATIVA DI CURA DOMICILIARE ICD B 1 SEMESTRE 2018 E ICD M 2 TRIMESTRE 2018;05/10/2018;3957;50;1073;1;Spese correnti;4;Trasferimenti correnti;2;Trasferimenti correnti a Famiglie;2;Interventi assistenziali;999;Altri assegni e sussidi assistenziali;05/10/2018
3176;1;0;1.200,00;1.200,00;OMESSO NOMINATIVO NEL RISPETTO DELLA NORMATIVA SULLA PROTEZIONE DATI PERSONALI; ;CONTRIBUTO IMPEGNATIVA DI CURA DOMICILIARE ICD B 1 SEMESTRE 2018 E ICD M 2 TRIMESTRE 2018;05/10/2018;3957;50;1074;1;Spese correnti;4;Trasferimenti correnti;2;Trasferimenti correnti a Famiglie;2;Interventi assistenziali;999;Altri assegni e sussidi assistenziali;05/10/2018
3177;1;0;1.200,00;1.200,00;OMESSO NOMINATIVO NEL RISPETTO DELLA NORMATIVA SULLA PROTEZIONE DATI PERSONALI; ;CONTRIBUTO IMPEGNATIVA DI CURA DOMICILIARE ICD B 1 SEMESTRE 2018 E ICD M 2 TRIMESTRE 2018;05/10/2018;3957;50;1075;1;Spese correnti;4;Trasferimenti correnti;2;Trasferimenti correnti a Famiglie;2;Interventi assistenziali;999;Altri assegni e sussidi assistenziali;05/10/2018
3178;1;0;1.200,00;1.200,00;OMESSO NOMINATIVO NEL RISPETTO DELLA NORMATIVA SULLA PROTEZIONE DATI PERSONALI; ;CONTRIBUTO IMPEGNATIVA DI CURA DOMICILIARE ICD B 1 SEMESTRE 2018 E ICD M 2 TRIMESTRE 2018;05/10/2018;3957;50;1076;1;Spese correnti;4;Trasferimenti correnti;2;Trasferimenti correnti a Famiglie;2;Interventi assistenziali;999;Altri assegni e sussidi assistenziali;05/10/2018
3179;1;0;1.200,00;1.200,00;OMESSO NOMINATIVO NEL RISPETTO DELLA NORMATIVA SULLA PROTEZIONE DATI PERSONALI; ;CONTRIBUTO IMPEGNATIVA DI CURA DOMICILIARE ICD B 1 SEMESTRE 2018 E ICD M 2 TRIMESTRE 2018;05/10/2018;3957;50;1077;1;Spese correnti;4;Trasferimenti correnti;2;Trasferimenti correnti a Famiglie;2;Interventi assistenziali;999;Altri assegni e sussidi assistenziali;05/10/2018
3180;1;0;1.200,00;1.200,00;OMESSO NOMINATIVO NEL RISPETTO DELLA NORMATIVA SULLA PROTEZIONE DATI PERSONALI; ;CONTRIBUTO IMPEGNATIVA DI CURA DOMICILIARE ICD B 1 SEMESTRE 2018 E ICD M 2 TRIMESTRE 2018;05/10/2018;3957;50;1078;1;Spese correnti;4;Trasferimenti correnti;2;Trasferimenti correnti a Famiglie;2;Interventi assistenziali;999;Altri assegni e sussidi assistenziali;05/10/2018
3181;1;0;1.200,00;1.200,00;OMESSO NOMINATIVO NEL RISPETTO DELLA NORMATIVA SULLA PROTEZIONE DATI PERSONALI; ;CONTRIBUTO IMPEGNATIVA DI CURA DOMICILIARE ICD B 1 SEMESTRE 2018 E ICD M 2 TRIMESTRE 2018;05/10/2018;3957;50;1079;1;Spese correnti;4;Trasferimenti correnti;2;Trasferimenti correnti a Famiglie;2;Interventi assistenziali;999;Altri assegni e sussidi assistenziali;05/10/2018
3182;1;0;1.200,00;1.200,00;OMESSO NOMINATIVO NEL RISPETTO DELLA NORMATIVA SULLA PROTEZIONE DATI PERSONALI; ;CONTRIBUTO IMPEGNATIVA DI CURA DOMICILIARE ICD B 1 SEMESTRE 2018 E ICD M 2 TRIMESTRE 2018;05/10/2018;3957;50;1080;1;Spese correnti;4;Trasferimenti correnti;2;Trasferimenti correnti a Famiglie;2;Interventi assistenziali;999;Altri assegni e sussidi assistenziali;05/10/2018
3183;1;0;1.200,00;1.200,00;OMESSO NOMINATIVO NEL RISPETTO DELLA NORMATIVA SULLA PROTEZIONE DATI PERSONALI; ;CONTRIBUTO IMPEGNATIVA DI CURA DOMICILIARE ICD B 1 SEMESTRE 2018 E ICD M 2 TRIMESTRE 2018;05/10/2018;3957;50;1081;1;Spese correnti;4;Trasferimenti correnti;2;Trasferimenti correnti a Famiglie;2;Interventi assistenziali;999;Altri assegni e sussidi assistenziali;05/10/2018
3184;1;0;1.200,00;1.200,00;OMESSO NOMINATIVO NEL RISPETTO DELLA NORMATIVA SULLA PROTEZIONE DATI PERSONALI; ;CONTRIBUTO IMPEGNATIVA DI CURA DOMICILIARE ICD B 1 SEMESTRE 2018 E ICD M 2 TRIMESTRE 2018;05/10/2018;3957;50;1082;1;Spese correnti;4;Trasferimenti correnti;2;Trasferimenti correnti a Famiglie;2;Interventi assistenziali;999;Altri assegni e sussidi assistenziali;05/10/2018
3185;1;0;1.200,00;1.200,00;OMESSO NOMINATIVO NEL RISPETTO DELLA NORMATIVA SULLA PROTEZIONE DATI PERSONALI; ;CONTRIBUTO IMPEGNATIVA DI CURA DOMICILIARE ICD B 1 SEMESTRE 2018 E ICD M 2 TRIMESTRE 2018;05/10/2018;3957;50;1083;1;Spese correnti;4;Trasferimenti correnti;2;Trasferimenti correnti a Famiglie;2;Interventi assistenziali;999;Altri assegni e sussidi assistenziali;05/10/2018
3187;1;9999999;32,24;32,24;ENI SPA DIVISIONE REFINING & MARKETING;ZEB21BB93A;ACCONTO Fatt.n. 29561181  del 30/06/2018 GIUGNO 2018 - FORNITURA METANO;08/10/2018;521;0;36;1;Spese correnti;3;Acquisto di beni e servizi;1;Acquisto di beni;2;Altri beni di consumo;2;Carburanti, combustibili e lubrificanti;11/10/2018
3188;1;9999999;3,79;3,79;ENI SPA DIVISIONE REFINING & MARKETING;ZEB21BB93A;SALDO Fatt.n. 29561181  del 30/06/2018 GIUGNO 2018 - FORNITURA METANO;08/10/2018;521;0;36;1;Spese correnti;3;Acquisto di beni e servizi;1;Acquisto di beni;2;Altri beni di consumo;2;Carburanti, combustibili e lubrificanti;12/10/2018
3192;1;9999999;58,68;129,78;BARBATO BARBARA ECONOMO COMUNALE; ;Rimborso bolletta N.    31 del  09-08-18 FORNITURA CANCELLERIA PER UFFICIO ANAGRAFE;09/10/2018;121;6;29;1;Spese correnti;3;Acquisto di beni e servizi;1;Acquisto di beni;2;Altri beni di consumo;1;Carta, cancelleria e stampati;12/10/2018
3192;2;9999999;71,1;129,78;BARBATO BARBARA ECONOMO COMUNALE; ;Rimborso bolletta N.    32 del  18-09-18 ACQUISTO N.2 VOLUMI PER UFFICIO PERSONALE;09/10/2018;121;6;29;1;Spese correnti;3;Acquisto di beni e servizi;1;Acquisto di beni;2;Altri beni di consumo;1;Carta, cancelleria e stampati;12/10/2018
3193;1;9999999;350;350;OMESSO NOMINATIVO NEL RISPETTO DELLA NORMATIVA SULLA PROTEZIONE DATI PERSONALI; ;Rimborso bolletta N.    29 del  13-07-18 SPESE POSTALI;09/10/2018;145;0;396;1;Spese correnti;3;Acquisto di beni e servizi;2;Acquisto di servizi;16;Servizi amministrativi;999;Altre spese per servizi amministrativi;12/10/2018
3194;1;9999999;18;50;BARBATO BARBARA ECONOMO COMUNALE; ;Rimborso bolletta N.    34 del  25-09-18 LAVAGGIO MEZZO COM.LE FIAT PANDA CA 301 AM;09/10/2018;522;0;155;1;Spese correnti;3;Acquisto di beni e servizi;1;Acquisto di beni;2;Altri beni di consumo;999;Altri beni e materiali di consumo n.a.c.;12/10/2018
3194;2;9999999;32;50;BARBATO BARBARA ECONOMO COMUNALE; ;Rimborso bolletta N.    30 del  17-07-18 ACQUISTO CINGHIA PETTORALE PER CARROZZINA ORTOPEDICA PER MEZZO SERVIZI SOCIALI;09/10/2018;522;0;155;1;Spese correnti;3;Acquisto di beni e servizi;1;Acquisto di beni;2;Altri beni di consumo;999;Altri beni e materiali di consumo n.a.c.;12/10/2018
3195;1;9999999;189,2;407,3;BARBATO BARBARA ECONOMO COMUNALE; ;Rimborso bolletta N.    28 del  09-07-18 MAGGIO /GIUGNO 2018  FORNITURA QUOTIDIANI;09/10/2018;1820;0;285;1;Spese correnti;3;Acquisto di beni e servizi;1;Acquisto di beni;1;Giornali, riviste e pubblicazioni;1;Giornali e riviste;12/10/2018
3195;2;9999999;218,1;407,3;BARBATO BARBARA ECONOMO COMUNALE; ;Rimborso bolletta N.    33 del  25-09-18 LUGLIO-AGOSTO 2018 FORNITURA QUOTIDIANI;09/10/2018;1820;0;285;1;Spese correnti;3;Acquisto di beni e servizi;1;Acquisto di beni;1;Giornali, riviste e pubblicazioni;1;Giornali e riviste;12/10/2018
3196;1;9999999;31;31;BARBATO BARBARA ECONOMO COMUNALE; ;Rimborso bolletta N.    35 del  26-09-18 OMAGGIO FLOREALE PER ARTISTE CHIUSURA LABORATORI EXPO SCUOLE ANNO 2018;09/10/2018;1821;0;116;1;Spese correnti;3;Acquisto di beni e servizi;1;Acquisto di beni;2;Altri beni di consumo;999;Altri beni e materiali di consumo n.a.c.;12/10/2018
3197;1;9999999;1.360,73;1.360,73;AGENZIA DELLE ENTRATE - IVA; ;LIQUIDAZIONE IVA COMMERCIALE MESE DI SETTEMBRE 2018;10/10/2018;291;0;1099;1;Spese correnti;10;Altre spese correnti;3;Versamenti IVA a debito;1;Versamenti IVA a debito per le gestioni commerciali;1;Versamenti IVA a debito per le gestioni commerciali;12/10/2018
3199;1;9999999;1.500,00;1.500,00;PUBLIKA SRL;Z5323F318F;Fatt.n. 1369/PA  del 20/09/2018 CORSO DI FORMAZIONE IN HOUSE AVENTE AD AOGGETTO - IL NUOVO CCNL TENUTO IL 26.06.2018;10/10/2018;833;0;750;1;Spese correnti;3;Acquisto di beni e servizi;2;Acquisto di servizi;4;Acquisto di servizi per formazione e addestramento del personale dell'ente;4;Acquisto di servizi per formazione obbligatoria;12/10/2018
3200;1;9999999;276,46;276,46;NUOVA AUTOCAR 94 SNC;ZF6240E2BD;Fatt.n. 000012  del 31/07/2018 MANUTENZIONE  NISSAN - BV340BC;10/10/2018;3538;0;774;1;Spese correnti;3;Acquisto di beni e servizi;2;Acquisto di servizi;9;Manutenzione ordinaria e riparazioni;1;Manutenzione ordinaria e riparazioni di mezzi di trasporto ad uso civile, di sicurezza e ordine pubblico;12/10/2018
3201;1;9999999;524,6;524,6;VE.CO.VER. SRL;Z7D1C805D4;Fatt.n. 4PA/15  del 27/08/2018 VERIFICA PERIODICA AGLI IMPIANTI DI TERRA SECONDO DPR 462/01 SCUOLA ELEMENTARE S.ANGELO;10/10/2018;7661;30;815;2;Spese in conto capitale;2;Investimenti fissi lordi e acquisto di terreni;1;Beni materiali;9;Beni immobili;3;Fabbricati ad uso scolastico;12/10/2018
3202;1;9999999;1.303,05;1.303,05;CENTRO BIBLIOTECHE LOVAT SRL;Z3224922C9;Fatt.n. 377-18PA  del 19/09/2018 FORNITURA VOLUMI PER BIBLIOTECA;10/10/2018;8430;0;879;2;Spese in conto capitale;2;Investimenti fissi lordi e acquisto di terreni;1;Beni materiali;99;Altri beni materiali;1;Materiale bibliografico;12/10/2018
3203;1;9999999;27;27;V.E.R.I.T.A.S. SPA; ;Fatt.n. 600004975013  del 21/09/2018 PERIODO 01.07.2018-31.08.2018 - CONSUMI MEDICINA DI GRUPPO - SEDE MUNICIPALE;10/10/2018;134;30;102;1;Spese correnti;3;Acquisto di beni e servizi;2;Acquisto di servizi;5;Utenze e canoni;5;Acqua;12/10/2018
3204;1;9999999;5,5;5,5;V.E.R.I.T.A.S. SPA; ;Fatt.n. 600004975019  del 21/09/2018 PERIODO 01.07.2018-31.08.2018 - ANTINCENDIO MEDICINA DI GRUPPO - SEDE MUNICIPALE;10/10/2018;134;30;102;1;Spese correnti;3;Acquisto di beni e servizi;2;Acquisto di servizi;5;Utenze e canoni;5;Acqua;12/10/2018
3205;1;9999999;18,74;468,14;V.E.R.I.T.A.S. SPA; ;Fatt.n. 600004975037  del 21/09/2018 PERIODO 16.01.2018-31.08.2018 - CONSUMI PIAZZA S.D.ACQUISTO CALTANA;10/10/2018;134;31;103;1;Spese correnti;3;Acquisto di beni e servizi;2;Acquisto di servizi;5;Utenze e canoni;5;Acqua;12/10/2018
3205;2;9999999;28,68;468,14;V.E.R.I.T.A.S. SPA; ;Fatt.n. 600004975058  del 21/09/2018 PERIODO 01.07.2018-31.08.2018 - CONSUMI PARCHEGGIO CASELLE;10/10/2018;134;31;103;1;Spese correnti;3;Acquisto di beni e servizi;2;Acquisto di servizi;5;Utenze e canoni;5;Acqua;12/10/2018
3205;3;9999999;29,43;468,14;V.E.R.I.T.A.S. SPA; ;Fatt.n. 600004975036  del 21/09/2018 PERIODO 17.01.2018-31.08.2018 - CONSUMI PIAZZA ACTV CALTANA;10/10/2018;134;31;103;1;Spese correnti;3;Acquisto di beni e servizi;2;Acquisto di servizi;5;Utenze e canoni;5;Acqua;12/10/2018
3205;4;9999999;45,5;468,14;V.E.R.I.T.A.S. SPA; ;Fatt.n. 600004975059  del 21/09/2018 PERIODO 01.07.2018-31.08.2018 - ANTINCENDIO PARCHEGGIO CASELLE;10/10/2018;134;31;103;1;Spese correnti;3;Acquisto di beni e servizi;2;Acquisto di servizi;5;Utenze e canoni;5;Acqua;12/10/2018
3205;5;9999999;45,5;468,14;V.E.R.I.T.A.S. SPA; ;Fatt.n. 600004975043  del 21/09/2018 PERIODO  01.07.2018-31.08.2018 - ANTINCENDIO STRADA PRESSO ALLOGGIO GUIOTTO;10/10/2018;134;31;103;1;Spese correnti;3;Acquisto di beni e servizi;2;Acquisto di servizi;5;Utenze e canoni;5;Acqua;12/10/2018
3205;6;9999999;45,5;468,14;V.E.R.I.T.A.S. SPA; ;Fatt.n. 600004975007  del 21/09/2018 PERIODO 01.07.2018-31.08.2018 - ANTINCENDIO PARCHEGGIO STIGLIANO;10/10/2018;134;31;103;1;Spese correnti;3;Acquisto di beni e servizi;2;Acquisto di servizi;5;Utenze e canoni;5;Acqua;12/10/2018
3205;7;9999999;45,5;468,14;V.E.R.I.T.A.S. SPA; ;Fatt.n. 600004975042  del 21/09/2018 PERIODO 01.07.2018-31.08.2018 - ANTINCENDIO PRESSO C.C. PRISMA;10/10/2018;134;31;103;1;Spese correnti;3;Acquisto di beni e servizi;2;Acquisto di servizi;5;Utenze e canoni;5;Acqua;12/10/2018
3205;8;9999999;45,5;468,14;V.E.R.I.T.A.S. SPA; ;Fatt.n. 600004975026  del 21/09/2018 PERIODO  04.01.2018-31.08.2018 - ANTINCENDIO PARCHEGGIO SMS;10/10/2018;134;31;103;1;Spese correnti;3;Acquisto di beni e servizi;2;Acquisto di servizi;5;Utenze e canoni;5;Acqua;12/10/2018
3205;9;9999999;45,5;468,14;V.E.R.I.T.A.S. SPA; ;Fatt.n. 600004975056  del 21/09/2018 PERIODO 01.07.2018-31.08.2018 - CONSUMI PIAZZA BEVILACQUA S.ANGELO;10/10/2018;134;31;103;1;Spese correnti;3;Acquisto di beni e servizi;2;Acquisto di servizi;5;Utenze e canoni;5;Acqua;12/10/2018
3205;10;9999999;45,5;468,14;V.E.R.I.T.A.S. SPA; ;Fatt.n. 600004975038  del 21/09/2018 PERIODO 16.01.2018-31.08.2018 - ANTINCENDIO PARCHEGGIO STIGLIANO;10/10/2018;134;31;103;1;Spese correnti;3;Acquisto di beni e servizi;2;Acquisto di servizi;5;Utenze e canoni;5;Acqua;12/10/2018
3205;11;9999999;72,79;468,14;V.E.R.I.T.A.S. SPA; ;Fatt.n. 600004975025  del 21/09/2018 PERIODO 05.01.2018-31.08.2018 -  CONSUMI PIAZZA CASELLE;10/10/2018;134;31;103;1;Spese correnti;3;Acquisto di beni e servizi;2;Acquisto di servizi;5;Utenze e canoni;5;Acqua;12/10/2018
3206;1;9999999;11,03;379,71;V.E.R.I.T.A.S. SPA; ;Fatt.n. 600004975012  del 21/09/2018 PERIODO 01.07.2018-31.08.2018 - CONSUMI MERCATO CASELLE;10/10/2018;134;31;103;1;Spese correnti;3;Acquisto di beni e servizi;2;Acquisto di servizi;5;Utenze e canoni;5;Acqua;12/10/2018
3206;2;9999999;13,16;379,71;V.E.R.I.T.A.S. SPA; ;Fatt.n. 600004975045  del 21/09/2018 PERIODO 23.01.2018-31.08.2018 - CONSUMI FONTANA VETERNIGO;10/10/2018;134;31;103;1;Spese correnti;3;Acquisto di beni e servizi;2;Acquisto di servizi;5;Utenze e canoni;5;Acqua;12/10/2018
3206;3;9999999;13,21;379,71;V.E.R.I.T.A.S. SPA; ;Fatt.n. 600004975061  del 21/09/2018 PERIODO 09.01.2018-31.08.2018 - CONSUMI FONTANA PRESSO VERDE CASELLE;10/10/2018;134;31;103;1;Spese correnti;3;Acquisto di beni e servizi;2;Acquisto di servizi;5;Utenze e canoni;5;Acqua;12/10/2018
3206;4;9999999;13,78;379,71;V.E.R.I.T.A.S. SPA; ;Fatt.n. 600004975046  del 21/09/2018 PERIODO 05.01.2018-31.08.2018 - CONSUMI MERCATO SMS;10/10/2018;134;31;103;1;Spese correnti;3;Acquisto di beni e servizi;2;Acquisto di servizi;5;Utenze e canoni;5;Acqua;12/10/2018
3206;5;9999999;25,87;379,71;V.E.R.I.T.A.S. SPA; ;Fatt.n. 600004975004  del 21/09/2018 PERIODO 17.01.2018-31.08.2018 - CONSUMI MERCATO CALTANA;10/10/2018;134;31;103;1;Spese correnti;3;Acquisto di beni e servizi;2;Acquisto di servizi;5;Utenze e canoni;5;Acqua;12/10/2018
3206;6;9999999;28,7;379,71;V.E.R.I.T.A.S. SPA; ;Fatt.n. 600004975039  del 21/09/2018 PERIODO 13.01.2018-31.08.2018 - CONSUMI PER MANIFESTAZIONI CALTANA;10/10/2018;134;31;103;1;Spese correnti;3;Acquisto di beni e servizi;2;Acquisto di servizi;5;Utenze e canoni;5;Acqua;12/10/2018
3206;7;9999999;36,08;379,71;V.E.R.I.T.A.S. SPA; ;Fatt.n. 600004975060  del 21/09/2018 PERIODO 05.01.2018-31.08.2018 - CONSUMI  DISTRIBUTORE ACQUA CASELLE;10/10/2018;134;31;103;1;Spese correnti;3;Acquisto di beni e servizi;2;Acquisto di servizi;5;Utenze e canoni;5;Acqua;12/10/2018
3206;8;9999999;45,5;379,71;V.E.R.I.T.A.S. SPA; ;Fatt.n. 600004975048  del 21/09/2018 PERIODO 01.07.2018-31.08.2018 - ANTINCENDIO MANIFESTAZIONI SMS;10/10/2018;134;31;103;1;Spese correnti;3;Acquisto di beni e servizi;2;Acquisto di servizi;5;Utenze e canoni;5;Acqua;12/10/2018
3206;9;9999999;45,5;379,71;V.E.R.I.T.A.S. SPA; ;Fatt.n. 600004975041  del 21/09/2018 PERIODO 01.07.2018-31.08.2018 - ANTINCENDIO Z.I. SMS;10/10/2018;134;31;103;1;Spese correnti;3;Acquisto di beni e servizi;2;Acquisto di servizi;5;Utenze e canoni;5;Acqua;12/10/2018
3206;10;9999999;45,5;379,71;V.E.R.I.T.A.S. SPA; ;Fatt.n. 600004975040  del 21/09/2018 PERIODO 01.07.2018-31.08.2018 - ANTINCENDIO Z.I. SMS;10/10/2018;134;31;103;1;Spese correnti;3;Acquisto di beni e servizi;2;Acquisto di servizi;5;Utenze e canoni;5;Acqua;12/10/2018
3206;11;9999999;101,38;379,71;V.E.R.I.T.A.S. SPA; ;Fatt.n. 600004975049  del 21/09/2018 PERIODO 14.07.2017-31.08.2018 - CONSUMI PER MANIFESTAZIONI SMS;10/10/2018;134;31;103;1;Spese correnti;3;Acquisto di beni e servizi;2;Acquisto di servizi;5;Utenze e canoni;5;Acqua;12/10/2018
3207;1;9999999;110,57;110,57;V.E.R.I.T.A.S. SPA; ;Fatt.n. 600004975013  del 21/09/2018 PERIODO 01.07.2018-31.08.2018 - CONSUMI MEDICINA DI GRUPPO - SEDE MUNICIPALE;10/10/2018;134;31;103;1;Spese correnti;3;Acquisto di beni e servizi;2;Acquisto di servizi;5;Utenze e canoni;5;Acqua;12/10/2018
3208;1;9999999;40;40;V.E.R.I.T.A.S. SPA; ;Fatt.n. 600004975019  del 21/09/2018 PERIODO 01.07.2018-31.08.2018 - ANTINCENDIO MEDICINA DI GRUPPO - SEDE MUNICIPALE;10/10/2018;134;31;103;1;Spese correnti;3;Acquisto di beni e servizi;2;Acquisto di servizi;5;Utenze e canoni;5;Acqua;12/10/2018
3209;1;9999999;45,49;335,06;V.E.R.I.T.A.S. SPA; ;Fatt.n. 600004975015  del 21/09/2018 PERIODO 18.07.2017-31.08.2018 - ANTINCENDIO SCUOLA MEDIA;10/10/2018;1334;30;104;1;Spese correnti;3;Acquisto di beni e servizi;2;Acquisto di servizi;5;Utenze e canoni;5;Acqua;12/10/2018
3209;2;9999999;45,5;335,06;V.E.R.I.T.A.S. SPA; ;Fatt.n. 600004975022  del 21/09/2018 PERIODO 01.07.2018-31.08.2018 - ANTINCENDIO SC. ELEM. CASELLE;10/10/2018;1334;30;104;1;Spese correnti;3;Acquisto di beni e servizi;2;Acquisto di servizi;5;Utenze e canoni;5;Acqua;12/10/2018
3209;3;9999999;65,38;335,06;V.E.R.I.T.A.S. SPA; ;Fatt.n. 600004975021  del 21/09/2018 PERIODO  12.01.2018-31.08.2018 - ANTINCENDIO SC. ELEM.CALTANA;10/10/2018;1334;30;104;1;Spese correnti;3;Acquisto di beni e servizi;2;Acquisto di servizi;5;Utenze e canoni;5;Acqua;12/10/2018
3209;4;9999999;80,45;335,06;V.E.R.I.T.A.S. SPA; ;Fatt.n. 600004975005  del 21/09/2018 PERIODO  05.01.2018-31.08.2018 - CONSUMI SC. ELEM. CASELLE;10/10/2018;1334;30;104;1;Spese correnti;3;Acquisto di beni e servizi;2;Acquisto di servizi;5;Utenze e canoni;5;Acqua;12/10/2018
3209;5;9999999;98,24;335,06;V.E.R.I.T.A.S. SPA; ;Fatt.n. 600004975016  del 21/09/2018  PERIODO 01.07.2018-31.08.2018 - CONSUMI SC. ELEM. SMS;10/10/2018;1334;30;104;1;Spese correnti;3;Acquisto di beni e servizi;2;Acquisto di servizi;5;Utenze e canoni;5;Acqua;12/10/2018
3210;1;9999999;9;9;V.E.R.I.T.A.S. SPA; ;Fatt.n. 600004975024  del 21/09/2018 PERIODO 19.01.2018-31.08.2018 - ANTINCENDIO SC. ELEM-PALESTRA-ASILO S.ANGELO;10/10/2018;1334;30;104;1;Spese correnti;3;Acquisto di beni e servizi;2;Acquisto di servizi;5;Utenze e canoni;5;Acqua;12/10/2018
3211;1;9999999;27,5;27,5;V.E.R.I.T.A.S. SPA; ;Fatt.n. 600004975024  del 21/09/2018 PERIODO 19.01.2018-31.08.2018 - ANTINCENDIO SC. ELEM-PALESTRA-ASILO S.ANGELO;10/10/2018;1334;30;104;1;Spese correnti;3;Acquisto di beni e servizi;2;Acquisto di servizi;5;Utenze e canoni;5;Acqua;12/10/2018
3212;1;9999999;87,6;87,6;V.E.R.I.T.A.S. SPA; ;Fatt.n. 600004975010  del 21/09/2018 PERIODO 01.07.2018-31.08.2018 - CONSUMI PALESTRA SMS;10/10/2018;1334;30;104;1;Spese correnti;3;Acquisto di beni e servizi;2;Acquisto di servizi;5;Utenze e canoni;5;Acqua;12/10/2018
3213;1;9999999;22,75;22,75;V.E.R.I.T.A.S. SPA; ;Fatt.n. 600004975020  del 21/09/2018 PERIODO 01.07.2018-31.08.2018 - ANTINCENDIO PALESTRA SMS;10/10/2018;1334;30;104;1;Spese correnti;3;Acquisto di beni e servizi;2;Acquisto di servizi;5;Utenze e canoni;5;Acqua;12/10/2018
3214;1;9999999;22,75;22,75;V.E.R.I.T.A.S. SPA; ;Fatt.n. 600004975054  del 21/09/2018 PERIODO 16.01.2018-31.08.2018 - ANTINCENDIO PALESTRA CALTANA;10/10/2018;1334;30;104;1;Spese correnti;3;Acquisto di beni e servizi;2;Acquisto di servizi;5;Utenze e canoni;5;Acqua;12/10/2018
3215;1;9999999;91,67;91,67;V.E.R.I.T.A.S. SPA; ;Fatt.n. 600004975053  del 21/09/2018 PERIODO 16.01.2018-31.08.2018 - CONSUMI PALESTRA CALTANA;10/10/2018;1334;30;104;1;Spese correnti;3;Acquisto di beni e servizi;2;Acquisto di servizi;5;Utenze e canoni;5;Acqua;12/10/2018
3216;1;9999999;16;16;V.E.R.I.T.A.S. SPA; ;Fatt.n. 600004975018  del 21/09/2018 PERIODO 01.07.2018-31.08.2018 - CONSUMI SC. ELEM-PALESTRA STIGLIANO;10/10/2018;1334;30;104;1;Spese correnti;3;Acquisto di beni e servizi;2;Acquisto di servizi;5;Utenze e canoni;5;Acqua;12/10/2018
3217;1;9999999;13,5;13,5;V.E.R.I.T.A.S. SPA; ;Fatt.n. 600004975018  del 21/09/2018 PERIODO 01.07.2018-31.08.2018 - CONSUMI SC. ELEM-PALESTRA STIGLIANO;10/10/2018;1334;30;104;1;Spese correnti;3;Acquisto di beni e servizi;2;Acquisto di servizi;5;Utenze e canoni;5;Acqua;12/10/2018
3218;1;9999999;211;211;V.E.R.I.T.A.S. SPA; ;Fatt.n. 600004975008  del 21/09/2018 PERIODO 01.07.2018-31.08.2018 - CONSUMI SC. ELEM-PALESTRA VETERNIGO;10/10/2018;1334;30;104;1;Spese correnti;3;Acquisto di beni e servizi;2;Acquisto di servizi;5;Utenze e canoni;5;Acqua;12/10/2018
3219;1;9999999;345,94;345,94;V.E.R.I.T.A.S. SPA; ;Fatt.n. 600004975008  del 21/09/2018 PERIODO 01.07.2018-31.08.2018 - CONSUMI SC. ELEM-PALESTRA VETERNIGO;10/10/2018;1334;30;104;1;Spese correnti;3;Acquisto di beni e servizi;2;Acquisto di servizi;5;Utenze e canoni;5;Acqua;12/10/2018
3220;1;9999999;23;23;V.E.R.I.T.A.S. SPA; ;Fatt.n. 600004975006  del 21/09/2018 PERIODO 01.07.2018-31.08.2018 - CONSUMI SC. ELEM-PALESTRA STIGLIANO;10/10/2018;1334;30;104;1;Spese correnti;3;Acquisto di beni e servizi;2;Acquisto di servizi;5;Utenze e canoni;5;Acqua;12/10/2018
3221;1;9999999;20,19;20,19;V.E.R.I.T.A.S. SPA; ;Fatt.n. 600004975006  del 21/09/2018 PERIODO 01.07.2018-31.08.2018 - CONSUMI SC. ELEM-PALESTRA STIGLIANO;10/10/2018;1334;30;104;1;Spese correnti;3;Acquisto di beni e servizi;2;Acquisto di servizi;5;Utenze e canoni;5;Acqua;12/10/2018
3222;1;9999999;12;12;V.E.R.I.T.A.S. SPA; ;Fatt.n. 600004975023  del 21/09/2018 PERIODO 01.07.2018-31.08.2018 - ANTINCENDIO SC. ELEM-PALESTRA VETERNIGO;10/10/2018;1334;30;104;1;Spese correnti;3;Acquisto di beni e servizi;2;Acquisto di servizi;5;Utenze e canoni;5;Acqua;12/10/2018
3223;1;9999999;21,5;21,5;V.E.R.I.T.A.S. SPA; ;Fatt.n. 600004975023  del 21/09/2018 PERIODO 01.07.2018-31.08.2018 - ANTINCENDIO SC. ELEM-PALESTRA VETERNIGO;10/10/2018;1334;30;104;1;Spese correnti;3;Acquisto di beni e servizi;2;Acquisto di servizi;5;Utenze e canoni;5;Acqua;12/10/2018
3224;1;9999999;63;63;V.E.R.I.T.A.S. SPA; ;Fatt.n. 600004975009  del 21/09/2018 PERIODO 19.01.2018-31.08.2018 - CONSUMI SC. ELEM-PALESTRA-ASILO S.ANGELO;10/10/2018;1334;30;104;1;Spese correnti;3;Acquisto di beni e servizi;2;Acquisto di servizi;5;Utenze e canoni;5;Acqua;12/10/2018
3225;1;9999999;186,77;186,77;V.E.R.I.T.A.S. SPA; ;Fatt.n. 600004975009  del 21/09/2018 PERIODO 19.01.2018-31.08.2018 - CONSUMI SC. ELEM-PALESTRA-ASILO S.ANGELO;10/10/2018;1334;30;104;1;Spese correnti;3;Acquisto di beni e servizi;2;Acquisto di servizi;5;Utenze e canoni;5;Acqua;12/10/2018
3226;1;9999999;-397,8;1.393,68;V.E.R.I.T.A.S. SPA; ;Fatt.n. 600004975014  del 21/09/2018 PERIODO  04.01.2018-31.08.2018 -  SCUOLA MEDIA SMS;10/10/2018;1834;0;105;1;Spese correnti;3;Acquisto di beni e servizi;2;Acquisto di servizi;5;Utenze e canoni;5;Acqua;12/10/2018
3226;1;9999999;-397,8;1.393,68;V.E.R.I.T.A.S. SPA; ;Fatt.n. 600004975014  del 21/09/2018 PERIODO  04.01.2018-31.08.2018 -  SCUOLA MEDIA SMS;10/10/2018;1834;0;105;1;Spese correnti;3;Acquisto di beni e servizi;2;Acquisto di servizi;5;Utenze e canoni;5;Acqua;15/10/2018
3226;2;9999999;-340,52;1.393,68;V.E.R.I.T.A.S. SPA; ;Fatt.n. 600004975003  del 21/09/2018 PERIODO 12.01.2018-31.08.2018 - SCUOLA ELEM. CALTANA;10/10/2018;1834;0;105;1;Spese correnti;3;Acquisto di beni e servizi;2;Acquisto di servizi;5;Utenze e canoni;5;Acqua;12/10/2018
3226;2;9999999;-340,52;1.393,68;V.E.R.I.T.A.S. SPA; ;Fatt.n. 600004975003  del 21/09/2018 PERIODO 12.01.2018-31.08.2018 - SCUOLA ELEM. CALTANA;10/10/2018;1834;0;105;1;Spese correnti;3;Acquisto di beni e servizi;2;Acquisto di servizi;5;Utenze e canoni;5;Acqua;15/10/2018
3226;3;9999999;2.132,00;1.393,68;V.E.R.I.T.A.S. SPA; ;Fatt.n. 600004975055  del 21/09/2018 PERIODO  05.01.2018-31.08.2018 - CONSUMI VILLA FARSETTI;10/10/2018;1834;0;105;1;Spese correnti;3;Acquisto di beni e servizi;2;Acquisto di servizi;5;Utenze e canoni;5;Acqua;12/10/2018
3227;1;9999999;9;9;V.E.R.I.T.A.S. SPA; ;Fatt.n. 600004975024  del 21/09/2018 PERIODO 19.01.2018-31.08.2018 - ANTINCENDIO SC. ELEM-PALESTRA-ASILO S.ANGELO;10/10/2018;1934;0;106;1;Spese correnti;3;Acquisto di beni e servizi;2;Acquisto di servizi;5;Utenze e canoni;5;Acqua;12/10/2018
3228;1;9999999;87,6;87,6;V.E.R.I.T.A.S. SPA; ;Fatt.n. 600004975010  del 21/09/2018 PERIODO 01.07.2018-31.08.2018 - CONSUMI PALESTRA SMS;10/10/2018;1934;0;106;1;Spese correnti;3;Acquisto di beni e servizi;2;Acquisto di servizi;5;Utenze e canoni;5;Acqua;12/10/2018
3229;1;9999999;22,75;22,75;V.E.R.I.T.A.S. SPA; ;Fatt.n. 600004975020  del 21/09/2018 PERIODO 01.07.2018-31.08.2018 - ANTINCENDIO PALESTRA SMS;10/10/2018;1934;0;106;1;Spese correnti;3;Acquisto di beni e servizi;2;Acquisto di servizi;5;Utenze e canoni;5;Acqua;12/10/2018
3230;1;9999999;22,75;22,75;V.E.R.I.T.A.S. SPA; ;Fatt.n. 600004975054  del 21/09/2018 PERIODO 16.01.2018-31.08.2018 - ANTINCENDIO PALESTRA CALTANA;10/10/2018;1934;0;106;1;Spese correnti;3;Acquisto di beni e servizi;2;Acquisto di servizi;5;Utenze e canoni;5;Acqua;12/10/2018
3231;1;9999999;91,68;91,68;V.E.R.I.T.A.S. SPA; ;Fatt.n. 600004975053  del 21/09/2018 PERIODO 16.01.2018-31.08.2018 - CONSUMI PALESTRA CALTANA;10/10/2018;1934;0;106;1;Spese correnti;3;Acquisto di beni e servizi;2;Acquisto di servizi;5;Utenze e canoni;5;Acqua;12/10/2018
3232;1;9999999;16;16;V.E.R.I.T.A.S. SPA; ;Fatt.n. 600004975018  del 21/09/2018 PERIODO 01.07.2018-31.08.2018 - CONSUMI SC. ELEM-PALESTRA STIGLIANO;10/10/2018;1934;0;106;1;Spese correnti;3;Acquisto di beni e servizi;2;Acquisto di servizi;5;Utenze e canoni;5;Acqua;12/10/2018
3233;1;9999999;211;211;V.E.R.I.T.A.S. SPA; ;Fatt.n. 600004975008  del 21/09/2018 PERIODO 01.07.2018-31.08.2018 - CONSUMI SC. ELEM-PALESTRA VETERNIGO;10/10/2018;1934;0;106;1;Spese correnti;3;Acquisto di beni e servizi;2;Acquisto di servizi;5;Utenze e canoni;5;Acqua;12/10/2018
3234;1;9999999;23;23;V.E.R.I.T.A.S. SPA; ;Fatt.n. 600004975006  del 21/09/2018 PERIODO 01.07.2018-31.08.2018 - CONSUMI SC. ELEM-PALESTRA STIGLIANO;10/10/2018;1934;0;106;1;Spese correnti;3;Acquisto di beni e servizi;2;Acquisto di servizi;5;Utenze e canoni;5;Acqua;12/10/2018
3235;1;9999999;12;12;V.E.R.I.T.A.S. SPA; ;Fatt.n. 600004975023  del 21/09/2018 PERIODO 01.07.2018-31.08.2018 - ANTINCENDIO SC. ELEM-PALESTRA VETERNIGO;10/10/2018;1934;0;106;1;Spese correnti;3;Acquisto di beni e servizi;2;Acquisto di servizi;5;Utenze e canoni;5;Acqua;12/10/2018
3236;1;9999999;63;63;V.E.R.I.T.A.S. SPA; ;Fatt.n. 600004975009  del 21/09/2018 PERIODO 19.01.2018-31.08.2018 - CONSUMI SC. ELEM-PALESTRA-ASILO S.ANGELO;10/10/2018;1934;0;106;1;Spese correnti;3;Acquisto di beni e servizi;2;Acquisto di servizi;5;Utenze e canoni;5;Acqua;12/10/2018
3237;1;9999999;34,96;705,27;V.E.R.I.T.A.S. SPA; ;Fatt.n. 600004975033  del 21/09/2018 PERIODO 19.01.2018-31.08.2018 - CONSUMI CIMITERO S.ANGELO;10/10/2018;3534;0;107;1;Spese correnti;3;Acquisto di beni e servizi;2;Acquisto di servizi;5;Utenze e canoni;5;Acqua;12/10/2018
3237;2;9999999;670,31;705,27;V.E.R.I.T.A.S. SPA; ;Fatt.n. 600004975035  del 21/09/2018 PERIODO 16.01.2018-31.08.2018 - CONSUMI CIMITERO STIGLIANO;10/10/2018;3534;0;107;1;Spese correnti;3;Acquisto di beni e servizi;2;Acquisto di servizi;5;Utenze e canoni;5;Acqua;12/10/2018
3238;1;9999999;538,53;538,53;V.E.R.I.T.A.S. SPA; ;Fatt.n. 600004975030  del 21/09/2018 PERIODO 03.01.2018-31.08.2018 - CONSUMI CIMITERO SMS;10/10/2018;3534;0;107;1;Spese correnti;3;Acquisto di beni e servizi;2;Acquisto di servizi;5;Utenze e canoni;5;Acqua;12/10/2018
3239;1;9999999;45,5;204,33;V.E.R.I.T.A.S. SPA; ;Fatt.n. 600004975017  del 21/09/2018 PERIODO 01.07.2018-31.08.2018 - ANTINCENDIO VILLA FARSETTI;10/10/2018;4234;0;108;1;Spese correnti;3;Acquisto di beni e servizi;2;Acquisto di servizi;5;Utenze e canoni;5;Acqua;12/10/2018
3239;2;9999999;45,5;204,33;V.E.R.I.T.A.S. SPA; ;Fatt.n. 600004975027  del 21/09/2018 PERIODO 05.01.2018-31.08.2018 - ANTINCENDIO VILLA FARSETTI;10/10/2018;4234;0;108;1;Spese correnti;3;Acquisto di beni e servizi;2;Acquisto di servizi;5;Utenze e canoni;5;Acqua;12/10/2018
3239;3;9999999;113,33;204,33;V.E.R.I.T.A.S. SPA; ;Fatt.n. 600004975011  del 21/09/2018 PERIODO 05.01.2018-31.08.2018 - CONSUMI VILLA FARSETTI;10/10/2018;4234;0;108;1;Spese correnti;3;Acquisto di beni e servizi;2;Acquisto di servizi;5;Utenze e canoni;5;Acqua;12/10/2018
3240;1;9999999;11,21;156,53;V.E.R.I.T.A.S. SPA; ;Fatt.n. 600004975034  del 21/09/2018  PERIODO  09.01.2018-31.08.2018 - CONSUMI CIMITERO CASELLE;10/10/2018;4234;0;108;1;Spese correnti;3;Acquisto di beni e servizi;2;Acquisto di servizi;5;Utenze e canoni;5;Acqua;12/10/2018
3240;2;9999999;13,14;156,53;V.E.R.I.T.A.S. SPA; ;Fatt.n. 600004975032  del 21/09/2018 PERIODO  24.01.2018-31.08.2018 - CONSUMI CIMITERO VETERNIGO;10/10/2018;4234;0;108;1;Spese correnti;3;Acquisto di beni e servizi;2;Acquisto di servizi;5;Utenze e canoni;5;Acqua;12/10/2018
3240;3;9999999;132,18;156,53;V.E.R.I.T.A.S. SPA; ;Fatt.n. 600004975031  del 21/09/2018 PERIODO 16.01.2018-31.08.2018 - CONSUMI CIMITERO CALTANA;10/10/2018;4234;0;108;1;Spese correnti;3;Acquisto di beni e servizi;2;Acquisto di servizi;5;Utenze e canoni;5;Acqua;12/10/2018
3241;1;9999999;45,49;90,98;V.E.R.I.T.A.S. SPA; ;Fatt.n. 600004975050  del 21/09/2018 PERIODO 20.01.2018-31.08.2018 - ANTINCENDIO ECOCENTRO;10/10/2018;4234;0;108;1;Spese correnti;3;Acquisto di beni e servizi;2;Acquisto di servizi;5;Utenze e canoni;5;Acqua;12/10/2018
3241;2;9999999;45,49;90,98;V.E.R.I.T.A.S. SPA; ;Fatt.n. 600004975029  del 21/09/2018 PERIODO 22.07.2017-31.08.2018 - ANTINCENDIO MAGAZZINO COMUNALE;10/10/2018;4234;0;108;1;Spese correnti;3;Acquisto di beni e servizi;2;Acquisto di servizi;5;Utenze e canoni;5;Acqua;12/10/2018
3242;1;9999999;17,23;17,23;ABACO SPA;Z4B0FF1CA6;SALDO Fatt.n. 2018140002628  del 02/10/2018 AGGIO RISCOSSIONE COATTIVA CDS LOTTO 1 RENDICONTO DELLA GESTIONE AL 30/09/2018 CIG. Z4B0FF1CA6;12/10/2018;332;0;0;1;Spese correnti;3;Acquisto di beni e servizi;2;Acquisto di servizi;3;Aggi di riscossione;999;Altri aggi di riscossione n.a.c.;18/10/2018
3243;1;9999999;4,94;4,94;ABACO SPA;5325258DE8;SALDO Fatt.n. 2018140002631  del 02/10/2018 AGGIO RISCOSSIONE COATTIVA ICI IMU E TASI LOTTO 5 NOTIFICATI 2017 RENDICONTO DELLA GESTIONE AL 30/09/2018 CIG 5325258DE8;12/10/2018;332;0;0;1;Spese correnti;3;Acquisto di beni e servizi;2;Acquisto di servizi;3;Aggi di riscossione;999;Altri aggi di riscossione n.a.c.;18/10/2018
3244;1;9999999;87,73;87,73;ABACO SPA;5325258DE8;SALDO Fatt.n. 2018140002630  del 02/10/2018 AGGIO RISCOSSIONE COATTIVA ICI IMU LOTTO 3 SAR RENDICONTO DELLA GESTIONE AL 30/09/2018 CIG 5325258DE8;12/10/2018;332;0;0;1;Spese correnti;3;Acquisto di beni e servizi;2;Acquisto di servizi;3;Aggi di riscossione;999;Altri aggi di riscossione n.a.c.;18/10/2018
3245;1;9999999;145,53;145,53;ABACO SPA;5325258DE8;SALDO Fatt.n. 2018140002629  del 02/10/2018 AGGIO RISCOSSIONE COATTIVA ICI IMU LOTTO 2 RENDICONTO DELLA GESTIONE AL 30/09/2018;12/10/2018;332;0;314;1;Spese correnti;3;Acquisto di beni e servizi;2;Acquisto di servizi;3;Aggi di riscossione;999;Altri aggi di riscossione n.a.c.;18/10/2018
3246;1;9999999;108,37;108,37;ABACO SPA;5325258DE8;SALDO Fatt.n. 2018140002632  del 02/10/2018 AGGIO RISCOSSIONE ICI IMU E TASI LOTTO 6 NOTIFICATO 2017 RENDICONTO DELLA GESTIONE AL 30/09/2018 CIG 5325258DE8;12/10/2018;332;0;0;1;Spese correnti;3;Acquisto di beni e servizi;2;Acquisto di servizi;3;Aggi di riscossione;999;Altri aggi di riscossione n.a.c.;18/10/2018
3247;1;9999999;731,46;731,46;ABACO SPA;5325258DE8;SALDO Fatt.n. 2018120003340  del 04/10/2018 AGGIO RISCOSSIONE ICP E DIRITTI CONTI ABACO RENDICONTO SETTEMBRE 2018 CIG 5325258DE8;12/10/2018;332;0;314;1;Spese correnti;3;Acquisto di beni e servizi;2;Acquisto di servizi;3;Aggi di riscossione;999;Altri aggi di riscossione n.a.c.;18/10/2018
3248;1;9999999;158,6;158,6;MAGGIOLI SPA;ZA12356DCC;Fatt.n. 0002139183  del 30/09/2018 ACQUISTO N. 2000 BOLLETTINi DI C.C.P. - N.15453301 SERVIZIO TESORERIA;12/10/2018;121;6;519;1;Spese correnti;3;Acquisto di beni e servizi;1;Acquisto di beni;2;Altri beni di consumo;1;Carta, cancelleria e stampati;17/10/2018
3249;1;9999999;28,25;28,25;C/C/P 1039683022 ICP - PUBB.AFFISSIONI; ;SPESE SETTEMBRE 2018;12/10/2018;146;0;0;1;Spese correnti;3;Acquisto di beni e servizi;2;Acquisto di servizi;17;Servizi finanziari;999;Spese per servizi finanziari n.a.c.;17/10/2018
3250;1;9999999;2.300,00;2.300,00;PRO LOCO DI S.MARIA DI SALA; ;ASSEGNAZIONE DI UN CONTRIBUTO ECONOMICO PER ATTIVITA' SOCIALE ANNO 2018;16/10/2018;1859;0;1094;1;Spese correnti;4;Trasferimenti correnti;4;Trasferimenti correnti a Istituzioni Sociali Private;1;Trasferimenti correnti a Istituzioni Sociali Private;1;Trasferimenti correnti a Istituzioni Sociali Private;17/10/2018
3252;1;9999999;5.000,00;5.000,00;LABS LABORATORIO SOLIDALE ONLUS; ;ASSEGNAZIONE DI UNA SOVVENZIONE ALLE ASSOCIAZIONI DEL TERZO SETTORE PER LA REALIZZAZIONE DI ATTIVITA;16/10/2018;1859;0;988;1;Spese correnti;4;Trasferimenti correnti;4;Trasferimenti correnti a Istituzioni Sociali Private;1;Trasferimenti correnti a Istituzioni Sociali Private;1;Trasferimenti correnti a Istituzioni Sociali Private;17/10/2018
3253;1;9999999;375;375;SOENERGY S.R.L.;7429849959;Fatt.n. 181160754  del 12/09/2018 AGOSTO  2018 CONSUMI + CONG. CONSUMI - SEDE MUNICIPALE E MEDICINA DI GRUPPO;16/10/2018;134;30;398;1;Spese correnti;3;Acquisto di beni e servizi;2;Acquisto di servizi;5;Utenze e canoni;6;Gas;18/10/2018
3254;1;9999999;20,95;20,95;SOENERGY S.R.L.;7429849959;Fatt.n. 181160747  del 12/09/2018 AGOSTO 2018 + CONG. CONSUMI - ALLOGGIO VIA DON GALLERANI;16/10/2018;134;31;397;1;Spese correnti;3;Acquisto di beni e servizi;2;Acquisto di servizi;5;Utenze e canoni;6;Gas;18/10/2018
3255;1;9999999;1.519,10;1.519,10;SOENERGY S.R.L.;7429849959;Fatt.n. 181160754  del 12/09/2018 AGOSTO  2018 CONSUMI + CONG. CONSUMI - SEDE MUNICIPALE E MEDICINA DI GRUPPO;16/10/2018;134;31;397;1;Spese correnti;3;Acquisto di beni e servizi;2;Acquisto di servizi;5;Utenze e canoni;6;Gas;18/10/2018
3256;1;9999999;36,93;36,93;SOENERGY S.R.L.;7429849959;Fatt.n. 181160746  del 12/09/2018 AGOSTO 2018 + CONG. CONSUMI SC. ELEM. CALTANA;16/10/2018;1334;30;399;1;Spese correnti;3;Acquisto di beni e servizi;2;Acquisto di servizi;5;Utenze e canoni;6;Gas;18/10/2018
3257;1;9999999;90,57;90,57;SOENERGY S.R.L.;7429849959;Fatt.n. 181160744  del 12/09/2018 AGOSTO 2018 + CONG. CONSUMI - SC. ELEM-MEDIE SMS;16/10/2018;1334;30;399;1;Spese correnti;3;Acquisto di beni e servizi;2;Acquisto di servizi;5;Utenze e canoni;6;Gas;18/10/2018
3258;1;9999999;143,55;143,55;SOENERGY S.R.L.;7429849959;Fatt.n. 181160752  del 12/09/2018 AGOSTO 2018 + CONG. CONSUMI - PALESTRA CALTANA;16/10/2018;1334;30;399;1;Spese correnti;3;Acquisto di beni e servizi;2;Acquisto di servizi;5;Utenze e canoni;6;Gas;18/10/2018
3259;1;9999999;60,28;60,28;SOENERGY S.R.L.;7429849959;Fatt.n. 181160743  del 12/09/2018 AGOSTO 2018 + CONG. CONSUMI - PALESTRA SMS;16/10/2018;1334;30;399;1;Spese correnti;3;Acquisto di beni e servizi;2;Acquisto di servizi;5;Utenze e canoni;6;Gas;18/10/2018
3260;1;9999999;60,29;60,29;SOENERGY S.R.L.;7429849959;Fatt.n. 181160743  del 12/09/2018 AGOSTO 2018 + CONG. CONSUMI - PALESTRA SMS;16/10/2018;1334;30;399;1;Spese correnti;3;Acquisto di beni e servizi;2;Acquisto di servizi;5;Utenze e canoni;6;Gas;18/10/2018
3261;1;9999999;99;99;SOENERGY S.R.L.;7429849959;Fatt.n. 181160751  del 12/09/2018 AGOSTO 2018 + CONG. CONSUMI - SC. ELEM-PALESTRA VETERNIGO;16/10/2018;1334;30;399;1;Spese correnti;3;Acquisto di beni e servizi;2;Acquisto di servizi;5;Utenze e canoni;6;Gas;18/10/2018
3262;1;9999999;99;99;SOENERGY S.R.L.;7429849959;Fatt.n. 181160751  del 12/09/2018 AGOSTO 2018 + CONG. CONSUMI - SC. ELEM-PALESTRA VETERNIGO;16/10/2018;1334;30;399;1;Spese correnti;3;Acquisto di beni e servizi;2;Acquisto di servizi;5;Utenze e canoni;6;Gas;18/10/2018
3263;1;9999999;151,42;151,42;SOENERGY S.R.L.;7429849959;Fatt.n. 181160751  del 12/09/2018 AGOSTO 2018 + CONG. CONSUMI - SC. ELEM-PALESTRA VETERNIGO;16/10/2018;1334;30;399;1;Spese correnti;3;Acquisto di beni e servizi;2;Acquisto di servizi;5;Utenze e canoni;6;Gas;18/10/2018
3264;1;9999999;140;140;SOENERGY S.R.L.;7429849959;Fatt.n. 181160742  del 12/09/2018 AGOSTO 2018 +CONG. CONSUMI SC.ELEM-PALESTRA STIGLIANO;16/10/2018;1334;30;399;1;Spese correnti;3;Acquisto di beni e servizi;2;Acquisto di servizi;5;Utenze e canoni;6;Gas;18/10/2018
3265;1;9999999;140;140;SOENERGY S.R.L.;7429849959;Fatt.n. 181160742  del 12/09/2018 AGOSTO 2018 +CONG. CONSUMI SC.ELEM-PALESTRA STIGLIANO;16/10/2018;1334;30;399;1;Spese correnti;3;Acquisto di beni e servizi;2;Acquisto di servizi;5;Utenze e canoni;6;Gas;18/10/2018
3266;1;9999999;121,2;121,2;SOENERGY S.R.L.;7429849959;Fatt.n. 181160742  del 12/09/2018 AGOSTO 2018 +CONG. CONSUMI SC.ELEM-PALESTRA STIGLIANO;16/10/2018;1334;30;399;1;Spese correnti;3;Acquisto di beni e servizi;2;Acquisto di servizi;5;Utenze e canoni;6;Gas;18/10/2018
3267;1;9999999;53;53;SOENERGY S.R.L.;7429849959;Fatt.n. 181160749  del 12/09/2018 AGOSTO 2018 + CONG. CONSUMI - SC. ELEM-PALESTRA CALTANA;16/10/2018;1334;30;399;1;Spese correnti;3;Acquisto di beni e servizi;2;Acquisto di servizi;5;Utenze e canoni;6;Gas;18/10/2018
3268;1;9999999;53;53;SOENERGY S.R.L.;7429849959;Fatt.n. 181160749  del 12/09/2018 AGOSTO 2018 + CONG. CONSUMI - SC. ELEM-PALESTRA CALTANA;16/10/2018;1334;30;399;1;Spese correnti;3;Acquisto di beni e servizi;2;Acquisto di servizi;5;Utenze e canoni;6;Gas;18/10/2018
3269;1;9999999;161,73;161,73;SOENERGY S.R.L.;7429849959;Fatt.n. 181160749  del 12/09/2018 AGOSTO 2018 + CONG. CONSUMI - SC. ELEM-PALESTRA CALTANA;16/10/2018;1334;30;399;1;Spese correnti;3;Acquisto di beni e servizi;2;Acquisto di servizi;5;Utenze e canoni;6;Gas;18/10/2018
3270;1;9999999;90;90;SOENERGY S.R.L.;7429849959;Fatt.n. 181160750  del 12/09/2018 AGOSTO 2018 + CONG CONSUMI - SC.ELEM-PALESTRA-ASILO S.ANGELO;16/10/2018;1334;30;399;1;Spese correnti;3;Acquisto di beni e servizi;2;Acquisto di servizi;5;Utenze e canoni;6;Gas;18/10/2018
3271;1;9999999;90;90;SOENERGY S.R.L.;7429849959;Fatt.n. 181160750  del 12/09/2018 AGOSTO 2018 + CONG CONSUMI - SC.ELEM-PALESTRA-ASILO S.ANGELO;16/10/2018;1334;30;399;1;Spese correnti;3;Acquisto di beni e servizi;2;Acquisto di servizi;5;Utenze e canoni;6;Gas;18/10/2018
3272;1;9999999;267,87;267,87;SOENERGY S.R.L.;7429849959;Fatt.n. 181160750  del 12/09/2018 AGOSTO 2018 + CONG CONSUMI - SC.ELEM-PALESTRA-ASILO S.ANGELO;16/10/2018;1334;30;399;1;Spese correnti;3;Acquisto di beni e servizi;2;Acquisto di servizi;5;Utenze e canoni;6;Gas;18/10/2018
3273;1;9999999;36,93;36,93;SOENERGY S.R.L.;7429849959;Fatt.n. 181160745  del 12/09/2018 AGOSTO 2018 + CONG. CONSUMI - VILLA FARSETTI;16/10/2018;1834;0;400;1;Spese correnti;3;Acquisto di beni e servizi;2;Acquisto di servizi;5;Utenze e canoni;6;Gas;18/10/2018
3274;1;9999999;252,44;252,44;SOENERGY S.R.L.;7429849959;Fatt.n. 181160748  del 12/09/2018 AGOSTO 2018 + CONG. CONSUMI - IMP.SPORT. CASELLE;16/10/2018;1934;0;401;1;Spese correnti;3;Acquisto di beni e servizi;2;Acquisto di servizi;5;Utenze e canoni;6;Gas;18/10/2018
3275;1;9999999;143,54;143,54;SOENERGY S.R.L.;7429849959;Fatt.n. 181160752  del 12/09/2018 AGOSTO 2018 + CONG. CONSUMI - PALESTRA CALTANA;16/10/2018;1934;0;401;1;Spese correnti;3;Acquisto di beni e servizi;2;Acquisto di servizi;5;Utenze e canoni;6;Gas;18/10/2018
3276;1;9999999;47,38;47,38;SOENERGY S.R.L.;7429849959;Fatt.n. 181160753  del 12/09/2018 AGOSTO 2018 + CONG. CONSUMI - MAGAZZINO COMUNALE;16/10/2018;3534;0;402;1;Spese correnti;3;Acquisto di beni e servizi;2;Acquisto di servizi;5;Utenze e canoni;6;Gas;18/10/2018
3277;1;9999999;64,1;64,1;VODAFONE ITALIA SPA;ZE321D87D0;Fatt.n. AI17603437  del 26/09/2018 PERIODO 23 LUGLIO 2018 - 20 SETTEMBRE 2018 - TELEFONIA FISSA SEDE MUNICIPALE;16/10/2018;1834;0;88;1;Spese correnti;3;Acquisto di beni e servizi;2;Acquisto di servizi;5;Utenze e canoni;1;Telefonia fissa;18/10/2018
3278;1;9999999;3.639,61;3.639,61;VODAFONE ITALIA SPA;ZA221D87F1;Fatt.n. AI17603438  del 26/09/2018 PERIODO  23 LUGLIO 2018 - 20 SETTEMBRE 2018 - TELEFONIA MOBILE;16/10/2018;134;32;507;1;Spese correnti;3;Acquisto di beni e servizi;2;Acquisto di servizi;5;Utenze e canoni;1;Telefonia fissa;18/10/2018
3279;1;9999999;2.912,23;2.912,23;VODAFONE ITALIA SPA;ZA221D87F1;Fatt.n. AI17603499  del 26/09/2018 PERIODO 23 LUGLIO 2018 - 20 SETTEMBRE 2018 - TELEFONIA MOBILE;16/10/2018;134;32;507;1;Spese correnti;3;Acquisto di beni e servizi;2;Acquisto di servizi;5;Utenze e canoni;1;Telefonia fissa;18/10/2018
3280;1;9999999;904,31;904,31;VODAFONE ITALIA SPA;Z9D21D8A84;Fatt.n. AI17603470  del 26/09/2018 PERIODO 23 LUGLIO 2018 - 20 SETTEMBRE 2018 - UTENZE SCUOLE COMUNALI;16/10/2018;134;32;507;1;Spese correnti;3;Acquisto di beni e servizi;2;Acquisto di servizi;5;Utenze e canoni;1;Telefonia fissa;18/10/2018
3281;1;9999999;1.004,46;1.004,46;VODAFONE ITALIA SPA;ZE321D87D0;Fatt.n. AI17603437  del 26/09/2018 PERIODO 23 LUGLIO 2018 - 20 SETTEMBRE 2018 - TELEFONIA FISSA SEDE MUNICIPALE;16/10/2018;134;32;507;1;Spese correnti;3;Acquisto di beni e servizi;2;Acquisto di servizi;5;Utenze e canoni;1;Telefonia fissa;18/10/2018
3282;1;9999999;21,21;21,21;COMUNE DI S.MARIA DI SALA; ;CONTRIBUTO IFEL RISCOSSIONE IMU  RENDICONTO 16-10-2018;16/10/2018;332;0;0;1;Spese correnti;3;Acquisto di beni e servizi;2;Acquisto di servizi;3;Aggi di riscossione;999;Altri aggi di riscossione n.a.c.;19/10/2018
3283;1;9999999;481,74;481,74;ABACO SPA;5325258DE8;Fatt.n. 2018120003341  del 04/10/2018 AGGIO RISCOSSIONE ICP E DIRITTI CONTO ENTE RENDICONTO SETTEMBRE 2018 CIG 5325258DE8;17/10/2018;332;0;152;1;Spese correnti;3;Acquisto di beni e servizi;2;Acquisto di servizi;3;Aggi di riscossione;999;Altri aggi di riscossione n.a.c.;18/10/2018
3284;1;9999999;49,05;49,05;C/C/P 15453301 SERVIZIO DI TESORERIA COM; ;PRELEVAMENTO N.16-2018 - OTTOBRE 2018 - PERIODO 01-15.10.2018;17/10/2018;146;0;0;1;Spese correnti;3;Acquisto di beni e servizi;2;Acquisto di servizi;17;Servizi finanziari;999;Spese per servizi finanziari n.a.c.;18/10/2018
3285;1;9999999;200;200;OMESSO NOMINATIVO NEL RISPETTO DELLA NORMATIVA SULLA PROTEZIONE DATI PERSONALI; ;OTTOBRE 2018 MINIMO VITALE;19/10/2018;4157;0;1122;1;Spese correnti;4;Trasferimenti correnti;2;Trasferimenti correnti a Famiglie;2;Interventi assistenziali;999;Altri assegni e sussidi assistenziali;30/10/2018
3286;1;9999999;130;130;OMESSO NOMINATIVO NEL RISPETTO DELLA NORMATIVA SULLA PROTEZIONE DATI PERSONALI; ;OTTOBRE 2018 MINIMO VITALE;19/10/2018;4157;0;1123;1;Spese correnti;4;Trasferimenti correnti;2;Trasferimenti correnti a Famiglie;2;Interventi assistenziali;999;Altri assegni e sussidi assistenziali;31/10/2018
3287;1;9999999;130;130;OMESSO NOMINATIVO NEL RISPETTO DELLA NORMATIVA SULLA PROTEZIONE DATI PERSONALI; ;OTTOBRE 2018 MINIMO VITALE;19/10/2018;4157;0;1124;1;Spese correnti;4;Trasferimenti correnti;2;Trasferimenti correnti a Famiglie;2;Interventi assistenziali;999;Altri assegni e sussidi assistenziali;02/11/2018
3288;1;9999999;170;170;OMESSO NOMINATIVO NEL RISPETTO DELLA NORMATIVA SULLA PROTEZIONE DATI PERSONALI; ;OTTOBRE 2018 MINIMO VITALE;19/10/2018;4157;0;1125;1;Spese correnti;4;Trasferimenti correnti;2;Trasferimenti correnti a Famiglie;2;Interventi assistenziali;999;Altri assegni e sussidi assistenziali;25/10/2018
3289;1;9999999;150;150;OMESSO NOMINATIVO NEL RISPETTO DELLA NORMATIVA SULLA PROTEZIONE DATI PERSONALI; ;OTTOBRE 2018 MINIMO VITALE;19/10/2018;4157;0;1126;1;Spese correnti;4;Trasferimenti correnti;2;Trasferimenti correnti a Famiglie;2;Interventi assistenziali;999;Altri assegni e sussidi assistenziali;08/11/2018
3290;1;9999999;100;100;OMESSO NOMINATIVO NEL RISPETTO DELLA NORMATIVA SULLA PROTEZIONE DATI PERSONALI; ;OTTOBRE 2018 MINIMO VITALE;19/10/2018;4157;0;1127;1;Spese correnti;4;Trasferimenti correnti;2;Trasferimenti correnti a Famiglie;2;Interventi assistenziali;999;Altri assegni e sussidi assistenziali;30/10/2018
3291;1;9999999;133,2;133,2;OMESSO NOMINATIVO NEL RISPETTO DELLA NORMATIVA SULLA PROTEZIONE DATI PERSONALI; ;OTTOBRE 2018 MINIMO VITALE  PER UTENTE HENIK PRISCILLA;19/10/2018;4157;0;1128;1;Spese correnti;4;Trasferimenti correnti;2;Trasferimenti correnti a Famiglie;2;Interventi assistenziali;999;Altri assegni e sussidi assistenziali;22/10/2018
3292;1;9999999;90;90;OMESSO NOMINATIVO NEL RISPETTO DELLA NORMATIVA SULLA PROTEZIONE DATI PERSONALI; ;OTTOBRE 2018 MINIMO VITALE;19/10/2018;4157;0;1129;1;Spese correnti;4;Trasferimenti correnti;2;Trasferimenti correnti a Famiglie;2;Interventi assistenziali;999;Altri assegni e sussidi assistenziali;29/10/2018
3293;1;9999999;100;100;OMESSO NOMINATIVO NEL RISPETTO DELLA NORMATIVA SULLA PROTEZIONE DATI PERSONALI; ;OTTOBRE 2018 MINIMO VITALE;19/10/2018;4157;0;1130;1;Spese correnti;4;Trasferimenti correnti;2;Trasferimenti correnti a Famiglie;2;Interventi assistenziali;999;Altri assegni e sussidi assistenziali;31/10/2018
3294;1;9999999;100;100;OMESSO NOMINATIVO NEL RISPETTO DELLA NORMATIVA SULLA PROTEZIONE DATI PERSONALI; ;OTTOBRE 2018 MINIMO VITALE;19/10/2018;4157;0;1131;1;Spese correnti;4;Trasferimenti correnti;2;Trasferimenti correnti a Famiglie;2;Interventi assistenziali;999;Altri assegni e sussidi assistenziali;26/10/2018
3295;1;9999999;150;150;OMESSO NOMINATIVO NEL RISPETTO DELLA NORMATIVA SULLA PROTEZIONE DATI PERSONALI; ;OTTOBRE 2018 MINIMO VITALE;19/10/2018;4157;0;1132;1;Spese correnti;4;Trasferimenti correnti;2;Trasferimenti correnti a Famiglie;2;Interventi assistenziali;999;Altri assegni e sussidi assistenziali;06/11/2018
3296;1;9999999;250;250;OMESSO NOMINATIVO NEL RISPETTO DELLA NORMATIVA SULLA PROTEZIONE DATI PERSONALI; ;OTTOBRE 2018 MINIMO VITALE;19/10/2018;4157;0;1133;1;Spese correnti;4;Trasferimenti correnti;2;Trasferimenti correnti a Famiglie;2;Interventi assistenziali;999;Altri assegni e sussidi assistenziali;29/10/2018
3297;1;9999999;150;150;OMESSO NOMINATIVO NEL RISPETTO DELLA NORMATIVA SULLA PROTEZIONE DATI PERSONALI; ;OTTOBRE 2018 MINIMO VITALE;19/10/2018;4157;0;1134;1;Spese correnti;4;Trasferimenti correnti;2;Trasferimenti correnti a Famiglie;2;Interventi assistenziali;999;Altri assegni e sussidi assistenziali;09/11/2018
3298;1;9999999;250;250;OMESSO NOMINATIVO NEL RISPETTO DELLA NORMATIVA SULLA PROTEZIONE DATI PERSONALI; ;OTTOBRE 2018 MINIMO VITALE  E ARRETRATI SETTEMBRE 2018;19/10/2018;4157;0;1135;1;Spese correnti;4;Trasferimenti correnti;2;Trasferimenti correnti a Famiglie;2;Interventi assistenziali;999;Altri assegni e sussidi assistenziali;30/10/2018
3299;1;9999999;70;70;OMESSO NOMINATIVO NEL RISPETTO DELLA NORMATIVA SULLA PROTEZIONE DATI PERSONALI; ;OTTOBRE 2018 MINIMO VITALE;19/10/2018;4157;0;1136;1;Spese correnti;4;Trasferimenti correnti;2;Trasferimenti correnti a Famiglie;2;Interventi assistenziali;999;Altri assegni e sussidi assistenziali;06/11/2018
3300;1;9999999;130;130;OMESSO NOMINATIVO NEL RISPETTO DELLA NORMATIVA SULLA PROTEZIONE DATI PERSONALI; ;OTTOBRE 2018 MINIMO VITALE;19/10/2018;4157;0;1137;1;Spese correnti;4;Trasferimenti correnti;2;Trasferimenti correnti a Famiglie;2;Interventi assistenziali;999;Altri assegni e sussidi assistenziali;30/10/2018
3301;1;9999999;600;600;OMESSO NOMINATIVO NEL RISPETTO DELLA NORMATIVA SULLA PROTEZIONE DATI PERSONALI; ;OTTOBRE 2018 MINIMO VITALE;19/10/2018;4157;0;1139;1;Spese correnti;4;Trasferimenti correnti;2;Trasferimenti correnti a Famiglie;2;Interventi assistenziali;999;Altri assegni e sussidi assistenziali;22/10/2018
3303;1;9999999;1.200,00;1.200,00;OMESSO NOMINATIVO NEL RISPETTO DELLA NORMATIVA SULLA PROTEZIONE DATI PERSONALI; ;CONTRIBUTO ICD B - 1 SEMESTRE 2018 E ICD M - 2 TRIMESTRE 2018;19/10/2018;3957;50;984;1;Spese correnti;4;Trasferimenti correnti;2;Trasferimenti correnti a Famiglie;2;Interventi assistenziali;999;Altri assegni e sussidi assistenziali;22/10/2018
3304;1;9999999;720;720;OMESSO NOMINATIVO NEL RISPETTO DELLA NORMATIVA SULLA PROTEZIONE DATI PERSONALI; ;CONTRIBUTO ICD B - 1 SEMESTRE 2018 E ICD M - 2 TRIMESTRE 2018;19/10/2018;3957;50;985;1;Spese correnti;4;Trasferimenti correnti;2;Trasferimenti correnti a Famiglie;2;Interventi assistenziali;999;Altri assegni e sussidi assistenziali;22/10/2018
3308;1;9999999;8.186,72;8.186,72;DIVERSI-AMMINISTRATORI COM.LI; ;STIPENDI MESE DI OTTOBRE 18;19/10/2018;30;99;0;1;Spese correnti;3;Acquisto di beni e servizi;2;Acquisto di servizi;1;Organi e incarichi istituzionali dell'amministrazione;1;Organi istituzionali dell'amministrazione - Indennità;26/10/2018
3397;1;9999999;50;50;OMESSO NOMINATIVO NEL RISPETTO DELLA NORMATIVA SULLA PROTEZIONE DATI PERSONALI; ;OTTOBRE 2018 MINIMO VITALE;22/10/2018;4157;0;1138;1;Spese correnti;4;Trasferimenti correnti;2;Trasferimenti correnti a Famiglie;2;Interventi assistenziali;999;Altri assegni e sussidi assistenziali;30/10/2018
3398;1;9999999;975;975;OMESSO NOMINATIVO NEL RISPETTO DELLA NORMATIVA SULLA PROTEZIONE DATI PERSONALI; ;OTTOBRE 2018 INTEGRAZIONE RETTA ANNI SERENI DI SCORZE'  -;22/10/2018;3844;0;635;1;Spese correnti;3;Acquisto di beni e servizi;2;Acquisto di servizi;15;Contratti di servizio pubblico;8;Contratti di servizio di assistenza sociale residenziale e semiresidenziale;24/10/2018
3399;1;9999999;356,8;356,8;OMESSO NOMINATIVO NEL RISPETTO DELLA NORMATIVA SULLA PROTEZIONE DATI PERSONALI; ;OTTOBRE 2018 INTEGRAZIONE RETTA CASA DI RIPOSO;22/10/2018;3844;0;497;1;Spese correnti;3;Acquisto di beni e servizi;2;Acquisto di servizi;15;Contratti di servizio pubblico;8;Contratti di servizio di assistenza sociale residenziale e semiresidenziale;24/10/2018
3400;1;9999999;903,3;903,3;OMESSO NOMINATIVO NEL RISPETTO DELLA NORMATIVA SULLA PROTEZIONE DATI PERSONALI; ;OTTOBRE 2018 INTEGRAZIONE RETTA CASA DI RIPOSO IPAB L.MARIUTTO DI MIRANO A FAVORE DI UTENTE;22/10/2018;3844;0;496;1;Spese correnti;3;Acquisto di beni e servizi;2;Acquisto di servizi;15;Contratti di servizio pubblico;8;Contratti di servizio di assistenza sociale residenziale e semiresidenziale;24/10/2018
3401;1;9999999;300;300;OMESSO NOMINATIVO NEL RISPETTO DELLA NORMATIVA SULLA PROTEZIONE DATI PERSONALI; ;OTTOBRE 2018 INTEGRAZIONE RETTA CASA DI RIPOSO RELAXXI DI NOALE -;22/10/2018;3844;0;518;1;Spese correnti;3;Acquisto di beni e servizi;2;Acquisto di servizi;15;Contratti di servizio pubblico;8;Contratti di servizio di assistenza sociale residenziale e semiresidenziale;24/10/2018
3402;1;9999999;717,98;717,98;OMESSO NOMINATIVO NEL RISPETTO DELLA NORMATIVA SULLA PROTEZIONE DATI PERSONALI; ;OTTOBRE 2018 INTEGRAZIONE RETTA IPAB L.MARIUTTO DI MIRANO A FAVORE DI UTENTE IN SITUAZIONE D;22/10/2018;3844;0;848;1;Spese correnti;3;Acquisto di beni e servizi;2;Acquisto di servizi;15;Contratti di servizio pubblico;8;Contratti di servizio di assistenza sociale residenziale e semiresidenziale;24/10/2018
3403;1;9999999;380,33;380,33;OMESSO NOMINATIVO NEL RISPETTO DELLA NORMATIVA SULLA PROTEZIONE DATI PERSONALI; ;OTTOBRE 2018 INTEGRAZIONE RETTA IPAB L.MARIUTTO DI MIRANO A FAVORE DI UTENTE IN SITUAZIONE D;22/10/2018;3844;0;849;1;Spese correnti;3;Acquisto di beni e servizi;2;Acquisto di servizi;15;Contratti di servizio pubblico;8;Contratti di servizio di assistenza sociale residenziale e semiresidenziale;24/10/2018
3404;1;9999999;9,47;9,47;DOLOMITI ENERGIA SPA;ZE1221E502;Fatt.n. 41803595969  del 26/09/2018 AGOSTO 2018 -  CONG. CONSUMI;22/10/2018;3544;0;151;1;Spese correnti;3;Acquisto di beni e servizi;2;Acquisto di servizi;15;Contratti di servizio pubblico;15;Contratti di servizio per l'illuminazione pubblica;24/10/2018
3405;1;9999999;2.992,26;2.992,26;ARTEA  SNC DI LION & SALVIATO;Z9A2269884;Fatt.n. 26-2018  del 20/09/2018 OPERAZIONI EFFETTUATE NEI CIMITERI DEL COMUNE DI S. MARIA DI SALA NEL MESE DI AGOSTO 2018;22/10/2018;4438;0;208;1;Spese correnti;3;Acquisto di beni e servizi;2;Acquisto di servizi;9;Manutenzione ordinaria e riparazioni;8;Manutenzione ordinaria e riparazioni di beni immobili;24/10/2018
3406;1;9999999;4.032,03;4.032,03;MARIN SERVIZI SRL;6921364A40;Fatt.n. 2018230000013  del 24/09/2018 RISTRUTTURAZIONE, ADEGUAMENTOE AMPLIAMENTO DEGLI SPOGLIATOIE LOCALI DI SERVIZIODELL'IMPIANTO SPORTIVO DI STIGLIANO;22/10/2018;8416;0;840;2;Spese in conto capitale;2;Investimenti fissi lordi e acquisto di terreni;1;Beni materiali;9;Beni immobili;16;Impianti sportivi;24/10/2018
3407;1;9999999;10.059,54;10.059,54;MARIN SERVIZI SRL;6921364A40;Fatt.n. 2018230000013  del 24/09/2018 RISTRUTTURAZIONE, ADEGUAMENTOE AMPLIAMENTO DEGLI SPOGLIATOIE LOCALI DI SERVIZIODELL'IMPIANTO SPORTIVO DI STIGLIANO;22/10/2018;8416;0;992;2;Spese in conto capitale;2;Investimenti fissi lordi e acquisto di terreni;1;Beni materiali;9;Beni immobili;16;Impianti sportivi;24/10/2018
3408;1;9999999;9.011,38;9.011,38;LAND ART SNC DI DAMIAN MARTINO E ZANELLI FABIO;Z6B22C9BEE;Fatt.n. 6/PA  del 20/09/2018 MANUTENZIONE AREE VERDI COMUNALI;22/10/2018;2549;0;295;1;Spese correnti;3;Acquisto di beni e servizi;2;Acquisto di servizi;99;Altri servizi;9;Acquisto di sevizi per verde e arredo urbano;24/10/2018
3409;1;9999999;14,64;14,64;POSTE ITALIANE SPA;Z4625179C1;SALDO Fatt.n. 2018160417  del 18/10/2018 BPIOL - FIRMA DIGITALE;23/10/2018;146;0;0;1;Spese correnti;3;Acquisto di beni e servizi;2;Acquisto di servizi;17;Servizi finanziari;999;Spese per servizi finanziari n.a.c.;25/10/2018
3410;1;9999999;250;250;CRISTOFORETTI SERVIZI ENERGIA S.P.A.;ZC21FE5CB0;Fatt.n. 0018005590  del 30/09/2018 4 RATA 2017-2018 SERVIZIO DI CONDUZIONE E MANUTENZIONE ORDINARIA DEGLI IMPIANTI TERMICI MEDICINA (INTEGRAZIONE IVA REVERSE CHARGE);23/10/2018;134;30;210;1;Spese correnti;3;Acquisto di beni e servizi;2;Acquisto di servizi;5;Utenze e canoni;6;Gas;25/10/2018
3411;1;9999999;2.000,00;2.000,00;CRISTOFORETTI SERVIZI ENERGIA S.P.A.;ZC21FE5CB0;Fatt.n. 0018005589  del 30/09/2018 3 RATA - SERVIZIO DI CONDUZIONE E MANUTENZIONE ORDINARIA IMPIANTI TERMICI 2017-2018;23/10/2018;134;31;209;1;Spese correnti;3;Acquisto di beni e servizi;2;Acquisto di servizi;5;Utenze e canoni;6;Gas;25/10/2018
3412;1;9999999;3.141,49;3.141,49;COOP.SOCIALE LIBERTA' ONLUS;Z8C23770C4;Fatt.n. 200/01  del 30/09/2018 SETTEMBRE 2018 - SERVIZIO DI PULIZIA E SANIFICAZIONE UFFICI COMUNALI;23/10/2018;142;0;628;1;Spese correnti;3;Acquisto di beni e servizi;2;Acquisto di servizi;13;Servizi ausiliari per il funzionamento dell'ente;2;Servizi di pulizia e lavanderia;25/10/2018
3413;1;9999999;1.288,83;1.288,83;KUWAIT PETROLEUM ITALIA SPA;Z021874A21;Fatt.n. PJ00370766  del 30/09/2018 SETTEMBRE 2018 - FORNITURA CARBURANTE;23/10/2018;521;0;32;1;Spese correnti;3;Acquisto di beni e servizi;1;Acquisto di beni;2;Altri beni di consumo;2;Carburanti, combustibili e lubrificanti;25/10/2018
3414;1;9999999;348,81;348,81;C.E.I.F. DI BESSEGA VANNI;Z58224744B;Fatt.n. 1-9  del 30/09/2018 MATERIALE VARIO DI FERRAMENTA PER MANUTENZIONI;23/10/2018;522;0;156;1;Spese correnti;3;Acquisto di beni e servizi;1;Acquisto di beni;2;Altri beni di consumo;999;Altri beni e materiali di consumo n.a.c.;25/10/2018
3415;1;9999999;240,34;240,34;BORTOLATO SAS DI BORTOLATO ONORINO & C.;ZCE24B09F7;Fatt.n. 000007/PA  del 29/09/2018 ACQUISTO SOFFIATORE;23/10/2018;522;0;936;1;Spese correnti;3;Acquisto di beni e servizi;1;Acquisto di beni;2;Altri beni di consumo;999;Altri beni e materiali di consumo n.a.c.;25/10/2018
3416;1;9999999;60,9;60,9;INITIAL ITALIA SPA;Z4D1F42D76;Fatt.n. 4718071338  del 25/09/2018 TAPPETO PER SEDE MUNICIPALE;23/10/2018;548;0;466;1;Spese correnti;3;Acquisto di beni e servizi;2;Acquisto di servizi;9;Manutenzione ordinaria e riparazioni;3;Manutenzione ordinaria e riparazioni di mobili e arredi;25/10/2018
3417;1;9999999;485,19;485,19;AXITEA SPA SECURITY EVOLUTION;ZA11F40B3C;Fatt.n. 1100121501  del 01/10/2018 MONITORAGGIO ALLARMI E INTERVENTO -PATTUGLIAMENTO -MAGAZZINO COMUNALE PERIODO OTTOBRE  - DICEMBRE 2018;23/10/2018;548;0;478;1;Spese correnti;3;Acquisto di beni e servizi;2;Acquisto di servizi;9;Manutenzione ordinaria e riparazioni;8;Manutenzione ordinaria e riparazioni di beni immobili;25/10/2018
3418;1;9999999;240;240;KAIROS SRL;27E24955AA;Fatt.n. 2/219  del 03/10/2018 SEMINARIO SU - ABUSI EDILIZI E SISTEMA SANZIONATORIO  - 14 SETTEMBRE 2018 A SPINEA - DIPP. BEVILACQUA A. - CECCATO S. - PAJARO C.;23/10/2018;833;0;882;1;Spese correnti;3;Acquisto di beni e servizi;2;Acquisto di servizi;4;Acquisto di servizi per formazione e addestramento del personale dell'ente;4;Acquisto di servizi per formazione obbligatoria;25/10/2018
3419;1;9999999;3.000,00;3.000,00;CRISTOFORETTI SERVIZI ENERGIA S.P.A.;ZC21FE5CB0;Fatt.n. 0018005588  del 30/09/2018 4 RATA 2017-2018 SERVIZIO DI CONDUZIONE E MANUTENZIONE ORDINARIA DEGLI IMPIANTI TERMICI PALESTRE COMUNALI (INTEGRAZIONE IVA REVERSE CHARGE);23/10/2018;1334;30;211;1;Spese correnti;3;Acquisto di beni e servizi;2;Acquisto di servizi;5;Utenze e canoni;6;Gas;25/10/2018
3420;1;9999999;4.112,89;4.112,89;CRISTOFORETTI SERVIZI ENERGIA S.P.A.;ZC21FE5CB0;Fatt.n. 0018005589  del 30/09/2018 3 RATA - SERVIZIO DI CONDUZIONE E MANUTENZIONE ORDINARIA IMPIANTI TERMICI 2017-2018;23/10/2018;1334;30;211;1;Spese correnti;3;Acquisto di beni e servizi;2;Acquisto di servizi;5;Utenze e canoni;6;Gas;25/10/2018
3421;1;9999999;658,8;658,8;MEB SRL;Z9523B2B3A;Fatt.n. 001280  del 29/09/2018 MATERIALE ELETTRICO PER MANUTENZIONI;23/10/2018;1338;0;666;1;Spese correnti;3;Acquisto di beni e servizi;2;Acquisto di servizi;9;Manutenzione ordinaria e riparazioni;4;Manutenzione ordinaria e riparazioni di impianti e macchinari;25/10/2018
3422;1;9999999;650;650;CRISTOFORETTI SERVIZI ENERGIA S.P.A.;ZC21FE5CB0;Fatt.n. 0018005589  del 30/09/2018 3 RATA - SERVIZIO DI CONDUZIONE E MANUTENZIONE ORDINARIA IMPIANTI TERMICI 2017-2018;23/10/2018;1834;0;212;1;Spese correnti;3;Acquisto di beni e servizi;2;Acquisto di servizi;5;Utenze e canoni;6;Gas;25/10/2018
3423;1;9999999;16,54;16,54;KUWAIT PETROLEUM ITALIA SPA;Z021874A21;Fatt.n. PJ00370766  del 30/09/2018 SETTEMBRE 2018 - FORNITURA CARBURANTE;23/10/2018;3521;0;34;1;Spese correnti;3;Acquisto di beni e servizi;1;Acquisto di beni;2;Altri beni di consumo;2;Carburanti, combustibili e lubrificanti;25/10/2018
3424;1;9999999;400;400;CRISTOFORETTI SERVIZI ENERGIA S.P.A.;ZC21FE5CB0;Fatt.n. 0018005589  del 30/09/2018 3 RATA - SERVIZIO DI CONDUZIONE E MANUTENZIONE ORDINARIA IMPIANTI TERMICI 2017-2018;23/10/2018;3534;0;214;1;Spese correnti;3;Acquisto di beni e servizi;2;Acquisto di servizi;5;Utenze e canoni;6;Gas;25/10/2018
3425;1;9999999;500;500;CRISTOFORETTI SERVIZI ENERGIA S.P.A.;ZC21FE5CB0;Fatt.n. 0018005589  del 30/09/2018 3 RATA - SERVIZIO DI CONDUZIONE E MANUTENZIONE ORDINARIA IMPIANTI TERMICI 2017-2018;23/10/2018;4234;0;215;1;Spese correnti;3;Acquisto di beni e servizi;2;Acquisto di servizi;5;Utenze e canoni;6;Gas;25/10/2018
3426;1;9999999;59,9;59,9;BORTOLATO SAS DI BORTOLATO ONORINO & C.;ZD42361D52;Fatt.n. 000008/PA  del 29/09/2018 ACQUISTI PER MANUTENZIONE VERDE;23/10/2018;2549;0;570;1;Spese correnti;3;Acquisto di beni e servizi;2;Acquisto di servizi;99;Altri servizi;9;Acquisto di sevizi per verde e arredo urbano;25/10/2018
3427;1;9999999;881,82;881,82;MARCIANI ANDREA;Z1911E58CC;Fatt.n. 17  del 09/10/2018 CONTENZIOSO COMUNE S.M.SALA - PDV SRL - PMG ITALIA SPA;29/10/2018;40;0;341;1;Spese correnti;3;Acquisto di beni e servizi;2;Acquisto di servizi;11;Prestazioni professionali e specialistiche;6;Patrocinio legale;02/11/2018
3428;1;9999999;686,96;686,96;KYOCERA DOCUMENT SOLUTIONS ITALIA SPA;Z3517CFFA1;Fatt.n. 1010503169  del 19/09/2018 FOTOCOPIATRICI 24 - LOTTO 4 - 60 MESI;29/10/2018;748;0;11;1;Spese correnti;3;Acquisto di beni e servizi;2;Acquisto di servizi;19;Servizi informatici e di telecomunicazioni;9;Servizi per le postazioni di lavoro e relativa manutenzione;02/11/2018
3429;1;9999999;252;252;CENTRO STUDI AMM.VI ALTA PADOVANA S.A.S;Z5024F70E1;Fatt.n. 00231  del 07/10/2018 CORSO TENUTO A MIRANO IL 2 OTTOBRE 2018 PRESSO IL TEATRO BELVEDERE SUL TEMA DEL MERCATO ELETTRONICO DELLA PUBBLICA AMMINISTRAZIONE ESERCITAZIONI ED APPROFONDIMENTI;29/10/2018;833;0;960;1;Spese correnti;3;Acquisto di beni e servizi;2;Acquisto di servizi;4;Acquisto di servizi per formazione e addestramento del personale dell'ente;4;Acquisto di servizi per formazione obbligatoria;02/11/2018
3430;1;9999999;2.285,84;7.297,54;SODEXO ITALIA SPA;67352876A8;Fatt.n. 7400042421  del 30/09/2018 MESE DI SETTEMBRE 2018 - PASTI TRASPORTATI SCUOLE BAMBINI ED INSEGNANTI;29/10/2018;1344;0;447;1;Spese correnti;3;Acquisto di beni e servizi;2;Acquisto di servizi;15;Contratti di servizio pubblico;6;Contratti di servizio per le mense scolastiche;02/11/2018
3430;2;9999999;5.011,70;7.297,54;SODEXO ITALIA SPA;67352876A8;Fatt.n. 7400042422  del 30/09/2018 MESE DI SETTEMBRE 2018 - PASTI SCUOLE MATERNE - ELEMENTARI BAMBINI ED INSEGNANTI;29/10/2018;1344;0;447;1;Spese correnti;3;Acquisto di beni e servizi;2;Acquisto di servizi;15;Contratti di servizio pubblico;6;Contratti di servizio per le mense scolastiche;02/11/2018
3431;1;9999999;1.500,60;1.500,60;GRAFICHE QUATTRO SRL;Z2B250AC6C;Fatt.n. 1/PA  del 21/08/2018 STAMPA E FORNITURA MATERIALE PER CORSI UNIVERSITA POPOLARE;29/10/2018;1831;0;1084;1;Spese correnti;3;Acquisto di beni e servizi;2;Acquisto di servizi;2;Organizzazione eventi, pubblicita` e servizi per trasferta;4;Pubblicita`;02/11/2018
3432;1;9999999;79,43;79,43;EPIU' SRL - COSTRUIRE INSIEME;Z942388188;Fatt.n. 238  del 30/09/2018 MATERIALI EDILI PER MANUTENZIONI;29/10/2018;3538;0;645;1;Spese correnti;3;Acquisto di beni e servizi;2;Acquisto di servizi;9;Manutenzione ordinaria e riparazioni;8;Manutenzione ordinaria e riparazioni di beni immobili;02/11/2018
3433;1;9999999;140,3;140,3;TELEGAMMA SAS DI GAMMA DIVIDINO & C.;Z5D24E28FC;Fatt.n. 2018150000114  del 26/09/2018 TERMINALE ALCATEL MOD. 4035 PER GESTIONE CENTRALINO TELEFONICO;29/10/2018;7440;0;949;2;Spese in conto capitale;2;Investimenti fissi lordi e acquisto di terreni;1;Beni materiali;7;Hardware;4;Apparati di telecomunicazione;02/11/2018
3434;1;9999999;174.264,97;174.264,97;AZIENDA ULSS N. 3 SERENISSIMA; ;DISTRETTO DI MIRANO-DOLO ANNO 2018 - SOCIALE - PAGAMENTO ACCONTO GESTIONE SERVIZI SOCIALI E SOCIO SANITARI;29/10/2018;3851;0;1100;1;Spese correnti;4;Trasferimenti correnti;1;Trasferimenti correnti a Amministrazioni Pubbliche;2;Trasferimenti correnti a Amministrazioni Locali;11;Trasferimenti correnti a Aziende sanitarie locali  n.a.f.;02/11/2018
3435;1;9999999;300;300;ENEL ENERGIA SPA;7376631C76;Fatt.n. 004811743400  del 05/10/2018 SETTEMBRE 2018 - CONSUMI MEDICINA DI GRUPPO - SEDE MUNICIAPALE;29/10/2018;134;30;127;1;Spese correnti;3;Acquisto di beni e servizi;2;Acquisto di servizi;5;Utenze e canoni;4;Energia elettrica;02/11/2018
3436;1;9999999;19,13;665,31;ENEL ENERGIA SPA;7376631C76;Fatt.n. 004811743454  del 05/10/2018 SETTEMBRE 2018 - CONSUMI PARCHEGGIO C.C. PRISMA CASELLE;29/10/2018;134;31;128;1;Spese correnti;3;Acquisto di beni e servizi;2;Acquisto di servizi;5;Utenze e canoni;4;Energia elettrica;02/11/2018
3436;2;9999999;59,66;665,31;ENEL ENERGIA SPA;7376631C76;Fatt.n. 004811743459  del 05/10/2018 SETTEMBRE 2018 - CONSUMI MANIFESTAZIONI SMS;29/10/2018;134;31;128;1;Spese correnti;3;Acquisto di beni e servizi;2;Acquisto di servizi;5;Utenze e canoni;4;Energia elettrica;02/11/2018
3436;3;9999999;80,52;665,31;ENEL ENERGIA SPA;7376631C76;Fatt.n. 004811743488  del 05/10/2018 SETTEMBRE 2018 - CONSUMI MERCATO CALTANA;29/10/2018;134;31;128;1;Spese correnti;3;Acquisto di beni e servizi;2;Acquisto di servizi;5;Utenze e canoni;4;Energia elettrica;02/11/2018
3436;4;9999999;87,01;665,31;ENEL ENERGIA SPA;7376631C76;Fatt.n. 004811743498  del 05/10/2018 SETTEMBRE 2018 - CONSUMI FONTANA VETERNIGO;29/10/2018;134;31;128;1;Spese correnti;3;Acquisto di beni e servizi;2;Acquisto di servizi;5;Utenze e canoni;4;Energia elettrica;02/11/2018
3436;5;9999999;131,46;665,31;ENEL ENERGIA SPA;7376631C76;Fatt.n. 004811743397  del 05/10/2018 SETTEMBRE 2018 - CONSUMI MERCATO SMS;29/10/2018;134;31;128;1;Spese correnti;3;Acquisto di beni e servizi;2;Acquisto di servizi;5;Utenze e canoni;4;Energia elettrica;02/11/2018
3436;6;9999999;132,66;665,31;ENEL ENERGIA SPA;7376631C76;Fatt.n. 004811743377  del 05/10/2018 SETTEMBRE 2018 - CONSUMI MERCATO CASELLE;29/10/2018;134;31;128;1;Spese correnti;3;Acquisto di beni e servizi;2;Acquisto di servizi;5;Utenze e canoni;4;Energia elettrica;02/11/2018
3436;7;9999999;154,87;665,31;ENEL ENERGIA SPA;7376631C76;Fatt.n. 004811743432  del 05/10/2018 SETTEMBRE 2018 - CONSUMI PIAZZA S.D.ACQUISTO CALTANA;29/10/2018;134;31;128;1;Spese correnti;3;Acquisto di beni e servizi;2;Acquisto di servizi;5;Utenze e canoni;4;Energia elettrica;02/11/2018
3437;1;9999999;5,83;5,83;ENEL ENERGIA SPA;7376631C76;Fatt.n. 004811743381  del 05/10/2018 SETTEMBRE 2018 - CONSUMI CIMITERO S.ANGELO - LAMPADE VOTIVE;29/10/2018;134;31;128;1;Spese correnti;3;Acquisto di beni e servizi;2;Acquisto di servizi;5;Utenze e canoni;4;Energia elettrica;02/11/2018
3438;1;9999999;8,8;8,8;ENEL ENERGIA SPA;7376631C76;Fatt.n. 004811743494  del 05/10/2018 SETTEMBRE 2018 - CONSUMI CIMITERO SMS - LAMPADE VOTIVE;29/10/2018;134;31;128;1;Spese correnti;3;Acquisto di beni e servizi;2;Acquisto di servizi;5;Utenze e canoni;4;Energia elettrica;02/11/2018
3439;1;9999999;29,95;29,95;ENEL ENERGIA SPA;7376631C76;Fatt.n. 004811743478  del 05/10/2018 SETTEMBRE 2018 - CONSUMI CIMITERO DI CALTANA - LAMPADE VOTIVE;29/10/2018;134;31;128;1;Spese correnti;3;Acquisto di beni e servizi;2;Acquisto di servizi;5;Utenze e canoni;4;Energia elettrica;02/11/2018
3440;1;9999999;8,71;8,71;ENEL ENERGIA SPA;7376631C76;Fatt.n. 004811743372  del 05/10/2018 SETTEMBRE 2018 - CONSUMI CIMITERO CASELLE - LAMPADE VOTIVE;29/10/2018;134;31;128;1;Spese correnti;3;Acquisto di beni e servizi;2;Acquisto di servizi;5;Utenze e canoni;4;Energia elettrica;02/11/2018
3441;1;9999999;6,71;6,71;ENEL ENERGIA SPA;7376631C76;Fatt.n. 004811743489  del 05/10/2018 SETTEMBRE 2018 - CONSUMI CIMITERO VETERNIGO - LAMPADE VOTIVE;29/10/2018;134;31;128;1;Spese correnti;3;Acquisto di beni e servizi;2;Acquisto di servizi;5;Utenze e canoni;4;Energia elettrica;02/11/2018
3442;1;9999999;39,59;39,59;ENEL ENERGIA SPA;7376631C76;Fatt.n. 004811743471  del 05/10/2018 SETTEMBRE 2018 - CONSUMI ALLOGGIO VIA DON GALLERANI;29/10/2018;134;31;128;1;Spese correnti;3;Acquisto di beni e servizi;2;Acquisto di servizi;5;Utenze e canoni;4;Energia elettrica;02/11/2018
3443;1;9999999;1.195,81;1.195,81;ENEL ENERGIA SPA;7376631C76;Fatt.n. 004811743400  del 05/10/2018 SETTEMBRE 2018 - CONSUMI MEDICINA DI GRUPPO - SEDE MUNICIAPALE;29/10/2018;134;31;128;1;Spese correnti;3;Acquisto di beni e servizi;2;Acquisto di servizi;5;Utenze e canoni;4;Energia elettrica;02/11/2018
3444;1;9999999;181,9;2.762,75;ENEL ENERGIA SPA;7376631C76;Fatt.n. 004811743398  del 05/10/2018 SETTEMBRE 2018 - CONSUMI SC. ELEM.SMS;29/10/2018;1334;30;129;1;Spese correnti;3;Acquisto di beni e servizi;2;Acquisto di servizi;5;Utenze e canoni;4;Energia elettrica;02/11/2018
3444;2;9999999;233,76;2.762,75;ENEL ENERGIA SPA;7376631C76;Fatt.n. 004811743386  del 05/10/2018 SETTEMBRE 2018 - CONSUMI SC. ELEM. CASELLE;29/10/2018;1334;30;129;1;Spese correnti;3;Acquisto di beni e servizi;2;Acquisto di servizi;5;Utenze e canoni;4;Energia elettrica;02/11/2018
3444;3;9999999;491,67;2.762,75;ENEL ENERGIA SPA;7376631C76;Fatt.n. 004811743438  del 05/10/2018 SETTEMBRE 2018 - CONSUMI SC. ELEM. CALTANA;29/10/2018;1334;30;129;1;Spese correnti;3;Acquisto di beni e servizi;2;Acquisto di servizi;5;Utenze e canoni;4;Energia elettrica;02/11/2018
3444;4;9999999;1.855,42;2.762,75;ENEL ENERGIA SPA;7376631C76;Fatt.n. 004811743426  del 05/10/2018 SETTEMBRE 2018 - CONSUMI SCUOLA MEDIA;29/10/2018;1334;30;129;1;Spese correnti;3;Acquisto di beni e servizi;2;Acquisto di servizi;5;Utenze e canoni;4;Energia elettrica;02/11/2018
3445;1;9999999;138;138;ENEL ENERGIA SPA;7376631C76;Fatt.n. 004811743425  del 05/10/2018 SETTEMBRE 2018 - CONSUMI SC. ELEM-PALESTRA STIGLIANO;29/10/2018;1334;30;129;1;Spese correnti;3;Acquisto di beni e servizi;2;Acquisto di servizi;5;Utenze e canoni;4;Energia elettrica;02/11/2018
3446;1;9999999;119,17;119,17;ENEL ENERGIA SPA;7376631C76;Fatt.n. 004811743425  del 05/10/2018 SETTEMBRE 2018 - CONSUMI SC. ELEM-PALESTRA STIGLIANO;29/10/2018;1334;30;129;1;Spese correnti;3;Acquisto di beni e servizi;2;Acquisto di servizi;5;Utenze e canoni;4;Energia elettrica;02/11/2018
3447;1;9999999;190;190;ENEL ENERGIA SPA;7376631C76;Fatt.n. 004811743487  del 05/10/2018 SETTEMBRE 2018 - CONSUMI SC. ELEM-PALESTRA VETERNIGO;29/10/2018;1334;30;129;1;Spese correnti;3;Acquisto di beni e servizi;2;Acquisto di servizi;5;Utenze e canoni;4;Energia elettrica;02/11/2018
3448;1;9999999;311,28;311,28;ENEL ENERGIA SPA;7376631C76;Fatt.n. 004811743487  del 05/10/2018 SETTEMBRE 2018 - CONSUMI SC. ELEM-PALESTRA VETERNIGO;29/10/2018;1334;30;129;1;Spese correnti;3;Acquisto di beni e servizi;2;Acquisto di servizi;5;Utenze e canoni;4;Energia elettrica;02/11/2018
3449;1;9999999;335,85;335,85;ENEL ENERGIA SPA;7376631C76;Fatt.n. 004811743414  del 05/10/2018 SETTEMBRE 2018 - CONSUMI PALESTRA DI CALTANA;29/10/2018;1334;30;129;1;Spese correnti;3;Acquisto di beni e servizi;2;Acquisto di servizi;5;Utenze e canoni;4;Energia elettrica;02/11/2018
3450;1;9999999;190,37;190,37;ENEL ENERGIA SPA;7376631C76;Fatt.n. 004811743451  del 05/10/2018 SETTEMBRE 2018 - CONSUMI PALESTRA SMS;29/10/2018;1334;30;129;1;Spese correnti;3;Acquisto di beni e servizi;2;Acquisto di servizi;5;Utenze e canoni;4;Energia elettrica;02/11/2018
3451;1;9999999;153;153;ENEL ENERGIA SPA;7376631C76;Fatt.n. 004811743449  del 05/10/2018 SETTEMBRE 2018 - CONSUMI SC. ELEM-PALESTRA-ASILO  S.ANGELO;29/10/2018;1334;30;129;1;Spese correnti;3;Acquisto di beni e servizi;2;Acquisto di servizi;5;Utenze e canoni;4;Energia elettrica;02/11/2018
3452;1;9999999;462,6;462,6;ENEL ENERGIA SPA;7376631C76;Fatt.n. 004811743449  del 05/10/2018 SETTEMBRE 2018 - CONSUMI SC. ELEM-PALESTRA-ASILO  S.ANGELO;29/10/2018;1334;30;129;1;Spese correnti;3;Acquisto di beni e servizi;2;Acquisto di servizi;5;Utenze e canoni;4;Energia elettrica;02/11/2018
3453;1;9999999;138;138;ENEL ENERGIA SPA;7376631C76;Fatt.n. 004811743425  del 05/10/2018 SETTEMBRE 2018 - CONSUMI SC. ELEM-PALESTRA STIGLIANO;29/10/2018;1934;0;131;1;Spese correnti;3;Acquisto di beni e servizi;2;Acquisto di servizi;5;Utenze e canoni;4;Energia elettrica;02/11/2018
3454;1;9999999;190;190;ENEL ENERGIA SPA;7376631C76;Fatt.n. 004811743487  del 05/10/2018 SETTEMBRE 2018 - CONSUMI SC. ELEM-PALESTRA VETERNIGO;29/10/2018;1934;0;131;1;Spese correnti;3;Acquisto di beni e servizi;2;Acquisto di servizi;5;Utenze e canoni;4;Energia elettrica;02/11/2018
3455;1;9999999;190,44;190,44;ENEL ENERGIA SPA;7376631C76;Fatt.n. 004811743447  del 05/10/2018 SETTEMBRE 2018 - CONSUMI IMP. SPORT. SMS;29/10/2018;1934;0;131;1;Spese correnti;3;Acquisto di beni e servizi;2;Acquisto di servizi;5;Utenze e canoni;4;Energia elettrica;02/11/2018
3456;1;9999999;19,13;19,13;ENEL ENERGIA SPA;7376631C76;Fatt.n. 004811743515  del 05/10/2018 SETTEMBRE 2018 - CONSUMI ALLOGGIO VIA OLIMPIA;29/10/2018;1934;0;131;1;Spese correnti;3;Acquisto di beni e servizi;2;Acquisto di servizi;5;Utenze e canoni;4;Energia elettrica;02/11/2018
3457;1;9999999;166,48;166,48;ENEL ENERGIA SPA;7376631C76;Fatt.n. 004811743486  del 05/10/2018 SETTEMBRE 2018 - CONSUMI IMP. SPORT. CASELLE;29/10/2018;1934;0;131;1;Spese correnti;3;Acquisto di beni e servizi;2;Acquisto di servizi;5;Utenze e canoni;4;Energia elettrica;02/11/2018
3458;1;9999999;335,85;335,85;ENEL ENERGIA SPA;7376631C76;Fatt.n. 004811743414  del 05/10/2018 SETTEMBRE 2018 - CONSUMI PALESTRA DI CALTANA;29/10/2018;1934;0;131;1;Spese correnti;3;Acquisto di beni e servizi;2;Acquisto di servizi;5;Utenze e canoni;4;Energia elettrica;02/11/2018
3459;1;9999999;190,36;190,36;ENEL ENERGIA SPA;7376631C76;Fatt.n. 004811743451  del 05/10/2018 SETTEMBRE 2018 - CONSUMI PALESTRA SMS;29/10/2018;1934;0;131;1;Spese correnti;3;Acquisto di beni e servizi;2;Acquisto di servizi;5;Utenze e canoni;4;Energia elettrica;02/11/2018
3460;1;9999999;153;153;ENEL ENERGIA SPA;7376631C76;Fatt.n. 004811743449  del 05/10/2018 SETTEMBRE 2018 - CONSUMI SC. ELEM-PALESTRA-ASILO  S.ANGELO;29/10/2018;1934;0;131;1;Spese correnti;3;Acquisto di beni e servizi;2;Acquisto di servizi;5;Utenze e canoni;4;Energia elettrica;02/11/2018
3461;1;9999999;25,95;288,56;ENEL ENERGIA SPA;7376631C76;Fatt.n. 004811743422  del 05/10/2018 SETTEMBRE 2018 - CONSUMI ECOCENTRO SMS;29/10/2018;3534;0;133;1;Spese correnti;3;Acquisto di beni e servizi;2;Acquisto di servizi;5;Utenze e canoni;4;Energia elettrica;02/11/2018
3461;2;9999999;262,61;288,56;ENEL ENERGIA SPA;7376631C76;Fatt.n. 004811743416  del 05/10/2018 SETTEMBRE 2018 - CONSUMI MAGAZZINO COMUNALE;29/10/2018;3534;0;133;1;Spese correnti;3;Acquisto di beni e servizi;2;Acquisto di servizi;5;Utenze e canoni;4;Energia elettrica;02/11/2018
3462;1;9999999;5,36;1.454,66;ENEL ENERGIA SPA;7376631C76;Fatt.n. 004811743427  del 05/10/2018 SETTEMBRE 2018 - CONSUMI ILLUMINAZIONE PUBBLICA;29/10/2018;3544;0;154;1;Spese correnti;3;Acquisto di beni e servizi;2;Acquisto di servizi;15;Contratti di servizio pubblico;15;Contratti di servizio per l'illuminazione pubblica;02/11/2018
3462;2;9999999;11,03;1.454,66;ENEL ENERGIA SPA;7376631C76;Fatt.n. 004811743390  del 05/10/2018 SETTEMBRE 2018 - CONSUMI ILLUMINAZIONE PUBBLICA;29/10/2018;3544;0;154;1;Spese correnti;3;Acquisto di beni e servizi;2;Acquisto di servizi;15;Contratti di servizio pubblico;15;Contratti di servizio per l'illuminazione pubblica;02/11/2018
3462;3;9999999;26,22;1.454,66;ENEL ENERGIA SPA;7376631C76;Fatt.n. 004811743505  del 05/10/2018 SETTEMBRE 2018 - CONSUMI ILLUMINAZIONE PUBBLICA;29/10/2018;3544;0;154;1;Spese correnti;3;Acquisto di beni e servizi;2;Acquisto di servizi;15;Contratti di servizio pubblico;15;Contratti di servizio per l'illuminazione pubblica;02/11/2018
3462;4;9999999;28,02;1.454,66;ENEL ENERGIA SPA;7376631C76;Fatt.n. 004811743391  del 05/10/2018 SETTEMBRE 2018 - CONSUMI ILLUMINAZIONE PUBBLICA;29/10/2018;3544;0;154;1;Spese correnti;3;Acquisto di beni e servizi;2;Acquisto di servizi;15;Contratti di servizio pubblico;15;Contratti di servizio per l'illuminazione pubblica;02/11/2018
3462;5;9999999;124,65;1.454,66;ENEL ENERGIA SPA;7376631C76;Fatt.n. 004811743431  del 05/10/2018 SETTEMBRE 2018 - CONSUMI ILLUMINAZIONE PUBBLICA;29/10/2018;3544;0;154;1;Spese correnti;3;Acquisto di beni e servizi;2;Acquisto di servizi;15;Contratti di servizio pubblico;15;Contratti di servizio per l'illuminazione pubblica;02/11/2018
3462;6;9999999;145,36;1.454,66;ENEL ENERGIA SPA;7376631C76;Fatt.n. 004811743403  del 05/10/2018 SETTEMBRE 2018 - CONSUMI ILLUMINAZIONE PUBBLICA;29/10/2018;3544;0;154;1;Spese correnti;3;Acquisto di beni e servizi;2;Acquisto di servizi;15;Contratti di servizio pubblico;15;Contratti di servizio per l'illuminazione pubblica;02/11/2018
3462;7;9999999;202,2;1.454,66;ENEL ENERGIA SPA;7376631C76;Fatt.n. 004811743480  del 05/10/2018 SETTEMBRE 2018 - CONSUMI ILLUMINAZIONE PUBBLICA;29/10/2018;3544;0;154;1;Spese correnti;3;Acquisto di beni e servizi;2;Acquisto di servizi;15;Contratti di servizio pubblico;15;Contratti di servizio per l'illuminazione pubblica;02/11/2018
3462;8;9999999;212,65;1.454,66;ENEL ENERGIA SPA;7376631C76;Fatt.n. 004811743411  del 05/10/2018 SETTEMBRE 2018 - CONSUMI ILLUMINAZIONE PUBBLICA;29/10/2018;3544;0;154;1;Spese correnti;3;Acquisto di beni e servizi;2;Acquisto di servizi;15;Contratti di servizio pubblico;15;Contratti di servizio per l'illuminazione pubblica;02/11/2018
3462;9;9999999;222,19;1.454,66;ENEL ENERGIA SPA;7376631C76;Fatt.n. 004811743497  del 05/10/2018 SETTEMBRE 2018 - CONSUMI ILLUMINAZIONE PUBBLICA;29/10/2018;3544;0;154;1;Spese correnti;3;Acquisto di beni e servizi;2;Acquisto di servizi;15;Contratti di servizio pubblico;15;Contratti di servizio per l'illuminazione pubblica;02/11/2018
3462;10;9999999;476,98;1.454,66;ENEL ENERGIA SPA;7376631C76;Fatt.n. 004811743415  del 05/10/2018 SETTEMBRE 2018 - CONSUMI ILLUMINAZIONE PUBBLICA;29/10/2018;3544;0;154;1;Spese correnti;3;Acquisto di beni e servizi;2;Acquisto di servizi;15;Contratti di servizio pubblico;15;Contratti di servizio per l'illuminazione pubblica;02/11/2018
3463;1;9999999;6,65;1.719,65;ENEL ENERGIA SPA;7376631C76;Fatt.n. 004811743493  del 05/10/2018 SETTEMBRE 2018 - CONSUMI ILLUMINAZIONE PUBBLICA;29/10/2018;3544;0;154;1;Spese correnti;3;Acquisto di beni e servizi;2;Acquisto di servizi;15;Contratti di servizio pubblico;15;Contratti di servizio per l'illuminazione pubblica;02/11/2018
3463;2;9999999;11,87;1.719,65;ENEL ENERGIA SPA;7376631C76;Fatt.n. 004811743485  del 05/10/2018 SETTEMBRE 2018 - CONSUMI ILLUMINAZIONE PUBBLICA;29/10/2018;3544;0;154;1;Spese correnti;3;Acquisto di beni e servizi;2;Acquisto di servizi;15;Contratti di servizio pubblico;15;Contratti di servizio per l'illuminazione pubblica;02/11/2018
3463;3;9999999;36,82;1.719,65;ENEL ENERGIA SPA;7376631C76;Fatt.n. 004811743384  del 05/10/2018 SETTEMBRE 2018 - CONSUMI ILLUMINAZIONE PUBBLICA;29/10/2018;3544;0;154;1;Spese correnti;3;Acquisto di beni e servizi;2;Acquisto di servizi;15;Contratti di servizio pubblico;15;Contratti di servizio per l'illuminazione pubblica;02/11/2018
3463;4;9999999;38,69;1.719,65;ENEL ENERGIA SPA;7376631C76;Fatt.n. 004811743473  del 05/10/2018 SETTEMBRE 2018 - CONSUMI ILLUMINAZIONE PUBBLICA;29/10/2018;3544;0;154;1;Spese correnti;3;Acquisto di beni e servizi;2;Acquisto di servizi;15;Contratti di servizio pubblico;15;Contratti di servizio per l'illuminazione pubblica;02/11/2018
3463;5;9999999;53,38;1.719,65;ENEL ENERGIA SPA;7376631C76;Fatt.n. 004811743483  del 05/10/2018 SETTEMBRE 2018 - CONSUMI ILLUMINAZIONE PUBBLICA;29/10/2018;3544;0;154;1;Spese correnti;3;Acquisto di beni e servizi;2;Acquisto di servizi;15;Contratti di servizio pubblico;15;Contratti di servizio per l'illuminazione pubblica;02/11/2018
3463;6;9999999;63,46;1.719,65;ENEL ENERGIA SPA;7376631C76;Fatt.n. 004811743508  del 05/10/2018 SETTEMBRE 2018 - CONSUMI ILLUMINAZIONE PUBBLICA;29/10/2018;3544;0;154;1;Spese correnti;3;Acquisto di beni e servizi;2;Acquisto di servizi;15;Contratti di servizio pubblico;15;Contratti di servizio per l'illuminazione pubblica;02/11/2018
3463;7;9999999;82,97;1.719,65;ENEL ENERGIA SPA;7376631C76;Fatt.n. 004811743445  del 05/10/2018 SETTEMBRE 2018 - CONSUMI ILLUMINAZIONE PUBBLICA;29/10/2018;3544;0;154;1;Spese correnti;3;Acquisto di beni e servizi;2;Acquisto di servizi;15;Contratti di servizio pubblico;15;Contratti di servizio per l'illuminazione pubblica;02/11/2018
3463;8;9999999;433,06;1.719,65;ENEL ENERGIA SPA;7376631C76;Fatt.n. 004811743374  del 05/10/2018 SETTEMBRE 2018 - CONSUMI ILLUMINAZIONE PUBBLICA;29/10/2018;3544;0;154;1;Spese correnti;3;Acquisto di beni e servizi;2;Acquisto di servizi;15;Contratti di servizio pubblico;15;Contratti di servizio per l'illuminazione pubblica;02/11/2018
3463;9;9999999;492,6;1.719,65;ENEL ENERGIA SPA;7376631C76;Fatt.n. 004811743465  del 05/10/2018 SETTEMBRE 2018 - CONSUMI ILLUMINAZIONE PUBBLICA;29/10/2018;3544;0;154;1;Spese correnti;3;Acquisto di beni e servizi;2;Acquisto di servizi;15;Contratti di servizio pubblico;15;Contratti di servizio per l'illuminazione pubblica;02/11/2018
3463;10;9999999;500,15;1.719,65;ENEL ENERGIA SPA;7376631C76;Fatt.n. 004811743392  del 05/10/2018 SETTEMBRE 2018 - CONSUMI ILLUMINAZIONE PUBBLICA;29/10/2018;3544;0;154;1;Spese correnti;3;Acquisto di beni e servizi;2;Acquisto di servizi;15;Contratti di servizio pubblico;15;Contratti di servizio per l'illuminazione pubblica;02/11/2018
3464;1;9999999;9,47;1.195,40;ENEL ENERGIA SPA;7376631C76;Fatt.n. 004811743406  del 05/10/2018 SETTEMBRE 2018 - CONSUMI ILLUMINAZIONE PUBBLICA;29/10/2018;3544;0;154;1;Spese correnti;3;Acquisto di beni e servizi;2;Acquisto di servizi;15;Contratti di servizio pubblico;15;Contratti di servizio per l'illuminazione pubblica;02/11/2018
3464;2;9999999;25,39;1.195,40;ENEL ENERGIA SPA;7376631C76;Fatt.n. 004811743469  del 05/10/2018 SETTEMBRE 2018 - CONSUMI ILLUMINAZIONE PUBBLICA;29/10/2018;3544;0;154;1;Spese correnti;3;Acquisto di beni e servizi;2;Acquisto di servizi;15;Contratti di servizio pubblico;15;Contratti di servizio per l'illuminazione pubblica;02/11/2018
3464;3;9999999;29,06;1.195,40;ENEL ENERGIA SPA;7376631C76;Fatt.n. 004811743436  del 05/10/2018 SETTEMBRE 2018 - CONSUMI ILLUMINAZIONE PUBBLICA;29/10/2018;3544;0;154;1;Spese correnti;3;Acquisto di beni e servizi;2;Acquisto di servizi;15;Contratti di servizio pubblico;15;Contratti di servizio per l'illuminazione pubblica;02/11/2018
3464;4;9999999;57,8;1.195,40;ENEL ENERGIA SPA;7376631C76;Fatt.n. 004811743446  del 05/10/2018 SETTEMBRE 2018 - CONSUMI ILLUMINAZIONE PUBBLICA;29/10/2018;3544;0;154;1;Spese correnti;3;Acquisto di beni e servizi;2;Acquisto di servizi;15;Contratti di servizio pubblico;15;Contratti di servizio per l'illuminazione pubblica;02/11/2018
3464;5;9999999;77,6;1.195,40;ENEL ENERGIA SPA;7376631C76;Fatt.n. 004811743375  del 05/10/2018 SETTEMBRE 2018 - CONSUMI ILLUMINAZIONE PUBBLICA;29/10/2018;3544;0;154;1;Spese correnti;3;Acquisto di beni e servizi;2;Acquisto di servizi;15;Contratti di servizio pubblico;15;Contratti di servizio per l'illuminazione pubblica;02/11/2018
3464;6;9999999;78,53;1.195,40;ENEL ENERGIA SPA;7376631C76;Fatt.n. 004811743499  del 05/10/2018 SETTEMBRE 2018 - CONSUMI ILLUMINAZIONE PUBBLICA;29/10/2018;3544;0;154;1;Spese correnti;3;Acquisto di beni e servizi;2;Acquisto di servizi;15;Contratti di servizio pubblico;15;Contratti di servizio per l'illuminazione pubblica;02/11/2018
3464;7;9999999;167,68;1.195,40;ENEL ENERGIA SPA;7376631C76;Fatt.n. 004811743450  del 05/10/2018 SETTEMBRE 2018 - CONSUMI ILLUMINAZIONE PUBBLICA;29/10/2018;3544;0;154;1;Spese correnti;3;Acquisto di beni e servizi;2;Acquisto di servizi;15;Contratti di servizio pubblico;15;Contratti di servizio per l'illuminazione pubblica;02/11/2018
3464;8;9999999;171,68;1.195,40;ENEL ENERGIA SPA;7376631C76;Fatt.n. 004811743500  del 05/10/2018 SETTEMBRE 2018 - CONSUMI ILLUMINAZIONE PUBBLICA;29/10/2018;3544;0;154;1;Spese correnti;3;Acquisto di beni e servizi;2;Acquisto di servizi;15;Contratti di servizio pubblico;15;Contratti di servizio per l'illuminazione pubblica;02/11/2018
3464;9;9999999;212,24;1.195,40;ENEL ENERGIA SPA;7376631C76;Fatt.n. 004811743458  del 05/10/2018 SETTEMBRE 2018 - CONSUMI ILLUMINAZIONE PUBBLICA;29/10/2018;3544;0;154;1;Spese correnti;3;Acquisto di beni e servizi;2;Acquisto di servizi;15;Contratti di servizio pubblico;15;Contratti di servizio per l'illuminazione pubblica;02/11/2018
3464;10;9999999;365,95;1.195,40;ENEL ENERGIA SPA;7376631C76;Fatt.n. 004811743424  del 05/10/2018 SETTEMBRE 2018 - CONSUMI ILLUMINAZIONE PUBBLICA;29/10/2018;3544;0;154;1;Spese correnti;3;Acquisto di beni e servizi;2;Acquisto di servizi;15;Contratti di servizio pubblico;15;Contratti di servizio per l'illuminazione pubblica;02/11/2018
3465;1;9999999;11,22;1.691,11;ENEL ENERGIA SPA;7376631C76;Fatt.n. 004811743407  del 05/10/2018 SETTEMBRE 2018 - CONSUMI ILLUMINAZIONE PUBBLICA;29/10/2018;3544;0;154;1;Spese correnti;3;Acquisto di beni e servizi;2;Acquisto di servizi;15;Contratti di servizio pubblico;15;Contratti di servizio per l'illuminazione pubblica;02/11/2018
3465;2;9999999;20,44;1.691,11;ENEL ENERGIA SPA;7376631C76;Fatt.n. 004811743410  del 05/10/2018 SETTEMBRE 2018 - CONSUMI ILLUMINAZIONE PUBBLICA;29/10/2018;3544;0;154;1;Spese correnti;3;Acquisto di beni e servizi;2;Acquisto di servizi;15;Contratti di servizio pubblico;15;Contratti di servizio per l'illuminazione pubblica;02/11/2018
3465;3;9999999;49,41;1.691,11;ENEL ENERGIA SPA;7376631C76;Fatt.n. 004811743402  del 05/10/2018 SETTEMBRE 2018 - CONSUMI ILLUMINAZIONE PUBBLICA;29/10/2018;3544;0;154;1;Spese correnti;3;Acquisto di beni e servizi;2;Acquisto di servizi;15;Contratti di servizio pubblico;15;Contratti di servizio per l'illuminazione pubblica;02/11/2018
3465;4;9999999;53,99;1.691,11;ENEL ENERGIA SPA;7376631C76;Fatt.n. 004811743496  del 05/10/2018 SETTEMBRE 2018 - CONSUMI ILLUMINAZIONE PUBBLICA;29/10/2018;3544;0;154;1;Spese correnti;3;Acquisto di beni e servizi;2;Acquisto di servizi;15;Contratti di servizio pubblico;15;Contratti di servizio per l'illuminazione pubblica;02/11/2018
3465;5;9999999;113,13;1.691,11;ENEL ENERGIA SPA;7376631C76;Fatt.n. 004811743404  del 05/10/2018 SETTEMBRE 2018 - CONSUMI ILLUMINAZIONE PUBBLICA;29/10/2018;3544;0;154;1;Spese correnti;3;Acquisto di beni e servizi;2;Acquisto di servizi;15;Contratti di servizio pubblico;15;Contratti di servizio per l'illuminazione pubblica;02/11/2018
3465;6;9999999;152,02;1.691,11;ENEL ENERGIA SPA;7376631C76;Fatt.n. 004811743457  del 05/10/2018 SETTEMBRE 2018 - CONSUMI ILLUMINAZIONE PUBBLICA;29/10/2018;3544;0;154;1;Spese correnti;3;Acquisto di beni e servizi;2;Acquisto di servizi;15;Contratti di servizio pubblico;15;Contratti di servizio per l'illuminazione pubblica;02/11/2018
3465;7;9999999;225,76;1.691,11;ENEL ENERGIA SPA;7376631C76;Fatt.n. 004811743440  del 05/10/2018 SETTEMBRE 2018 - CONSUMI ILLUMINAZIONE PUBBLICA;29/10/2018;3544;0;154;1;Spese correnti;3;Acquisto di beni e servizi;2;Acquisto di servizi;15;Contratti di servizio pubblico;15;Contratti di servizio per l'illuminazione pubblica;02/11/2018
3465;8;9999999;261,2;1.691,11;ENEL ENERGIA SPA;7376631C76;Fatt.n. 004811743456  del 05/10/2018 SETTEMBRE 2018 - CONSUMI ILLUMINAZIONE PUBBLICA;29/10/2018;3544;0;154;1;Spese correnti;3;Acquisto di beni e servizi;2;Acquisto di servizi;15;Contratti di servizio pubblico;15;Contratti di servizio per l'illuminazione pubblica;02/11/2018
3465;9;9999999;294,54;1.691,11;ENEL ENERGIA SPA;7376631C76;Fatt.n. 004811743382  del 05/10/2018 SETTEMBRE 2018 - CONSUMI ILLUMINAZIONE PUBBLICA;29/10/2018;3544;0;154;1;Spese correnti;3;Acquisto di beni e servizi;2;Acquisto di servizi;15;Contratti di servizio pubblico;15;Contratti di servizio per l'illuminazione pubblica;02/11/2018
3465;10;9999999;509,4;1.691,11;ENEL ENERGIA SPA;7376631C76;Fatt.n. 004811743460  del 05/10/2018 SETTEMBRE 2018 - CONSUMI ILLUMINAZIONE PUBBLICA;29/10/2018;3544;0;154;1;Spese correnti;3;Acquisto di beni e servizi;2;Acquisto di servizi;15;Contratti di servizio pubblico;15;Contratti di servizio per l'illuminazione pubblica;02/11/2018
3466;1;9999999;4,22;1.980,07;ENEL ENERGIA SPA;7376631C76;Fatt.n. 004811743514  del 05/10/2018 SETTEMBRE 2018 - CONSUMI ILLUMINAZIONE PUBBLICA;29/10/2018;3544;0;154;1;Spese correnti;3;Acquisto di beni e servizi;2;Acquisto di servizi;15;Contratti di servizio pubblico;15;Contratti di servizio per l'illuminazione pubblica;02/11/2018
3466;2;9999999;10,78;1.980,07;ENEL ENERGIA SPA;7376631C76;Fatt.n. 004811743470  del 05/10/2018 SETTEMBRE 2018 - CONSUMI ILLUMINAZIONE PUBBLICA;29/10/2018;3544;0;154;1;Spese correnti;3;Acquisto di beni e servizi;2;Acquisto di servizi;15;Contratti di servizio pubblico;15;Contratti di servizio per l'illuminazione pubblica;02/11/2018
3466;3;9999999;13,51;1.980,07;ENEL ENERGIA SPA;7376631C76;Fatt.n. 004811743399  del 05/10/2018 SETTEMBRE 2018 - CONSUMI ILLUMINAZIONE PUBBLICA;29/10/2018;3544;0;154;1;Spese correnti;3;Acquisto di beni e servizi;2;Acquisto di servizi;15;Contratti di servizio pubblico;15;Contratti di servizio per l'illuminazione pubblica;02/11/2018
3466;4;9999999;15,43;1.980,07;ENEL ENERGIA SPA;7376631C76;Fatt.n. 004811743430  del 05/10/2018 SETTEMBRE 2018 - CONSUMI ILLUMINAZIONE PUBBLICA;29/10/2018;3544;0;154;1;Spese correnti;3;Acquisto di beni e servizi;2;Acquisto di servizi;15;Contratti di servizio pubblico;15;Contratti di servizio per l'illuminazione pubblica;02/11/2018
3466;5;9999999;84,08;1.980,07;ENEL ENERGIA SPA;7376631C76;Fatt.n. 004811743373  del 05/10/2018 SETTEMBRE 2018 - CONSUMI ILLUMINAZIONE PUBBLICA;29/10/2018;3544;0;154;1;Spese correnti;3;Acquisto di beni e servizi;2;Acquisto di servizi;15;Contratti di servizio pubblico;15;Contratti di servizio per l'illuminazione pubblica;02/11/2018
3466;6;9999999;111,35;1.980,07;ENEL ENERGIA SPA;7376631C76;Fatt.n. 004811743385  del 05/10/2018 SETTEMBRE 2018 - CONSUMI ILLUMINAZIONE PUBBLICA;29/10/2018;3544;0;154;1;Spese correnti;3;Acquisto di beni e servizi;2;Acquisto di servizi;15;Contratti di servizio pubblico;15;Contratti di servizio per l'illuminazione pubblica;02/11/2018
3466;7;9999999;117,86;1.980,07;ENEL ENERGIA SPA;7376631C76;Fatt.n. 004811743502  del 05/10/2018 SETTEMBRE 2018 - CONSUMI ILLUMINAZIONE PUBBLICA;29/10/2018;3544;0;154;1;Spese correnti;3;Acquisto di beni e servizi;2;Acquisto di servizi;15;Contratti di servizio pubblico;15;Contratti di servizio per l'illuminazione pubblica;02/11/2018
3466;8;9999999;223,94;1.980,07;ENEL ENERGIA SPA;7376631C76;Fatt.n. 004811743510  del 05/10/2018 SETTEMBRE 2018 - CONSUMI ILLUMINAZIONE PUBBLICA;29/10/2018;3544;0;154;1;Spese correnti;3;Acquisto di beni e servizi;2;Acquisto di servizi;15;Contratti di servizio pubblico;15;Contratti di servizio per l'illuminazione pubblica;02/11/2018
3466;9;9999999;399,94;1.980,07;ENEL ENERGIA SPA;7376631C76;Fatt.n. 004811743368  del 05/10/2018 SETTEMBRE 2018 - CONSUMI ILLUMINAZIONE PUBBLICA;29/10/2018;3544;0;154;1;Spese correnti;3;Acquisto di beni e servizi;2;Acquisto di servizi;15;Contratti di servizio pubblico;15;Contratti di servizio per l'illuminazione pubblica;02/11/2018
3466;10;9999999;998,96;1.980,07;ENEL ENERGIA SPA;7376631C76;Fatt.n. 004811743439  del 05/10/2018 SETTEMBRE 2018 - CONSUMI ILLUMINAZIONE PUBBLICA;29/10/2018;3544;0;154;1;Spese correnti;3;Acquisto di beni e servizi;2;Acquisto di servizi;15;Contratti di servizio pubblico;15;Contratti di servizio per l'illuminazione pubblica;02/11/2018
3467;1;9999999;7,58;1.132,48;ENEL ENERGIA SPA;7376631C76;Fatt.n. 004811743429  del 05/10/2018 SETTEMBRE 2018 - CONSUMI ILLUMINAZIONE PUBBLICA;29/10/2018;3544;0;154;1;Spese correnti;3;Acquisto di beni e servizi;2;Acquisto di servizi;15;Contratti di servizio pubblico;15;Contratti di servizio per l'illuminazione pubblica;02/11/2018
3467;2;9999999;13,75;1.132,48;ENEL ENERGIA SPA;7376631C76;Fatt.n. 004811743423  del 05/10/2018 SETTEMBRE 2018 - CONSUMI ILLUMINAZIONE PUBBLICA;29/10/2018;3544;0;154;1;Spese correnti;3;Acquisto di beni e servizi;2;Acquisto di servizi;15;Contratti di servizio pubblico;15;Contratti di servizio per l'illuminazione pubblica;02/11/2018
3467;3;9999999;36,16;1.132,48;ENEL ENERGIA SPA;7376631C76;Fatt.n. 004811743376  del 05/10/2018 SETTEMBRE 2018 - CONSUMI ILLUMINAZIONE PUBBLICA;29/10/2018;3544;0;154;1;Spese correnti;3;Acquisto di beni e servizi;2;Acquisto di servizi;15;Contratti di servizio pubblico;15;Contratti di servizio per l'illuminazione pubblica;02/11/2018
3467;4;9999999;46,58;1.132,48;ENEL ENERGIA SPA;7376631C76;Fatt.n. 004811743490  del 05/10/2018 SETTEMBRE 2018 - CONSUMI ILLUMINAZIONE PUBBLICA;29/10/2018;3544;0;154;1;Spese correnti;3;Acquisto di beni e servizi;2;Acquisto di servizi;15;Contratti di servizio pubblico;15;Contratti di servizio per l'illuminazione pubblica;02/11/2018
3467;5;9999999;53,79;1.132,48;ENEL ENERGIA SPA;7376631C76;Fatt.n. 004811743443  del 05/10/2018 SETTEMBRE 2018 - CONSUMI ILLUMINAZIONE PUBBLICA;29/10/2018;3544;0;154;1;Spese correnti;3;Acquisto di beni e servizi;2;Acquisto di servizi;15;Contratti di servizio pubblico;15;Contratti di servizio per l'illuminazione pubblica;02/11/2018
3467;6;9999999;68,15;1.132,48;ENEL ENERGIA SPA;7376631C76;Fatt.n. 004811743389  del 05/10/2018 SETTEMBRE 2018 - CONSUMI ILLUMINAZIONE PUBBLICA;29/10/2018;3544;0;154;1;Spese correnti;3;Acquisto di beni e servizi;2;Acquisto di servizi;15;Contratti di servizio pubblico;15;Contratti di servizio per l'illuminazione pubblica;02/11/2018
3467;7;9999999;87,97;1.132,48;ENEL ENERGIA SPA;7376631C76;Fatt.n. 004811743394  del 05/10/2018 SETTEMBRE 2018 - CONSUMI ILLUMINAZIONE PUBBLICA;29/10/2018;3544;0;154;1;Spese correnti;3;Acquisto di beni e servizi;2;Acquisto di servizi;15;Contratti di servizio pubblico;15;Contratti di servizio per l'illuminazione pubblica;02/11/2018
3467;8;9999999;126,23;1.132,48;ENEL ENERGIA SPA;7376631C76;Fatt.n. 004811743433  del 05/10/2018 SETTEMBRE 2018 - CONSUMI ILLUMINAZIONE PUBBLICA;29/10/2018;3544;0;154;1;Spese correnti;3;Acquisto di beni e servizi;2;Acquisto di servizi;15;Contratti di servizio pubblico;15;Contratti di servizio per l'illuminazione pubblica;02/11/2018
3467;9;9999999;341,73;1.132,48;ENEL ENERGIA SPA;7376631C76;Fatt.n. 004811743428  del 05/10/2018 SETTEMBRE 2018 - CONSUMI ILLUMINAZIONE PUBBLICA;29/10/2018;3544;0;154;1;Spese correnti;3;Acquisto di beni e servizi;2;Acquisto di servizi;15;Contratti di servizio pubblico;15;Contratti di servizio per l'illuminazione pubblica;02/11/2018
3467;10;9999999;350,54;1.132,48;ENEL ENERGIA SPA;7376631C76;Fatt.n. 004811743437  del 05/10/2018 SETTEMBRE 2018 - CONSUMI ILLUMINAZIONE PUBBLICA;29/10/2018;3544;0;154;1;Spese correnti;3;Acquisto di beni e servizi;2;Acquisto di servizi;15;Contratti di servizio pubblico;15;Contratti di servizio per l'illuminazione pubblica;02/11/2018
3468;1;9999999;16,37;998,71;ENEL ENERGIA SPA;7376631C76;Fatt.n. 004811743476  del 05/10/2018 SETTEMBRE 2018 - CONSUMI ILLUMINAZIONE PUBBLICA;29/10/2018;3544;0;154;1;Spese correnti;3;Acquisto di beni e servizi;2;Acquisto di servizi;15;Contratti di servizio pubblico;15;Contratti di servizio per l'illuminazione pubblica;02/11/2018
3468;2;9999999;16,37;998,71;ENEL ENERGIA SPA;7376631C76;Fatt.n. 004811743452  del 05/10/2018 SETTEMBRE 2018 - CONSUMI ILLUMINAZIONE PUBBLICA;29/10/2018;3544;0;154;1;Spese correnti;3;Acquisto di beni e servizi;2;Acquisto di servizi;15;Contratti di servizio pubblico;15;Contratti di servizio per l'illuminazione pubblica;02/11/2018
3468;3;9999999;20,03;998,71;ENEL ENERGIA SPA;7376631C76;Fatt.n. 004811743495  del 05/10/2018 SETTEMBRE 2018 - CONSUMI ILLUMINAZIONE PUBBLICA;29/10/2018;3544;0;154;1;Spese correnti;3;Acquisto di beni e servizi;2;Acquisto di servizi;15;Contratti di servizio pubblico;15;Contratti di servizio per l'illuminazione pubblica;02/11/2018
3468;4;9999999;77,41;998,71;ENEL ENERGIA SPA;7376631C76;Fatt.n. 004811743393  del 05/10/2018 SETTEMBRE 2018 - CONSUMI ILLUMINAZIONE PUBBLICA;29/10/2018;3544;0;154;1;Spese correnti;3;Acquisto di beni e servizi;2;Acquisto di servizi;15;Contratti di servizio pubblico;15;Contratti di servizio per l'illuminazione pubblica;02/11/2018
3468;5;9999999;94,16;998,71;ENEL ENERGIA SPA;7376631C76;Fatt.n. 004811743395  del 05/10/2018 SETTEMBRE 2018 - CONSUMI ILLUMINAZIONE PUBBLICA;29/10/2018;3544;0;154;1;Spese correnti;3;Acquisto di beni e servizi;2;Acquisto di servizi;15;Contratti di servizio pubblico;15;Contratti di servizio per l'illuminazione pubblica;02/11/2018
3468;6;9999999;110,75;998,71;ENEL ENERGIA SPA;7376631C76;Fatt.n. 004811743513  del 05/10/2018 SETTEMBRE 2018 - CONSUMI ILLUMINAZIONE PUBBLICA;29/10/2018;3544;0;154;1;Spese correnti;3;Acquisto di beni e servizi;2;Acquisto di servizi;15;Contratti di servizio pubblico;15;Contratti di servizio per l'illuminazione pubblica;02/11/2018
3468;7;9999999;113,97;998,71;ENEL ENERGIA SPA;7376631C76;Fatt.n. 004811743464  del 05/10/2018 SETTEMBRE 2018 - CONSUMI ILLUMINAZIONE PUBBLICA;29/10/2018;3544;0;154;1;Spese correnti;3;Acquisto di beni e servizi;2;Acquisto di servizi;15;Contratti di servizio pubblico;15;Contratti di servizio per l'illuminazione pubblica;02/11/2018
3468;8;9999999;152,02;998,71;ENEL ENERGIA SPA;7376631C76;Fatt.n. 004811743401  del 05/10/2018 SETTEMBRE 2018 - CONSUMI ILLUMINAZIONE PUBBLICA;29/10/2018;3544;0;154;1;Spese correnti;3;Acquisto di beni e servizi;2;Acquisto di servizi;15;Contratti di servizio pubblico;15;Contratti di servizio per l'illuminazione pubblica;02/11/2018
3468;9;9999999;183,39;998,71;ENEL ENERGIA SPA;7376631C76;Fatt.n. 004811743419  del 05/10/2018 SETTEMBRE 2018 - CONSUMI ILLUMINAZIONE PUBBLICA;29/10/2018;3544;0;154;1;Spese correnti;3;Acquisto di beni e servizi;2;Acquisto di servizi;15;Contratti di servizio pubblico;15;Contratti di servizio per l'illuminazione pubblica;02/11/2018
3468;10;9999999;214,24;998,71;ENEL ENERGIA SPA;7376631C76;Fatt.n. 004811743455  del 05/10/2018 SETTEMBRE 2018 - CONSUMI ILLUMINAZIONE PUBBLICA;29/10/2018;3544;0;154;1;Spese correnti;3;Acquisto di beni e servizi;2;Acquisto di servizi;15;Contratti di servizio pubblico;15;Contratti di servizio per l'illuminazione pubblica;02/11/2018
3469;1;9999999;7,77;2.041,47;ENEL ENERGIA SPA;7376631C76;Fatt.n. 004811743434  del 05/10/2018 SETTEMBRE 2018 - CONSUMI ILLUMINAZIONE PUBBLICA;29/10/2018;3544;0;154;1;Spese correnti;3;Acquisto di beni e servizi;2;Acquisto di servizi;15;Contratti di servizio pubblico;15;Contratti di servizio per l'illuminazione pubblica;02/11/2018
3469;2;9999999;24,31;2.041,47;ENEL ENERGIA SPA;7376631C76;Fatt.n. 004811743482  del 05/10/2018 SETTEMBRE 2018 - CONSUMI ILLUMINAZIONE PUBBLICA;29/10/2018;3544;0;154;1;Spese correnti;3;Acquisto di beni e servizi;2;Acquisto di servizi;15;Contratti di servizio pubblico;15;Contratti di servizio per l'illuminazione pubblica;02/11/2018
3469;3;9999999;74,14;2.041,47;ENEL ENERGIA SPA;7376631C76;Fatt.n. 004811743396  del 05/10/2018 SETTEMBRE 2018 - CONSUMI ILLUMINAZIONE PUBBLICA;29/10/2018;3544;0;154;1;Spese correnti;3;Acquisto di beni e servizi;2;Acquisto di servizi;15;Contratti di servizio pubblico;15;Contratti di servizio per l'illuminazione pubblica;02/11/2018
3469;4;9999999;121,73;2.041,47;ENEL ENERGIA SPA;7376631C76;Fatt.n. 004811743492  del 05/10/2018 SETTEMBRE 2018 - CONSUMI ILLUMINAZIONE PUBBLICA;29/10/2018;3544;0;154;1;Spese correnti;3;Acquisto di beni e servizi;2;Acquisto di servizi;15;Contratti di servizio pubblico;15;Contratti di servizio per l'illuminazione pubblica;02/11/2018
3469;5;9999999;132,25;2.041,47;ENEL ENERGIA SPA;7376631C76;Fatt.n. 004811743463  del 05/10/2018 SETTEMBRE 2018 - CONSUMI ILLUMINAZIONE PUBBLICA;29/10/2018;3544;0;154;1;Spese correnti;3;Acquisto di beni e servizi;2;Acquisto di servizi;15;Contratti di servizio pubblico;15;Contratti di servizio per l'illuminazione pubblica;02/11/2018
3469;6;9999999;140,19;2.041,47;ENEL ENERGIA SPA;7376631C76;Fatt.n. 004811743412  del 05/10/2018 SETTEMBRE 2018 - CONSUMI ILLUMINAZIONE PUBBLICA;29/10/2018;3544;0;154;1;Spese correnti;3;Acquisto di beni e servizi;2;Acquisto di servizi;15;Contratti di servizio pubblico;15;Contratti di servizio per l'illuminazione pubblica;02/11/2018
3469;7;9999999;317,41;2.041,47;ENEL ENERGIA SPA;7376631C76;Fatt.n. 004811743462  del 05/10/2018 SETTEMBRE 2018 - CONSUMI ILLUMINAZIONE PUBBLICA;29/10/2018;3544;0;154;1;Spese correnti;3;Acquisto di beni e servizi;2;Acquisto di servizi;15;Contratti di servizio pubblico;15;Contratti di servizio per l'illuminazione pubblica;02/11/2018
3469;8;9999999;322,56;2.041,47;ENEL ENERGIA SPA;7376631C76;Fatt.n. 004811743481  del 05/10/2018 SETTEMBRE 2018 - CONSUMI ILLUMINAZIONE PUBBLICA;29/10/2018;3544;0;154;1;Spese correnti;3;Acquisto di beni e servizi;2;Acquisto di servizi;15;Contratti di servizio pubblico;15;Contratti di servizio per l'illuminazione pubblica;02/11/2018
3469;9;9999999;414,1;2.041,47;ENEL ENERGIA SPA;7376631C76;Fatt.n. 004811743491  del 05/10/2018 SETTEMBRE 2018 - CONSUMI ILLUMINAZIONE PUBBLICA;29/10/2018;3544;0;154;1;Spese correnti;3;Acquisto di beni e servizi;2;Acquisto di servizi;15;Contratti di servizio pubblico;15;Contratti di servizio per l'illuminazione pubblica;02/11/2018
3469;10;9999999;487,01;2.041,47;ENEL ENERGIA SPA;7376631C76;Fatt.n. 004811743501  del 05/10/2018 SETTEMBRE 2018 - CONSUMI ILLUMINAZIONE PUBBLICA;29/10/2018;3544;0;154;1;Spese correnti;3;Acquisto di beni e servizi;2;Acquisto di servizi;15;Contratti di servizio pubblico;15;Contratti di servizio per l'illuminazione pubblica;02/11/2018
3470;1;9999999;2,82;1.307,71;ENEL ENERGIA SPA;7376631C76;Fatt.n. 004811743504  del 05/10/2018 SETTEMBRE 2018 - CONSUMI ILLUMINAZIONE PUBBLICA;29/10/2018;3544;0;154;1;Spese correnti;3;Acquisto di beni e servizi;2;Acquisto di servizi;15;Contratti di servizio pubblico;15;Contratti di servizio per l'illuminazione pubblica;02/11/2018
3470;2;9999999;25,19;1.307,71;ENEL ENERGIA SPA;7376631C76;Fatt.n. 004811743467  del 05/10/2018 SETTEMBRE 2018 - CONSUMI ILLUMINAZIONE PUBBLICA;29/10/2018;3544;0;154;1;Spese correnti;3;Acquisto di beni e servizi;2;Acquisto di servizi;15;Contratti di servizio pubblico;15;Contratti di servizio per l'illuminazione pubblica;02/11/2018
3470;3;9999999;26,02;1.307,71;ENEL ENERGIA SPA;7376631C76;Fatt.n. 004811743479  del 05/10/2018 SETTEMBRE 2018 - CONSUMI ILLUMINAZIONE PUBBLICA;29/10/2018;3544;0;154;1;Spese correnti;3;Acquisto di beni e servizi;2;Acquisto di servizi;15;Contratti di servizio pubblico;15;Contratti di servizio per l'illuminazione pubblica;02/11/2018
3470;4;9999999;35,25;1.307,71;ENEL ENERGIA SPA;7376631C76;Fatt.n. 004811743441  del 05/10/2018 SETTEMBRE 2018 - CONSUMI ILLUMINAZIONE PUBBLICA;29/10/2018;3544;0;154;1;Spese correnti;3;Acquisto di beni e servizi;2;Acquisto di servizi;15;Contratti di servizio pubblico;15;Contratti di servizio per l'illuminazione pubblica;02/11/2018
3470;5;9999999;96,34;1.307,71;ENEL ENERGIA SPA;7376631C76;Fatt.n. 004811743509  del 05/10/2018 SETTEMBRE 2018 - CONSUMI ILLUMINAZIONE PUBBLICA;29/10/2018;3544;0;154;1;Spese correnti;3;Acquisto di beni e servizi;2;Acquisto di servizi;15;Contratti di servizio pubblico;15;Contratti di servizio per l'illuminazione pubblica;02/11/2018
3470;6;9999999;155,93;1.307,71;ENEL ENERGIA SPA;7376631C76;Fatt.n. 004811743466  del 05/10/2018 SETTEMBRE 2018 - CONSUMI ILLUMINAZIONE PUBBLICA;29/10/2018;3544;0;154;1;Spese correnti;3;Acquisto di beni e servizi;2;Acquisto di servizi;15;Contratti di servizio pubblico;15;Contratti di servizio per l'illuminazione pubblica;02/11/2018
3470;7;9999999;172,51;1.307,71;ENEL ENERGIA SPA;7376631C76;Fatt.n. 004811743468  del 05/10/2018 SETTEMBRE 2018 - CONSUMI ILLUMINAZIONE PUBBLICA;29/10/2018;3544;0;154;1;Spese correnti;3;Acquisto di beni e servizi;2;Acquisto di servizi;15;Contratti di servizio pubblico;15;Contratti di servizio per l'illuminazione pubblica;02/11/2018
3470;8;9999999;214,44;1.307,71;ENEL ENERGIA SPA;7376631C76;Fatt.n. 004811743418  del 05/10/2018 SETTEMBRE 2018 - CONSUMI ILLUMINAZIONE PUBBLICA;29/10/2018;3544;0;154;1;Spese correnti;3;Acquisto di beni e servizi;2;Acquisto di servizi;15;Contratti di servizio pubblico;15;Contratti di servizio per l'illuminazione pubblica;02/11/2018
3470;9;9999999;285,31;1.307,71;ENEL ENERGIA SPA;7376631C76;Fatt.n. 004811743420  del 05/10/2018 SETTEMBRE 2018 - CONSUMI ILLUMINAZIONE PUBBLICA;29/10/2018;3544;0;154;1;Spese correnti;3;Acquisto di beni e servizi;2;Acquisto di servizi;15;Contratti di servizio pubblico;15;Contratti di servizio per l'illuminazione pubblica;02/11/2018
3470;10;9999999;293,9;1.307,71;ENEL ENERGIA SPA;7376631C76;Fatt.n. 004811743472  del 05/10/2018 SETTEMBRE 2018 - CONSUMI ILLUMINAZIONE PUBBLICA;29/10/2018;3544;0;154;1;Spese correnti;3;Acquisto di beni e servizi;2;Acquisto di servizi;15;Contratti di servizio pubblico;15;Contratti di servizio per l'illuminazione pubblica;02/11/2018
3471;1;9999999;24,31;2.034,83;ENEL ENERGIA SPA;7376631C76;Fatt.n. 004811743448  del 05/10/2018 SETTEMBRE 2018 - CONSUMI ILLUMINAZIONE PUBBLICA;29/10/2018;3544;0;154;1;Spese correnti;3;Acquisto di beni e servizi;2;Acquisto di servizi;15;Contratti di servizio pubblico;15;Contratti di servizio per l'illuminazione pubblica;02/11/2018
3471;2;9999999;24,94;2.034,83;ENEL ENERGIA SPA;7376631C76;Fatt.n. 004811743408  del 05/10/2018 SETTEMBRE 2018 - CONSUMI ILLUMINAZIONE PUBBLICA;29/10/2018;3544;0;154;1;Spese correnti;3;Acquisto di beni e servizi;2;Acquisto di servizi;15;Contratti di servizio pubblico;15;Contratti di servizio per l'illuminazione pubblica;02/11/2018
3471;3;9999999;42,15;2.034,83;ENEL ENERGIA SPA;7376631C76;Fatt.n. 004811743475  del 05/10/2018 SETTEMBRE 2018 - CONSUMI ILLUMINAZIONE PUBBLICA;29/10/2018;3544;0;154;1;Spese correnti;3;Acquisto di beni e servizi;2;Acquisto di servizi;15;Contratti di servizio pubblico;15;Contratti di servizio per l'illuminazione pubblica;02/11/2018
3471;4;9999999;56,3;2.034,83;ENEL ENERGIA SPA;7376631C76;Fatt.n. 004811743507  del 05/10/2018 SETTEMBRE 2018 - CONSUMI ILLUMINAZIONE PUBBLICA;29/10/2018;3544;0;154;1;Spese correnti;3;Acquisto di beni e servizi;2;Acquisto di servizi;15;Contratti di servizio pubblico;15;Contratti di servizio per l'illuminazione pubblica;02/11/2018
3471;5;9999999;72,64;2.034,83;ENEL ENERGIA SPA;7376631C76;Fatt.n. 004811743379  del 05/10/2018 SETTEMBRE 2018 - CONSUMI ILLUMINAZIONE PUBBLICA;29/10/2018;3544;0;154;1;Spese correnti;3;Acquisto di beni e servizi;2;Acquisto di servizi;15;Contratti di servizio pubblico;15;Contratti di servizio per l'illuminazione pubblica;02/11/2018
3471;6;9999999;93,5;2.034,83;ENEL ENERGIA SPA;7376631C76;Fatt.n. 004811743380  del 05/10/2018 SETTEMBRE 2018 - CONSUMI ILLUMINAZIONE PUBBLICA;29/10/2018;3544;0;154;1;Spese correnti;3;Acquisto di beni e servizi;2;Acquisto di servizi;15;Contratti di servizio pubblico;15;Contratti di servizio per l'illuminazione pubblica;02/11/2018
3471;7;9999999;202,79;2.034,83;ENEL ENERGIA SPA;7376631C76;Fatt.n. 004811743503  del 05/10/2018 SETTEMBRE 2018 - CONSUMI ILLUMINAZIONE PUBBLICA;29/10/2018;3544;0;154;1;Spese correnti;3;Acquisto di beni e servizi;2;Acquisto di servizi;15;Contratti di servizio pubblico;15;Contratti di servizio per l'illuminazione pubblica;02/11/2018
3471;8;9999999;395,63;2.034,83;ENEL ENERGIA SPA;7376631C76;Fatt.n. 004811743371  del 05/10/2018 SETTEMBRE 2018 - CONSUMI ILLUMINAZIONE PUBBLICA;29/10/2018;3544;0;154;1;Spese correnti;3;Acquisto di beni e servizi;2;Acquisto di servizi;15;Contratti di servizio pubblico;15;Contratti di servizio per l'illuminazione pubblica;02/11/2018
3471;9;9999999;532,58;2.034,83;ENEL ENERGIA SPA;7376631C76;Fatt.n. 004811743477  del 05/10/2018 SETTEMBRE 2018 - CONSUMI ILLUMINAZIONE PUBBLICA;29/10/2018;3544;0;154;1;Spese correnti;3;Acquisto di beni e servizi;2;Acquisto di servizi;15;Contratti di servizio pubblico;15;Contratti di servizio per l'illuminazione pubblica;02/11/2018
3471;10;9999999;589,99;2.034,83;ENEL ENERGIA SPA;7376631C76;Fatt.n. 004811743387  del 05/10/2018 SETTEMBRE 2018 - CONSUMI ILLUMINAZIONE PUBBLICA;29/10/2018;3544;0;154;1;Spese correnti;3;Acquisto di beni e servizi;2;Acquisto di servizi;15;Contratti di servizio pubblico;15;Contratti di servizio per l'illuminazione pubblica;02/11/2018
3472;1;9999999;6,84;1.438,70;ENEL ENERGIA SPA;7376631C76;Fatt.n. 004811743444  del 05/10/2018 SETTEMBRE 2018 - CONSUMI ILLUMINAZIONE PUBBLICA;29/10/2018;3544;0;154;1;Spese correnti;3;Acquisto di beni e servizi;2;Acquisto di servizi;15;Contratti di servizio pubblico;15;Contratti di servizio per l'illuminazione pubblica;02/11/2018
3472;2;9999999;16,98;1.438,70;ENEL ENERGIA SPA;7376631C76;Fatt.n. 004811743461  del 05/10/2018 SETTEMBRE 2018 - CONSUMI ILLUMINAZIONE PUBBLICA;29/10/2018;3544;0;154;1;Spese correnti;3;Acquisto di beni e servizi;2;Acquisto di servizi;15;Contratti di servizio pubblico;15;Contratti di servizio per l'illuminazione pubblica;02/11/2018
3472;3;9999999;40,8;1.438,70;ENEL ENERGIA SPA;7376631C76;Fatt.n. 004811743417  del 05/10/2018 SETTEMBRE 2018 - CONSUMI ILLUMINAZIONE PUBBLICA;29/10/2018;3544;0;154;1;Spese correnti;3;Acquisto di beni e servizi;2;Acquisto di servizi;15;Contratti di servizio pubblico;15;Contratti di servizio per l'illuminazione pubblica;02/11/2018
3472;4;9999999;96,14;1.438,70;ENEL ENERGIA SPA;7376631C76;Fatt.n. 004811743511  del 05/10/2018 SETTEMBRE 2018 - CONSUMI ILLUMINAZIONE PUBBLICA;29/10/2018;3544;0;154;1;Spese correnti;3;Acquisto di beni e servizi;2;Acquisto di servizi;15;Contratti di servizio pubblico;15;Contratti di servizio per l'illuminazione pubblica;02/11/2018
3472;5;9999999;151,61;1.438,70;ENEL ENERGIA SPA;7376631C76;Fatt.n. 004811743435  del 05/10/2018 SETTEMBRE 2018 - CONSUMI ILLUMINAZIONE PUBBLICA;29/10/2018;3544;0;154;1;Spese correnti;3;Acquisto di beni e servizi;2;Acquisto di servizi;15;Contratti di servizio pubblico;15;Contratti di servizio per l'illuminazione pubblica;02/11/2018
3472;6;9999999;160,22;1.438,70;ENEL ENERGIA SPA;7376631C76;Fatt.n. 004811743421  del 05/10/2018 SETTEMBRE 2018 - CONSUMI ILLUMINAZIONE PUBBLICA;29/10/2018;3544;0;154;1;Spese correnti;3;Acquisto di beni e servizi;2;Acquisto di servizi;15;Contratti di servizio pubblico;15;Contratti di servizio per l'illuminazione pubblica;02/11/2018
3472;7;9999999;189,04;1.438,70;ENEL ENERGIA SPA;7376631C76;Fatt.n. 004811743413  del 05/10/2018 SETTEMBRE 2018 - CONSUMI ILLUMINAZIONE PUBBLICA;29/10/2018;3544;0;154;1;Spese correnti;3;Acquisto di beni e servizi;2;Acquisto di servizi;15;Contratti di servizio pubblico;15;Contratti di servizio per l'illuminazione pubblica;02/11/2018
3472;8;9999999;192,83;1.438,70;ENEL ENERGIA SPA;7376631C76;Fatt.n. 004811743453  del 05/10/2018 SETTEMBRE 2018 - CONSUMI ILLUMINAZIONE PUBBLICA;29/10/2018;3544;0;154;1;Spese correnti;3;Acquisto di beni e servizi;2;Acquisto di servizi;15;Contratti di servizio pubblico;15;Contratti di servizio per l'illuminazione pubblica;02/11/2018
3472;9;9999999;279,75;1.438,70;ENEL ENERGIA SPA;7376631C76;Fatt.n. 004811743474  del 05/10/2018 SETTEMBRE 2018 - CONSUMI ILLUMINAZIONE PUBBLICA;29/10/2018;3544;0;154;1;Spese correnti;3;Acquisto di beni e servizi;2;Acquisto di servizi;15;Contratti di servizio pubblico;15;Contratti di servizio per l'illuminazione pubblica;02/11/2018
3472;10;9999999;304,49;1.438,70;ENEL ENERGIA SPA;7376631C76;Fatt.n. 004811743383  del 05/10/2018 SETTEMBRE 2018 - CONSUMI ILLUMINAZIONE PUBBLICA;29/10/2018;3544;0;154;1;Spese correnti;3;Acquisto di beni e servizi;2;Acquisto di servizi;15;Contratti di servizio pubblico;15;Contratti di servizio per l'illuminazione pubblica;02/11/2018
3473;1;9999999;8,81;1.256,10;ENEL ENERGIA SPA;7376631C76;Fatt.n. 004811838491  del 12/10/2018 SETTEMBRE 2018 - CONSUMI ILLUMINAZIONE PUBBLICA;29/10/2018;3544;0;154;1;Spese correnti;3;Acquisto di beni e servizi;2;Acquisto di servizi;15;Contratti di servizio pubblico;15;Contratti di servizio per l'illuminazione pubblica;02/11/2018
3473;2;9999999;26,02;1.256,10;ENEL ENERGIA SPA;7376631C76;Fatt.n. 004811743378  del 05/10/2018 SETTEMBRE 2018 - CONSUMI ILLUMINAZIONE PUBBLICA;29/10/2018;3544;0;154;1;Spese correnti;3;Acquisto di beni e servizi;2;Acquisto di servizi;15;Contratti di servizio pubblico;15;Contratti di servizio per l'illuminazione pubblica;02/11/2018
3473;3;9999999;49,68;1.256,10;ENEL ENERGIA SPA;7376631C76;Fatt.n. 004811838488  del 12/10/2018 SETTEMBRE 2018 - CONSUMI ILLUMINAZIONE PUBBLICA;29/10/2018;3544;0;154;1;Spese correnti;3;Acquisto di beni e servizi;2;Acquisto di servizi;15;Contratti di servizio pubblico;15;Contratti di servizio per l'illuminazione pubblica;02/11/2018
3473;4;9999999;49,68;1.256,10;ENEL ENERGIA SPA;7376631C76;Fatt.n. 004811838489  del 12/10/2018 SETTEMBRE 2018 - CONSUMI ILLUMINAZIONE PUBBLICA;29/10/2018;3544;0;154;1;Spese correnti;3;Acquisto di beni e servizi;2;Acquisto di servizi;15;Contratti di servizio pubblico;15;Contratti di servizio per l'illuminazione pubblica;02/11/2018
3473;5;9999999;49,68;1.256,10;ENEL ENERGIA SPA;7376631C76;Fatt.n. 004811838487  del 12/10/2018 SETTEMBRE 2018 - CONSUMI ILLUMINAZIONE PUBBLICA;29/10/2018;3544;0;154;1;Spese correnti;3;Acquisto di beni e servizi;2;Acquisto di servizi;15;Contratti di servizio pubblico;15;Contratti di servizio per l'illuminazione pubblica;02/11/2018
3473;6;9999999;93,95;1.256,10;ENEL ENERGIA SPA;7376631C76;Fatt.n. 004811805431  del 11/10/2018 SETTEMBRE 2018 - CONSUMI ILLUMIAZIONE PUBBLICA;29/10/2018;3544;0;154;1;Spese correnti;3;Acquisto di beni e servizi;2;Acquisto di servizi;15;Contratti di servizio pubblico;15;Contratti di servizio per l'illuminazione pubblica;02/11/2018
3473;7;9999999;99,72;1.256,10;ENEL ENERGIA SPA;7376631C76;Fatt.n. 004811838490  del 12/10/2018 SETTEMBRE 2018 - CONSUMI ILLUMINAZIONE PUBBLICA;29/10/2018;3544;0;154;1;Spese correnti;3;Acquisto di beni e servizi;2;Acquisto di servizi;15;Contratti di servizio pubblico;15;Contratti di servizio per l'illuminazione pubblica;02/11/2018
3473;8;9999999;106,64;1.256,10;ENEL ENERGIA SPA;7376631C76;Fatt.n. 004811743512  del 05/10/2018 SETTEMBRE 2018 - CONSUMI ILLUMINAZIONE PUBBLICA;29/10/2018;3544;0;154;1;Spese correnti;3;Acquisto di beni e servizi;2;Acquisto di servizi;15;Contratti di servizio pubblico;15;Contratti di servizio per l'illuminazione pubblica;02/11/2018
3473;9;9999999;163,25;1.256,10;ENEL ENERGIA SPA;7376631C76;Fatt.n. 004811743442  del 05/10/2018 SETTEMBRE 2018 - CONSUMI ILLUMINAZIONE PUBBLICA;29/10/2018;3544;0;154;1;Spese correnti;3;Acquisto di beni e servizi;2;Acquisto di servizi;15;Contratti di servizio pubblico;15;Contratti di servizio per l'illuminazione pubblica;02/11/2018
3473;10;9999999;608,67;1.256,10;ENEL ENERGIA SPA;7376631C76;Fatt.n. 004811805430  del 11/10/2018 SETTEMBRA 2018 - CONSUMI ILLUMINAZIONE PUBBLICA;29/10/2018;3544;0;154;1;Spese correnti;3;Acquisto di beni e servizi;2;Acquisto di servizi;15;Contratti di servizio pubblico;15;Contratti di servizio per l'illuminazione pubblica;02/11/2018
3474;1;9999999;457,23;967,8;ENEL ENERGIA SPA;7376631C76;Fatt.n. 004811743388  del 05/10/2018 SETTEMBRE 2018 - CONSUMI VILLA FARSETTI;29/10/2018;4234;0;134;1;Spese correnti;3;Acquisto di beni e servizi;2;Acquisto di servizi;5;Utenze e canoni;4;Energia elettrica;02/11/2018
3474;2;9999999;510,57;967,8;ENEL ENERGIA SPA;7376631C76;Fatt.n. 004811743405  del 05/10/2018 SETTEMBRE 2018 - CONSUMI VILLA FARSETTI;29/10/2018;4234;0;134;1;Spese correnti;3;Acquisto di beni e servizi;2;Acquisto di servizi;5;Utenze e canoni;4;Energia elettrica;02/11/2018
3475;1;9999999;45,36;45,36;ENEL ENERGIA SPA;7376631C76;Fatt.n. 004811743370  del 05/10/2018 SETTEMBRE 2018 - CONSUMI CIMITERO STIGLIANO - LAMPADE VOTIVE;29/10/2018;4434;0;135;1;Spese correnti;3;Acquisto di beni e servizi;2;Acquisto di servizi;5;Utenze e canoni;4;Energia elettrica;02/11/2018
3476;1;9999999;50;50;ENEL ENERGIA SPA;7376631C76;Fatt.n. 004811743381  del 05/10/2018 SETTEMBRE 2018 - CONSUMI CIMITERO S.ANGELO - LAMPADE VOTIVE;29/10/2018;4434;0;135;1;Spese correnti;3;Acquisto di beni e servizi;2;Acquisto di servizi;5;Utenze e canoni;4;Energia elettrica;02/11/2018
3477;1;9999999;40;40;ENEL ENERGIA SPA;7376631C76;Fatt.n. 004811743494  del 05/10/2018 SETTEMBRE 2018 - CONSUMI CIMITERO SMS - LAMPADE VOTIVE;29/10/2018;4434;0;135;1;Spese correnti;3;Acquisto di beni e servizi;2;Acquisto di servizi;5;Utenze e canoni;4;Energia elettrica;02/11/2018
3478;1;9999999;100;100;ENEL ENERGIA SPA;7376631C76;Fatt.n. 004811743478  del 05/10/2018 SETTEMBRE 2018 - CONSUMI CIMITERO DI CALTANA - LAMPADE VOTIVE;29/10/2018;4434;0;135;1;Spese correnti;3;Acquisto di beni e servizi;2;Acquisto di servizi;5;Utenze e canoni;4;Energia elettrica;02/11/2018
